{"text_format":"2","workbook":"xlsx","n_sheets":19,"sheets":["прил 1 (2013 доходы)","прил 2 (2014-2015 доходы)","прил3 (админ)","прил4 (админ ОГВ)","прил 5 адм источн","прил6","прил7","прил8","прил9","прил10","прил11","прил12","прил13","прил14","прил 15весов коэф","прил 16заим 2013","прил17заим2014-2015","прил18источн2013","прил19источ 2014-2015)"],"not_rendered":{"charts":0,"images":0,"macros":0,"external_links":0,"defined_names":23,"comments":0,"pivot_tables":0},"unopened":[],"bounds":{"document_bytes":16777216,"sheet_cells":100000,"run_cost":"one","rows_first":2000,"rows_last":500,"rows_between":2000,"halvings":0,"cell_chars":16384,"cell_head_chars":4096},"cells_cut":0,"cells_raw":0,"read":"whole","date_system":"1900"}

{"sheet":"прил 1 (2013 доходы)","index":0,"n_rows":130,"n_cols":4,"rows_kept":130,"cut":false,"hidden":false,"merged":[[66,4,66,9],[2,0,3,3],[5,0,6,0],[5,1,5,2],[5,3,6,3],[64,4,64,13]]}
[]
[]
["Прогнозируемые доходы бюджета Черемховского районного муниципального образования на 2013 год  "]
[]
[null,null,null,"(тыс. рублей)"]
["Наименование","Код бюджетной классификации",null,"Прогноз на 2013 год "]
[null,"главного администратора доходов","доходов районного бюджета"]
["НАЛОГОВЫЕ И НЕНАЛОГОВЫЕ ДОХОДЫ","000","1 00 00000 00 0000 000",{"$f":"D9+D14+D23+D27+D30+D35+D40+D47+D52+D71","v":81236.930000000008}]
["НАЛОГИ НА ПРИБЫЛЬ, ДОХОДЫ","182","1 01 00000 00 0000 000",{"$f":"D10+D11+D12+D13","v":50023.7}]
["Налог на доходы физических лиц с доходов, источником которых является налоговый агент, за исключением доходов, в отношении которых исчисление и уплата налога осуществляются в соответствии со статьями 227,227¹ и 228 Налогового кодекса Российской Федерации","182","1 01 02010 01 0000 110",49835.4]
["Налог на доходы физических лиц с доходов, полученных от осуществления деятельности физическими лицами,зарегистрированными в качестве индивидуальных предпринимателей,нотариусов,занимающихся частной практикой,адвокатов,учредивших адвокатские кабинеты и других лиц, занимающихся частной практикой","182","1 01 02020 01 0000 110",53.1]
["Налог на доходы физических лиц с доходов,  полученных физическими лицами, не являющимися налоговыми резидентами ","182","1 01 02030 01 0000 110",131.69999999999999]
["Налог на доходы физических лиц в виде фиксированных авансовых платежей с доходов, полученных физическими лицами, являющимися иностранными гражданами, осуществляющими трудовую деятельность по найму у физических лиц на основании патента ","182","1 01 02040 01 0000 110",3.5]
["НАЛОГИ НА СОВОКУПНЫЙ ДОХОД","182","1 05 00000 00 0000 000",{"$f":"D15+D21+D22","v":9179.2999999999993}]
["Налог, взимаемый в связи с применением упрощенной системы налогообложения ","182","1 05 01000 00 0000 110",{"$f":"D16+D17+D18+D19","v":3770.3999999999996}]
["Налог, взимаемый с налогоплательщиков, выбравших в качестве объекта налогообложения  доходы","182","1 05 01010 01 0000 110",1487]
["Налог, взимаемый с налогоплательщиков, выбравших в качестве объекта налогообложения доходы, уменьшенные на величину расходов","182","1 05 01020 01 0000 110",1540]
["Налог, взимаемый с налогоплательщиков, выбравших в качестве объекта налогообложения доходы, уменьшенные на величину расходов (за налоговые периоды, истекшие до 1 января 2011 года)","182","1 05 01022 01 0000 110",106.2]
["Минимальный налог, зачисляемый в бюджеты субьектов РФ","182","1 05 01050 01 0000 110",637.20000000000005]
["Налог, взимаемый в связи с применением патентной системы налогообложения","182",null,0]
["Единый налог на вмененный доход для отдельных видов деятельности","182","1 05 02000 02 0000 110",5310]
["Единый сельскохозяйственный налог ","182","1 05 03000 01 0000 110",98.9]
["ГОСУДАРСТВЕННАЯ ПОШЛИНА","000","1 08 00000 00 0000 000",{"$f":"D24+D25+D26","v":988}]
["Государственная пошлина по делам, рассматриваемым в судах общей юрисдикции, мировыми судьями (за исключением Верховного Суда Российской Федерации)","182","1 08 03010 01 0000 110",308]
["Государственная пошлина за совершение действий, связанных с лицензированием, с проведением аттестации в случаях, если такая аттестация предусмотрена законодательством Российской Федерации, зачисляемая в бюджеты муниципальных районов","917","1 08 07084 01 1000 110",680]
["Государственная пошлина за государственную регистрацию транспортных средств и иные юридически значимые действия, связанные с изменениями и выдачей документов на транспортные средства, выдачей регистрационных знаков, приемом квалификационных экзаменов на получение права на управление транспортными средствами","000","1 08 07141 01 0000 110"]
["ЗАДОЛЖЕННОСТЬ И ПЕРЕРАСЧЕТЫ ПО ОТМЕНЕННЫМ НАЛОГАМ, СБОРАМ И ИНЫМ ОБЯЗАТЕЛЬНЫМ ПЛАТЕЖАМ","182","1 09 00000 00 0000 000",{"$f":"D28+D29","v":1}]
["Налог на имущество предприятий","182","1 09 04010 02 0000 110",0.5]
["Налог с продаж","182","1 09 06010 02 0000 110",0.5]
["ДОХОДЫ ОТ ИСПОЛЬЗОВАНИЯ ИМУЩЕСТВА, НАХОДЯЩЕГОСЯ В ГОСУДАРСТВЕННОЙ И МУНИЦИПАЛЬНОЙ СОБСТВЕННОСТИ","000","1 11 00000 00 0000 000",{"$f":"D31+D34","v":9990}]
["Доходы, получаемые в виде арендной  платы за земельные участки,государственная собственность на которые не разграничена и которые расположеныв границах поселений, а также средства от продажи права на заключение договоров аренды указанных земельных участков","000","1 11 05013 10 0000 120",{"$f":"D32+D33","v":5090}]
["Доходы, получаемые в виде арендной платы за земельные участки, государственная собственность на которые не разграничена и которые расположены в границах поселений, а также средства от продажи права на заключение договоров аренды указанных земельных участков","913","1 11 05013 10 0000 120",4340]
["Доходы, получаемые в виде арендной  платы за земельные участки,государственная собственность на которые не разграничена и которые расположеныв границах поселений, а также средства от продажи права на заключение договоров аренды указанных земельных участков","950","1 11 05013 10 0000 120",750]
["Доходы от сдачи в аренду имущества, находящегося в оперативном управлении органов управления муниципальных районов и созданных ими учреждений (за исключением имущества муниципальных автономных учреждений)","913","1 11 05035 05 0000 120",4900]
["ПЛАТЕЖИ ПРИ ПОЛЬЗОВАНИИ ПРИРОДНЫМИ РЕСУРСАМИ","048","1 12 00000 00 0000 000",{"$f":"D36","v":179.13}]
["Плата за негативное воздействие на окружающую среду","048","1 12 01000 01 0000 120",{"$f":"D37+D38+D39","v":179.13}]
["Плата за выбросы загрязняющих веществ в атмосферный воздух стационарными объектами ","048","1 12 01010 01 0000 120",94.9]
["Плата за выбросы загрязняющих веществ в атмосферный воздух передвижными объектами","048","1 12 01020 01 0000 120",17.93]
["Плата за размещение отходов производства и потребления","048","1 12 01040 01 0000 120",66.3]
["ДОХОДЫ ОТ ОКАЗАНИЯ ПЛАТНЫХ УСЛУГ И КОМПЕНСАЦИИ ЗАТРАТ ГОСУДАРСТВА","000","1 13 00000 00 0000 000",{"$f":"D41+D42","v":7394}]
["Прочие доходы от оказания платных услуг (работ) получателями средств бюджетов муниципальных районов","907","113 01995 05 0000 130",7070]
["Прочие доходы от оказания платных услуг (работ) получателями средств бюджетов муниципальных районов ","904","113 01995 05 0000 130",{"$f":"D43+D44+D45+D46","v":324}]
["Прочие доходы от оказания платных услуг (работ) получателями средств бюджетов муниципальных районов (МКУК МКЦ АЧРМО)","000","113 01995 05 0000 130",55]
["Прочие доходы от оказания платных услуг (работ) получателями средств бюджетов муниципальных районов (МКУК РИК МУЗЕЙ)","000","113 01995 05 0000 130",21]
["Прочие доходы от оказания платных услуг (работ) получателями средств бюджетов муниципальных районов (МКУК МБЧР)","000","113 01995 05 0000 130",26]
["Прочие доходы от оказания платных услуг (работ) получателями средств бюджетов муниципальных районов (МКОУ ДОД ДШИ)","000","113 01995 05 0000 130",222]
["ДОХОДЫ ОТ ПРОДАЖИ МАТЕРИАЛЬНЫХ И НЕМАТЕРИАЛЬНЫХ АКТИВОВ","913","1 14 00000 00 0000 000",{"$f":"D48+D50","v":2669.3}]
["Доходы от реализации имущества, находящегося в государственной и муниципальной собственности (за исключением имущества автономных учреждений, а также имущества государственных и муниципальных унитарных предприятий, в том числе казенных)","913","1 14 02000 00 0000 000",{"$f":"D49","v":2600}]
["Доходы от реализации иного имущества, находящегося в собственности муниципальных районов (за исключением имущества муниципальных автономных учреждений, а также имущества муниципальных унитарных предприятий, в том числе казенных), в части реализации основных средств по указанному имуществу","913","1 14 02053 05 0000 410",2600]
["Доходы от продажи земельных участков, находящихся в  государственной и муниципальной собственности (за исключением земельных участков автономных учреждений)","913","1 14 06000 00 0000 430",{"$f":"D51","v":69.3}]
["Доходы от продажи земельных участков, государственная собственность на которые не разграничена и которые расположены в границах поселений","913","1 14 06013 10 0000 430",69.3]
["ШТРАФЫ, САНКЦИИ, ВОЗМЕЩЕНИЕ УЩЕРБА","000","1 16 00000 00 0000 000",{"$f":"D53+D54+D55+D59+D63+D62","v":512.5}]
["Денежные взыскания (штрафы) за нарушение законодательства о налогах и сборах","182","1 16 03000 01 0000 140",39]
["Денежные взыскания (штрафы) за административные правонарушения в области государственного регулирования производства и оборота этилового спирта, алкогольной и спиртосодержащей продукции","000","1 16 08000 01 0000 140",3.2]
["Денежные взыскания (штрафы) за нарушение законодательства о недрах, об особо охраняемых природных территориях, об охране и использовании животного мира, об экологической экспертизе, в области охраны окружающей среды, земельного законодательства","000","1 16 25000 01 0000 140",{"$f":"D57+D58+D56","v":37}]
["Денежные взыскания (штрафы) за нарушение законодательства о недрах","000","1 16 25010 01 6000 140",1]
["Денежные взыскания (штрафы) за нарушение законодательства об охране и использовании животного мира","815","1 16 25030 01 6000 140",35]
["Денежные взыскания (штрафы) за нарушение земельного законодательства","081","1 16 25060 01 6000 140",1]
["Денежные взыскания (штрафы) за правонарушения в области дорожного движения","000","1 16 30000 01 0000 140",{"$f":"D60+D61","v":31.7}]
["Денежные взыскания (штрафы) за административные правонарушения в области дорожного движения","188","1 16 30014 01 0000 140",2.7]
["Прочие денежные взыскания (штрафы) за административные правонарушения в области дорожного движения","188","1 16 30030 01 0000 140",29]
["Денежные взыскания (штрафы) за нарушение законодательства РФ об административных правонарушениях, предусмотренные статьей 20.25 Кодекса РФ об административных правонарушений","188","1 16 43000 01 0000 140",2.2000000000000002]
["Прочие поступления от денежных взысканий (штрафов) и иных сумм в возмещение ущерба, зачисляемые в бюджеты муниципальных районов","000","1 16 90050 05 0000 140",{"$f":"D64+D65+D66+D67+D68+D69+D70","v":399.4}]
["Прочие поступления от денежных взысканий (штрафов) и иных сумм в возмещение ущерба, зачисляемые в бюджеты муниципальных районов","081","1 16 90050 05 0000 140",15]
["Прочие поступления от денежных взысканий (штрафов) и иных сумм в возмещение ущерба, зачисляемые в бюджеты муниципальных районов","177","1 16 90050 05 0000 140",38]
["Прочие поступления от денежных взысканий (штрафов) и иных сумм в возмещение ущерба, зачисляемые в бюджеты муниципальных районов","188","1 16 90050 05 0000 140",59]
["Прочие поступления от денежных взысканий (штрафов) и иных сумм в возмещение ущерба, зачисляемые в бюджеты муниципальных районов","192","1 16 90050 05 0000 140",170]
["Прочие поступления от денежных взысканий (штрафов) и иных сумм в возмещение ущерба, зачисляемые в бюджеты муниципальных районов","415","1 16 90050 05 0000 140",60]
["Прочие поступления от денежных взысканий (штрафов) и иных сумм в возмещение ущерба, зачисляемые в бюджеты муниципальных районов","809","1 16 90050 05 0000 140",50]
["Прочие поступления от денежных взысканий (штрафов) и иных сумм в возмещение ущерба, зачисляемые в бюджеты муниципальных районов","917","1 16 90050 05 0000 140",7.4]
["ПРОЧИЕ НЕНАЛОГОВЫЕ ДОХОДЫ","000","1 17 00000 00 0000 000",{"$f":"D72+D73","v":300}]
["Невыясненные поступления","000","1 17 01000 00 0000 180",0]
["Прочие неналоговые доходы","000","1 17 05000 00 0000 180",300]
["БЕЗВОЗМЕЗДНЫЕ ПОСТУПЛЕНИЯ","000","2 00 00000 00 0000 000",{"$f":"D75+D124+D126","v":393504.89999999997}]
["БЕЗВОЗМЕЗДНЫЕ ПОСТУПЛЕНИЯ ИЗ ДРУГИХ БЮДЖЕТОВ БЮДЖЕТНОЙ СИСТЕМЫ РФ","000","2 02 00000 00 0000 151",{"$f":"D76+D79+D95+D111","v":393504.89999999997}]
["ДОТАЦИИ БЮДЖЕТАМ МУНИЦИПАЛЬНЫХ ОБРАЗОВАНИЙ","000","2 02 01000 00 0000 151",{"$f":"D77+D78","v":124989}]
["Дотации муниципальным районам на выравнивание уровня бюджетной  обеспеченности","910","2 02 01001 05 0000 151",124989]
["Дотации муниципальным районам на поддержку мер  по обеспечению сбалансированности  бюджетов","910","2 02 01003 05 0000 151",0]
["СУБСИДИИ БЮДЖЕТАМ МУНИЦИПАЛЬНЫХ ОБРАЗОВАНИЙ","000","2 02 02000 00 0000 151",{"$f":"D80+D81+D82+D83","v":11377.1}]
["Федеральная программа \"Молодым семьям - доступное жилье на 2005-2019 годы\"","917","2 02 02051 05 0000 151",0]
["Долгосрочная целевая программа \"Энергосбережение и повышение энергетической эффективности на территории Иркутской области на 2011-2015 годы и на период до 2020 года","910","2 02 02150 05 0000 151",0]
["Областная государственная социальная программа \"Молодым семьям- доступное жилье\" на 2005-2019 годы\"","917","2 02 02008 05 0000 151",0]
["Прочие субсидии","000","2 02 02999 05 0000 151",{"$f":"D84+D85+D86+D87+D88+D89+D91+D92+D94+D93","v":11377.1}]
["Субсидии на выплату заработной платы с начислениями на нее педагогическим работникам муниципальных дошкольных образовательных учреждений","907","2 02 02999 05 0000 151",2005.1]
["Субсидия за счет средств долгосрочной целевой программы Иркутской области \"Повышение эффективности бюджетных расходов Иркутской области на 2011-2013 годы\"","910","2 02 02999 05 0000 151",9372]
["Погашение кредиторской задолженности учреждений, находящихся в ведении органов местного самоуправления муниципальных образований Иркутской области, по страховым взносам на обязательное пенсионное страхование, сложившейся за период с 1 января 2002 года до 31 декабря 2009 года, и по страховым взносам на обязательное пенсионное страхование, обязательное медицинское страхование и обязательное социальное страхование на случай временной нетрудоспособности и в связи с материнством за период 2010-2011 годы, а также пеней и штрафов, начисленных на задолженность 2010-2011 годов","910","2 02 02999 05 0000 151",0]
["Погашение реструктуризированной кредиторской задолженности учреждений, находящихся в ведении органов местного самоуправления муниципальных образований Иркутской области, по страховым взносам на обязательное пенсионное страхование, сложившейся за период с 1 января 2002 года до 31 декабря 2009 года, и по страховым взносам на обязательное пенсионное страхование, обязательное медицинское страхование и обязательное социальное страхование на случай временной нетрудоспособности и в связи с материнством за период 2010-2011 годы, а также пеней и штрафов, начисленных на задолженность 2010-2011 годов","910","2 02 02999 05 0000 151",0]
["Долгосрочная целевая программа \"Социальное развитие села Иркутской области на 2011-2014 годы\"","907","2 02 02999 05 0000 151"]
["Долгосрочная целевая программа Иркутской области \"100 модельных домов культуры Приангарью\" на 2011-2014 годы","917","2 02 02999 05 0000 151",0]
[]
["Долгосрочная целевая программа  Иркутской области «Организация и обеспечение отдыха и оздоровления детей в Иркутской области на 2012-2014 годы» ","907","2 02 02999 05 0000 151",0]
["Долгосрочная целевая программа поддержки и развития учреждений дошкольного образования в Иркутской области  на 2009-2014 годы» ","907","2 02 02999 05 0000 151",0]
["Долгосрочная целевая программа «Поддержка и развитие малого и среднего предпринимательства в Иркутской области» на 2011-2012 годы (за счет федерального бюджета)","917","2 02 02999 05 0000 151",0]
["Долгосрочная целевая программа «Поддержка и развитие малого и среднего предпринимательства в Иркутской области» на 2011-2012 годы (за счет областного бюджета)","917","2 02 02999 05 0000 151",0]
["СУБВЕНЦИИ БЮДЖЕТАМ МУНИЦИПАЛЬНЫХ ОБРАЗОВАНИЙ","000","2 02 03000 00 0000 151",{"$f":"D97+D98+D99+D101+D102+D103+D104+D105+D106+D107+D108+D109","v":256144.5}]
["Субвенции бюджетам муниципальных районов на осуществление полномочий по подготовке проведения статистических переписей","917","2 02 03002 05 0000 151"]
["Субвенции бюджетам  муниципальных районов на составление списков кандидатов в присяжные заседатели федеральных судов общей юрисдикции в Российской Федерации","917","2 02 03007 05 0000 151",0]
["Субвенции бюджетам на ежемесячное денежное вознаграждение за классное руководство","907","2 02 03021 05 0000 151",0]
["Субвенции бюджетам муниципальных образований на предоставление гражданам субсидий на оплату жилого помещения и коммунальных услуг","918","2 02 03022 05 0000 151",7534.2]
["Субвенции местным бюджетам на выполнение переданных полномочий субъектов РФ","000","2 02 03024 05 0000 151",{"$f":"D101+D102+D103+D104+D105+D106","v":10028.799999999999}]
["Хранение, комплектование,  учет и использование архивных документов, относящихся к областной государственной собственности","917","2 02 03024 05 0000 151",1086]
["Государственные    полномочия в области охраны труда","917","2 02 03024 05 0000 151",563.6]
["Определение персонального состава и обеспечение деятельности районных (городских), районных в городах комиссий по делам несовершеннолетних и защите их прав","917","2 02 03024 05 0000 151",1078.0999999999999]
["Лицензирование розничной продажи алкогольной продукции","917","2 02 03024 05 0000 151",375.7]
["Определение персонального состава и обеспечение деятельности административных комиссий","917","2 02 03024 05 0000 151",563.6]
[" Предоставление мер социальной поддержки многодетным и малоимущим семьям","907","2 02 03024 05 0000 151",6361.8]
["Субвенции бюджетам муниципальных районов на обеспечение жилыми помещениями детей-сирот, детей, оставшихся без попечения родителей, а также детей, находящихся под опекой (попечительством), не имеющих закрепленного жилого помещения","913","2 02 03026 05 0000 151",0]
["Субвенции бюджетам муниципальных районов на обеспечение жилыми помещениями детей-сирот, детей, оставшихся без попечения родителей, а также детей, находящихся под опекой (попечительством), не имеющих закрепленного жилого помещения (федер.)","913","2 02 03026 05 0000 151",0]
["Прочие субвенции","000","2 02 03999 05 0000 151",{"$f":"D110","v":238581.5}]
["Субвенция на обеспечение государственных гарантий прав граждан на получение общедоступного и бесплатного дошкольного, начального общего, основного общего, среднего (полного) общего образования, а также дополнительного образования в общеобразовательных учреждениях","907","2 02 03999 05 0000 151",238581.5]
["ИНЫЕ МЕЖБЮДЖЕТНЫЕ ТРАНСФЕРТЫ","000","2 02 04000 00 0000 151",{"$f":"D112+D117+D118+D122","v":994.3}]
["Межбюджетные трансферты, передаваемые бюджетам муниципальных районов из бюджетов поселений на осуществление части полномочий по решению вопросов местного значения в соответствии с заключенными соглашениями","000","2 02 04014 05 0000 151",{"$f":"D113+D114+D115+D116","v":0}]
["Межбюджетные трансферты, передаваемые бюджетам муниципальных районов из бюджетов поселений на осуществление части полномочий по решению вопросов местного значения в соответствии с заключенными соглашениями","910","2 02 04014 05 0000 151",0]
["Межбюджетные трансферты, передаваемые бюджетам муниципальных районов из бюджетов поселений на осуществление части полномочий по решению вопросов местного значения в соответствии с заключенными соглашениями (правила землепользования)","918","2 02 04014 05 0000 151",0]
["Межбюджетные трансферты, передаваемые бюджетам муниципальных районов из бюджетов поселений на осуществление части полномочий по решению вопросов местного значения в соответствии с заключенными соглашениями (генплан 5%)","918","2 02 04014 05 0000 151",0]
["Межбюджетные трансферты, передаваемые бюджетам муниципальных районов из бюджетов поселений на осуществление части полномочий по решению вопросов местного значения в соответствии с заключенными соглашениями (генплан )","918","2 02 04014 05 0000 151",0]
["Межбюджетные трансферты, передаваемые бюджетам муниципальных районов на комплектование книжных фондов библиотек муниципальных образований (областной бюджет)","910","2 02 04025 05 0000 151",162.69999999999999]
["Межбюджетные трансферты, передаваемые бюджетам муниципальных районов на комплектование книжных фондов библиотек муниципальных образований (федеральный бюджет)","910","2 02 04025 05 0000 151",303.60000000000002]
["Прочие межбюджетные трансферты, передаваемые бюджетам муниципальных районов","000","2 02 04999 05 0000 151"]
["Дотации на возмещ.расходов местных бюджетов в связи с предоставлением льгот по оплате жилого помещения и коммунальных услуг педагогическим работникам, проживающим в сельской местности, рабочих поселках (пгт) и работающим в муниц.образоват.учреждениях","907","2 02 04999 05 0000 151"]
["Межбюджетные трансферты в целях финансовой поддержки муниципальных образований Иркутской области, осуществляющих эффективное управление бюджетными средствами ","910","2 02 04999 05 0000 151"]
["ПРОЧИЕ МЕЖБЮДЖЕТНЫЕ ТРАНСФЕРТЫ","000","2 02 04999 00 0000 151",{"$f":"D123","v":528}]
["Исполнение судебных актов, вступивших в силу до 1 января 2013 года, по обеспечению жилыми помещениями детей-сирот и детей, оставшихся без попечения родителей, лиц из числа детей-сирот и детей, оставшихся без попечения родителей, не имеющих закрепленного жилого помещения","913","2 02 04999 05 0000 151",528]
["ПРОЧИЕ БЕЗВОЗМЕЗДНЫЕ ПОСТУПЛЕНИЯ","000","2 07 00000 00 0000 180",{"$f":"D125","v":0}]
["Прочие безвозмездные поступления в бюджеты муниципальных районов","000","2 07 05000 05 0000 180",0]
["ВОЗВРАТ ОТСТАКОВ СУБСИДИЙ И СУБВЕНЦИЙ","000","2 19 00000 00 0000 000",{"$f":"D127","v":0}]
["Возврат остатков субсидий и субвенций из бюджетов муниципальных районов","910","2 19 05000 05 0000 180",0]
["ИТОГО ДОХОДОВ","000","8 50 00000 00 0000 000",{"$f":"D74+D8","v":474741.82999999996}]
[]
["Начальник финансового управления",null,"Ю.Н. Гайдук"]

{"sheet":"прил 2 (2014-2015 доходы)","index":1,"n_rows":132,"n_cols":5,"rows_kept":132,"cut":false,"hidden":false,"merged":[[68,5,68,10],[4,0,4,4],[6,0,7,0],[6,1,6,2],[6,3,6,4],[66,5,66,14]]}
[]
[]
[]
[]
["Прогнозируемые доходы бюджета Черемховского районного муниципального образования на плановый период 2014 и 2015 годов "]
[{"$nulls":4},"(тыс. рублей)"]
["Наименование","Код бюджетной классификации",null,"Сумма"]
[null,"главного администратора доходов","доходов районного бюджета",2014,2015]
["НАЛОГОВЫЕ И НЕНАЛОГОВЫЕ ДОХОДЫ","000","1 00 00000 00 0000 000",{"$f":"D10+D15+D25+D29+D32+D37+D42+D49+D54+D73","v":83091.985000000001},86325.15]
["НАЛОГИ НА ПРИБЫЛЬ, ДОХОДЫ","182","1 01 00000 00 0000 000",{"$f":"D11+D12+D13+D14","v":52624.9},55203.5]
["Налог на доходы физических лиц с доходов, источником которых является налоговый агент, за исключением доходов, в отношении которых исчисление и уплата налога осуществляются в соответствии со статьями 227,227¹ и 228 Налогового кодекса Российской Федерации","182","1 01 02010 01 0000 110",52426.8,54995.7]
["Налог на доходы физических лиц с доходов, полученных от осуществления деятельности физическими лицами,зарегистрированными в качестве индивидуальных предпринимателей,нотариусов,занимающихся частной практикой,адвокатов,учредивших адвокатские кабинеты и других лиц, занимающихся частной практикой","182","1 01 02020 01 0000 110",55.9,58.6]
["Налог на доходы физических лиц с доходов,  полученных физическими лицами, не являющимися налоговыми резидентами ","182","1 01 02030 01 0000 110",138.5,145.30000000000001]
["Налог на доходы физических лиц в виде фиксированных авансовых платежей с доходов, полученных физическими лицами, являющимися иностранными гражданами, осуществляющими трудовую деятельность по найму у физических лиц на основании патента ","182","1 01 02040 01 0000 110",3.7,3.9]
["НАЛОГИ НА СОВОКУПНЫЙ ДОХОД","182","1 05 00000 00 0000 000",{"$f":"D16+D23+D24","v":9656},10130]
["Налог, взимаемый в связи с применением упрощенной системы налогообложения ","182","1 05 01000 00 0000 110",{"$f":"D17+D18+D19+D20+D21","v":3966},4161]
["Налог, взимаемый с налогоплательщиков, выбравших в качестве объекта налогообложения  доходы","182","1 05 01010 01 0000 110",1564.3,1641]
["Налог, взимаемый с налогоплательщиков, выбравших в качестве объекта налогообложения доходы, уменьшенные на величину расходов","182","1 05 01020 01 0000 110",1620,1700]
["Налог, взимаемый с налогоплательщиков, выбравших в качестве объекта налогообложения доходы, уменьшенные на величину расходов (за налоговые периоды, истекшие до 1 января 2011 года)","182","1 05 01022 01 0000 110",111.7,117]
["Налог, взимаемый в виде стоимости патента в связи с применением упрощенной системы налогооблажения ","182","1 05 01041 02 0000 110",0,0]
["Минимальный налог, зачисляемый в бюджеты субьектов РФ","182","1 05 01050 01 0000 110",670,703]
["Налог, взимаемый в связи с применением патентной системы налогообложения","182"]
["Единый налог на вмененный доход для отдельных видов деятельности","182","1 05 02000 02 0000 110",5586,5860]
["Единый сельскохозяйственный налог ","182","1 05 03000 01 0000 110",104,109]
["ГОСУДАРСТВЕННАЯ ПОШЛИНА","000","1 08 00000 00 0000 000",{"$f":"D26+D27+D28","v":1044},1080]
["Государственная пошлина по делам, рассматриваемым в судах общей юрисдикции, мировыми судьями (за исключением Верховного Суда Российской Федерации)","182","1 08 03010 01 0000 110",324,340]
["Государственная пошлина за совершение действий, связанных с лицензированием, с проведением аттестации в случаях, если такая аттестация предусмотрена законодательством Российской Федерации, зачисляемая в бюджеты муниципальных районов","917","1 08 07084 01 1000 110",720,740]
["Государственная пошлина за государственную регистрацию транспортных средств и иные юридически значимые действия, связанные с изменениями и выдачей документов на транспортные средства, выдачей регистрационных знаков, приемом квалификационных экзаменов на получение права на управление транспортными средствами","000","1 08 07141 01 0000 110"]
["ЗАДОЛЖЕННОСТЬ И ПЕРЕРАСЧЕТЫ ПО ОТМЕНЕННЫМ НАЛОГАМ, СБОРАМ И ИНЫМ ОБЯЗАТЕЛЬНЫМ ПЛАТЕЖАМ","182","1 09 00000 00 0000 000",{"$f":"D30+D31","v":1},1]
["Налог на имущество предприятий","182","1 09 04010 02 0000 110",0.5,0.5]
["Налог с продаж","182","1 09 06010 02 0000 110",0.5,0.5]
["ДОХОДЫ ОТ ИСПОЛЬЗОВАНИЯ ИМУЩЕСТВА, НАХОДЯЩЕГОСЯ В ГОСУДАРСТВЕННОЙ И МУНИЦИПАЛЬНОЙ СОБСТВЕННОСТИ","000","1 11 00000 00 0000 000",{"$f":"D33+D36","v":10464.5},10451.5]
["Доходы, получаемые в виде арендной  платы за земельные участки,государственная собственность на которые не разграничена и которые расположеныв границах поселений, а также средства от продажи права на заключение договоров аренды указанных земельных участков","000","1 11 05013 10 0000 120",{"$f":"D34+D35","v":5464.5},5351.5]
["Доходы, получаемые в виде арендной платы за земельные участки, государственная собственность на которые не разграничена и которые расположены в границах поселений, а также средства от продажи права на заключение договоров аренды указанных земельных участков","913","1 11 05013 10 0000 120",4714.5,4601.5]
["Доходы, получаемые в виде арендной  платы за земельные участки,государственная собственность на которые не разграничена и которые расположеныв границах поселений, а также средства от продажи права на заключение договоров аренды указанных земельных участков","950","1 11 05013 10 0000 120",750,750]
["Доходы от сдачи в аренду имущества, находящегося в оперативном управлении органов управления муниципальных районов и созданных ими учреждений (за исключением имущества муниципальных автономных учреждений)","913","1 11 05035 05 0000 120",5000,5100]
["ПЛАТЕЖИ ПРИ ПОЛЬЗОВАНИИ ПРИРОДНЫМИ РЕСУРСАМИ","048","1 12 00000 00 0000 000",{"$f":"D38","v":186.285},193.75]
["Плата за негативное воздействие на окружающую среду","048","1 12 01000 01 0000 120",{"$f":"D39+D40+D41","v":186.285},193.75]
["Плата за выбросы загрязняющих веществ в атмосферный воздух стационарными объектами ","048","1 12 01010 01 0000 120",98.69,102.645]
["Плата за выбросы загрязняющих веществ в атмосферный воздух передвижными объектами","048","1 12 01020 01 0000 120",18.645,19.395]
["Плата за размещение отходов производства и потребления","048","1 12 01040 01 0000 120",68.95,71.709999999999994]
["ДОХОДЫ ОТ ОКАЗАНИЯ ПЛАТНЫХ УСЛУГ И КОМПЕНСАЦИИ ЗАТРАТ ГОСУДАРСТВА","000","1 13 00000 00 0000 000",{"$f":"D43+D44","v":7680},7808]
["Прочие доходы от оказания платных услуг (работ) получателями средств бюджетов муниципальных районов","907","113 01995 05 0000 130",7345,7450]
["Прочие доходы от оказания платных услуг (работ) получателями средств бюджетов муниципальных районов ","904","113 01995 05 0000 130",{"$f":"D45+D46+D47+D48","v":335},358]
["Прочие доходы от оказания платных услуг (работ) получателями средств бюджетов муниципальных районов (МКУК МКЦ АЧРМО)","000","113 01995 05 0000 130",60,65]
["Прочие доходы от оказания платных услуг (работ) получателями средств бюджетов муниципальных районов (МКУК РИК МУЗЕЙ)","000","113 01995 05 0000 130",22,23]
["Прочие доходы от оказания платных услуг (работ) получателями средств бюджетов муниципальных районов (МКУК МБЧР)","000","113 01995 05 0000 130",28,43]
["Прочие доходы от оказания платных услуг (работ) получателями средств бюджетов муниципальных районов (МКОУ ДОД ДШИ)","000","113 01995 05 0000 130",225,227]
["ДОХОДЫ ОТ ПРОДАЖИ МАТЕРИАЛЬНЫХ И НЕМАТЕРИАЛЬНЫХ АКТИВОВ","913","1 14 00000 00 0000 000",{"$f":"D50+D52","v":601},601.5]
["Доходы от реализации имущества, находящегося в государственной и муниципальной собственности (за исключением имущества автономных учреждений, а также имущества государственных и муниципальных унитарных предприятий, в том числе казенных)","913","1 14 02000 00 0000 000",{"$f":"D51","v":500},500]
["Доходы от реализации иного имущества, находящегося в собственности муниципальных районов (за исключением имущества муниципальных автономных учреждений, а также имущества муниципальных унитарных предприятий, в том числе казенных), в части реализации основных средств по указанному имуществу","913","1 14 02053 05 0000 410",500,500]
["Доходы от продажи земельных участков, находящихся в  государственной и муниципальной собственности (за исключением земельных участков автономных учреждений)","913","1 14 06000 00 0000 430",{"$f":"D53","v":101},101.5]
["Доходы от продажи земельных участков, государственная собственность на которые не разграничена и которые расположены в границах поселений","913","1 14 06013 10 0000 430",101,101.5]
["ШТРАФЫ, САНКЦИИ, ВОЗМЕЩЕНИЕ УЩЕРБА","000","1 16 00000 00 0000 000",{"$f":"D55+D56+D57+D61+D65+D64","v":534.29999999999995},555.9]
["Денежные взыскания (штрафы) за нарушение законодательства о налогах и сборах","182","1 16 03000 01 0000 140",41,43]
["Денежные взыскания (штрафы) за административные правонарушения в области государственного регулирования производства и оборота этилового спирта, алкогольной и спиртосодержащей продукции","182","1 16 08000 01 0000 140",3.4,3.6]
["Денежные взыскания (штрафы) за нарушение законодательства о недрах, об особо охраняемых природных территориях, об охране и использовании животного мира, об экологической экспертизе, в области охраны окружающей среды, земельного законодательства","000","1 16 25000 01 0000 140",{"$f":"D59+D60+D58","v":38},38]
["Денежные взыскания (штрафы) за нарушение законодательства о недрах","000","1 16 25010 01 6000 140",1,1]
["Денежные взыскания (штрафы) за нарушение законодательства об охране и использовании животного мира","815","1 16 25030 01 6000 140",35,35]
["Денежные взыскания (штрафы) за нарушение земельного законодательства","081","1 16 25060 01 6000 140",2,2]
["Денежные взыскания (штрафы) за правонарушения в области дорожного движения","188","1 16 30000 01 0000 140",{"$f":"D62+D63","v":33.799999999999997},35.9]
["Денежные взыскания (штрафы) за административные правонарушения в области дорожного движения","188","1 16 30014 01 0000 140",2.8,2.9]
["Прочие денежные взыскания (штрафы) за административные правонарушения в области дорожного движения","188","1 16 30030 01 0000 140",31,33]
["Денежные взыскания (штрафы) за нарушение законодательства РФ об административных правонарушениях, предусмотренные статьей 20.25 Кодекса РФ об административных правонарушений","188","1 16 43000 01 0000 140",2.2999999999999998,2.4]
["Прочие поступления от денежных взысканий (штрафов) и иных сумм в возмещение ущерба, зачисляемые в бюджеты муниципальных районов","000","1 16 90050 05 0000 140",{"$f":"D66+D67+D68+D69+D70+D71+D72","v":415.8},433]
["Прочие поступления от денежных взысканий (штрафов) и иных сумм в возмещение ущерба, зачисляемые в бюджеты муниципальных районов","081","1 16 90050 05 0000 140",15,15]
["Прочие поступления от денежных взысканий (штрафов) и иных сумм в возмещение ущерба, зачисляемые в бюджеты муниципальных районов","177","1 16 90050 05 0000 140",40,42]
["Прочие поступления от денежных взысканий (штрафов) и иных сумм в возмещение ущерба, зачисляемые в бюджеты муниципальных районов","188","1 16 90050 05 0000 140",62,65]
["Прочие поступления от денежных взысканий (штрафов) и иных сумм в возмещение ущерба, зачисляемые в бюджеты муниципальных районов","192","1 16 90050 05 0000 140",178,187]
["Прочие поступления от денежных взысканий (штрафов) и иных сумм в возмещение ущерба, зачисляемые в бюджеты муниципальных районов","415","1 16 90050 05 0000 140",63,66]
["Прочие поступления от денежных взысканий (штрафов) и иных сумм в возмещение ущерба, зачисляемые в бюджеты муниципальных районов","809","1 16 90050 05 0000 140",50,50]
["Прочие поступления от денежных взысканий (штрафов) и иных сумм в возмещение ущерба, зачисляемые в бюджеты муниципальных районов","917","1 16 90050 05 0000 140",7.8,8]
["ПРОЧИЕ НЕНАЛОГОВЫЕ ДОХОДЫ","000","1 17 00000 00 0000 000",{"$f":"D74+D75","v":300},300]
["Невыясненные поступления","000","1 17 01000 00 0000 180",0,0]
["Прочие неналоговые доходы","000","1 17 05000 00 0000 180",300,300]
["БЕЗВОЗМЕЗДНЫЕ ПОСТУПЛЕНИЯ","000","2 00 00000 00 0000 000",{"$f":"D77+D126+D128","v":375679.10000000003},{"$f":"E77+E126+E128","v":380999.60000000003}]
["БЕЗВОЗМЕЗДНЫЕ ПОСТУПЛЕНИЯ ИЗ ДРУГИХ БЮДЖЕТОВ БЮДЖЕТНОЙ СИСТЕМЫ РФ","000","2 02 00000 00 0000 151",{"$f":"D78+D81+D97+D113","v":375679.10000000003},{"$f":"E78+E81+E97+E113","v":380999.60000000003}]
["ДОТАЦИИ БЮДЖЕТАМ МУНИЦИПАЛЬНЫХ ОБРАЗОВАНИЙ","000","2 02 01000 00 0000 151",{"$f":"D79+D80","v":116683},121629]
["Дотации муниципальным районам на выравнивание уровня бюджетной  обеспеченности","910","2 02 01001 05 0000 151",116683,121629]
["Дотации муниципальным районам на поддержку мер  по обеспечению сбалансированности  бюджетов","910","2 02 01003 05 0000 151",0,0]
["СУБСИДИИ БЮДЖЕТАМ МУНИЦИПАЛЬНЫХ ОБРАЗОВАНИЙ","000","2 02 02000 00 0000 151",{"$f":"D82+D83+D84+D85","v":2005.1},2005.1]
["Федеральная программа \"Молодым семьям - доступное жилье на 2005-2019 годы\"","917","2 02 02051 05 0000 151",0,0]
["Долгосрочная целевая программа \"Энергосбережение и повышение энергетической эффективности на территории Иркутской области на 2011-2015 годы и на период до 2020 года","910","2 02 02150 05 0000 151",0,0]
["Областная государственная социальная программа \"Молодым семьям- доступное жилье\" на 2005-2019 годы\"","917","2 02 02008 05 0000 151",0,0]
["Прочие субсидии","000","2 02 02999 05 0000 151",{"$f":"D86+D87+D88+D89+D90+D91+D93+D94+D96+D95","v":2005.1},{"$f":"E86+E87+E88+E89+E90+E91+E93+E94+E96+E95","v":2005.1}]
["Субсидии на выплату заработной платы с начислениями на нее педагогическим работникам муниципальных дошкольных образовательных учреждений","907","2 02 02999 05 0000 151",2005.1,2005.1]
["Субсидия за счет средств долгосрочной целевой программы Иркутской области \"Повышение эффективности бюджетных расходов Иркутской области на 2011-2013 годы\"","910","2 02 02999 05 0000 151",0,0]
["Погашение кредиторской задолженности учреждений, находящихся в ведении органов местного самоуправления муниципальных образований Иркутской области, по страховым взносам на обязательное пенсионное страхование, сложившейся за период с 1 января 2002 года до 31 декабря 2009 года, и по страховым взносам на обязательное пенсионное страхование, обязательное медицинское страхование и обязательное социальное страхование на случай временной нетрудоспособности и в связи с материнством за период 2010-2011 годы, а также пеней и штрафов, начисленных на задолженность 2010-2011 годов","910","2 02 02999 05 0000 151",0,0]
["Погашение реструктуризированной кредиторской задолженности учреждений, находящихся в ведении органов местного самоуправления муниципальных образований Иркутской области, по страховым взносам на обязательное пенсионное страхование, сложившейся за период с 1 января 2002 года до 31 декабря 2009 года, и по страховым взносам на обязательное пенсионное страхование, обязательное медицинское страхование и обязательное социальное страхование на случай временной нетрудоспособности и в связи с материнством за период 2010-2011 годы, а также пеней и штрафов, начисленных на задолженность 2010-2011 годов","910","2 02 02999 05 0000 151",0,0]
["Долгосрочная целевая программа \"Социальное развитие села Иркутской области на 2011-2014 годы\"","907","2 02 02999 05 0000 151"]
["Долгосрочная целевая программа Иркутской области \"100 модельных домов культуры Приангарью\" на 2011-2014 годы","917","2 02 02999 05 0000 151",0,0]
[]
["Долгосрочная целевая программа  Иркутской области «Организация и обеспечение отдыха и оздоровления детей в Иркутской области на 2012-2014 годы» ","907","2 02 02999 05 0000 151",0,0]
["Долгосрочная целевая программа поддержки и развития учреждений дошкольного образования в Иркутской области  на 2009-2014 годы» ","907","2 02 02999 05 0000 151",0,0]
["Долгосрочная целевая программа «Поддержка и развитие малого и среднего предпринимательства в Иркутской области» на 2011-2012 годы (за счет федерального бюджета)","917","2 02 02999 05 0000 151",0,0]
["Долгосрочная целевая программа «Поддержка и развитие малого и среднего предпринимательства в Иркутской области» на 2011-2012 годы (за счет областного бюджета)","917","2 02 02999 05 0000 151",0,0]
["СУБВЕНЦИИ БЮДЖЕТАМ МУНИЦИПАЛЬНЫХ ОБРАЗОВАНИЙ","000","2 02 03000 00 0000 151",{"$f":"D99+D100+D101+D103+D104+D105+D106+D107+D108+D109+D110+D111","v":256524.7},{"$f":"E99+E100+E101+E103+E104+E105+E106+E107+E108+E109+E110+E111","v":256899.20000000001}]
["Субвенции бюджетам муниципальных районов на осуществление полномочий по подготовке проведения статистических переписей","917","2 02 03002 05 0000 151"]
["Субвенции бюджетам  муниципальных районов на составление списков кандидатов в присяжные заседатели федеральных судов общей юрисдикции в Российской Федерации","917","2 02 03007 05 0000 151",0,0]
["Субвенции бюджетам на ежемесячное денежное вознаграждение за классное руководство","907","2 02 03021 05 0000 151",0,0]
["Субвенции бюджетам муниципальных образований на предоставление гражданам субсидий на оплату жилого помещения и коммунальных услуг","918","2 02 03022 05 0000 151",7885.8,8234.4]
["Субвенции местным бюджетам на выполнение переданных полномочий субъектов РФ","000","2 02 03024 05 0000 151",{"$f":"D103+D104+D105+D106+D107+D108","v":10057.4},{"$f":"E103+E104+E105+E106+E107+E108","v":10083.299999999999}]
["Хранение, комплектование,  учет и использование архивных документов, относящихся к областной государственной собственности","917","2 02 03024 05 0000 151",1086,1086]
["Государственные    полномочия в области охраны труда","917","2 02 03024 05 0000 151",563.6,563.6]
["Определение персонального состава и обеспечение деятельности районных (городских), районных в городах комиссий по делам несовершеннолетних и защите их прав","917","2 02 03024 05 0000 151",1078.0999999999999,1078.0999999999999]
["Лицензирование розничной продажи алкогольной продукции","917","2 02 03024 05 0000 151",404.3,430.2]
["Определение персонального состава и обеспечение деятельности административных комиссий","917","2 02 03024 05 0000 151",563.6,563.6]
[" Предоставление мер социальной поддержки многодетным и малоимущим семьям","907","2 02 03024 05 0000 151",6361.8,6361.8]
["Субвенции бюджетам муниципальных районов на обеспечение жилыми помещениями детей-сирот, детей, оставшихся без попечения родителей, а также детей, находящихся под опекой (попечительством), не имеющих закрепленного жилого помещения","913","2 02 03026 05 0000 151",0,0]
["Субвенции бюджетам муниципальных районов на обеспечение жилыми помещениями детей-сирот, детей, оставшихся без попечения родителей, а также детей, находящихся под опекой (попечительством), не имеющих закрепленного жилого помещения (федер.)","913","2 02 03026 05 0000 151",0,0]
["Прочие субвенции","000","2 02 03999 05 0000 151",{"$f":"D112","v":238581.5},238581.5]
["Субвенция на обеспечение государственных гарантий прав граждан на получение общедоступного и бесплатного дошкольного, начального общего, основного общего, среднего (полного) общего образования, а также дополнительного образования в общеобразовательных учреждениях","907","2 02 03999 05 0000 151",238581.5,238581.5]
["ИНЫЕ МЕЖБЮДЖЕТНЫЕ ТРАНСФЕРТЫ","000","2 02 04000 00 0000 151",{"$f":"D114+D119+D120+D124","v":466.3},{"$f":"E114+E119+E120+E124","v":466.3}]
["Межбюджетные трансферты, передаваемые бюджетам муниципальных районов из бюджетов поселений на осуществление части полномочий по решению вопросов местного значения в соответствии с заключенными соглашениями","000","2 02 04014 05 0000 151",{"$f":"D115+D116+D117+D118","v":0},0]
["Межбюджетные трансферты, передаваемые бюджетам муниципальных районов из бюджетов поселений на осуществление части полномочий по решению вопросов местного значения в соответствии с заключенными соглашениями","910","2 02 04014 05 0000 151",0,0]
["Межбюджетные трансферты, передаваемые бюджетам муниципальных районов из бюджетов поселений на осуществление части полномочий по решению вопросов местного значения в соответствии с заключенными соглашениями (правила землепользования)","918","2 02 04014 05 0000 151",0,0]
["Межбюджетные трансферты, передаваемые бюджетам муниципальных районов из бюджетов поселений на осуществление части полномочий по решению вопросов местного значения в соответствии с заключенными соглашениями (генплан 5%)","918","2 02 04014 05 0000 151",0,0]
["Межбюджетные трансферты, передаваемые бюджетам муниципальных районов из бюджетов поселений на осуществление части полномочий по решению вопросов местного значения в соответствии с заключенными соглашениями (генплан )","918","2 02 04014 05 0000 151",0,0]
["Межбюджетные трансферты, передаваемые бюджетам муниципальных районов на комплектование книжных фондов библиотек муниципальных образований (областной бюджет)","910","2 02 04025 05 0000 151",162.69999999999999,162.69999999999999]
["Межбюджетные трансферты, передаваемые бюджетам муниципальных районов на комплектование книжных фондов библиотек муниципальных образований (федеральный бюджет)","910","2 02 04025 05 0000 151",303.60000000000002,303.60000000000002]
["Прочие межбюджетные трансферты, передаваемые бюджетам муниципальных районов","000","2 02 04999 05 0000 151"]
["Дотации на возмещ.расходов местных бюджетов в связи с предоставлением льгот по оплате жилого помещения и коммунальных услуг педагогическим работникам, проживающим в сельской местности, рабочих поселках (пгт) и работающим в муниц.образоват.учреждениях","907","2 02 04999 05 0000 151"]
["Межбюджетные трансферты в целях финансовой поддержки муниципальных образований Иркутской области, осуществляющих эффективное управление бюджетными средствами ","910","2 02 04999 05 0000 151"]
["ПРОЧИЕ МЕЖБЮДЖЕТНЫЕ ТРАНСФЕРТЫ","000","2 02 04999 00 0000 151",{"$f":"D125","v":0},0]
["Резервные фонды исполнительных органов государственной власти субъектов Российской Федерации","917","2 02 04999 05 0000 151",0,0]
["ПРОЧИЕ БЕЗВОЗМЕЗДНЫЕ ПОСТУПЛЕНИЯ","000","2 07 00000 00 0000 180",{"$f":"D127","v":0},0]
["Прочие безвозмездные поступления в бюджеты муниципальных районов","000","2 07 05000 05 0000 180",0,0]
["ВОЗВРАТ ОТСТАКОВ СУБСИДИЙ И СУБВЕНЦИЙ","000","2 19 00000 00 0000 000",{"$f":"D129","v":0},0]
["Возврат остатков субсидий и субвенций из бюджетов муниципальных районов","910","2 19 05000 05 0000 180",0,0]
["ИТОГО ДОХОДОВ","000","8 50 00000 00 0000 000",{"$f":"D76+D9","v":458771.08500000002},467324.75]
[]
["Начальник финансового управления",null,"Ю.Н. Гайдук"]

{"sheet":"прил3 (админ)","index":2,"n_rows":83,"n_cols":4,"rows_kept":83,"cut":false,"hidden":false,"merged":[[11,2,11,3],[5,0,6,3],[7,0,7,1],[7,2,8,3],[9,2,9,3],[10,2,10,3],[23,2,23,3],[12,2,12,3],[13,2,13,3],[14,2,14,3],[15,2,15,3],[16,2,16,3],[17,2,17,3],[18,2,18,3],[19,2,19,3],[20,2,20,3],[21,2,21,3],[22,2,22,3],[35,2,35,3],[24,2,24,3],[25,2,25,3],[26,2,26,3],[27,2,27,3],[28,2,28,3],[29,2,29,3],[30,2,30,3],[31,2,31,3],[32,2,32,3],[33,2,33,3],[34,2,34,3],[47,2,47,3],[36,2,36,3],[37,2,37,3],[38,2,38,3],[39,2,39,3],[40,2,40,3],[41,2,41,3],[42,2,42,3],[43,2,43,3],[44,2,44,3],[45,2,45,3],[46,2,46,3],[59,2,59,3],[48,2,48,3],[49,2,49,3],[50,2,50,3],[51,2,51,3],[52,2,52,3],[53,2,53,3],[54,2,54,3],[55,2,55,3],[56,2,56,3],[57,2,57,3],[58,2,58,3],[71,2,71,3],[60,2,60,3],[61,2,61,3],[62,2,62,3],[63,2,63,3],[64,2,64,3],[65,2,65,3],[66,2,66,3],[67,2,67,3],[68,2,68,3],[69,2,69,3],[70,2,70,3],[79,2,79,3],[80,2,80,3],[72,2,72,3],[73,2,73,3],[74,2,74,3],[76,2,76,3],[77,2,77,3],[78,2,78,3],[75,2,75,3]]}
[]
[]
[]
[]
[]
["Перечень главных администраторов доходов бюджета Черемховского районного муниципального образования - органов местного самоуправления Черемховского районного муниципального образования"]
[]
["Код бюджетной классификации РФ",null,"Наименование главного администратора доходов районного бюджета"]
["главного администратора доходов","доходов районного бюджета"]
[904,null,"Отдел по культуре и библиотечному обслуживанию администрации Черемховского районного муниципального образования"]
[904,"1 13 01995 05 0000 130","Прочие доходы от оказания платных услуг получателями средств бюджетов муниципальных районов и компенсации затрат бюджетов муниципальных районов"]
[904,"1 17 01050 05 0000 180","Невыясненные поступления, зачисляемые в бюджеты муниципальных районов"]
[904,"1 17 05050 05 0000 180","Прочие неналоговые доходы бюджетов муниципальных районов"]
[904,"2 02 01999 05 0000 151","Прочие дотации бюджетам муниципальных районов"]
[904,"2 02 02999 05 0000 151","Прочие субсидии бюджетам муниципальных районов"]
[904,"2 02 03999 05 0000 151","Прочие субвенции бюджетам муниципальных районов"]
[904,"2 02 04999 05 0000 151","Прочие межбюджетные трансферты, передаваемые бюджетам муниципальных районов"]
[904,"2 07 05000 05 0000 180","Прочие безвозмездные поступления в бюджеты муниципальных районов"]
[907,null,"Отдел образования администрации Черемховского районного муниципального образования"]
[907,"1 13 01995 05 0000 130","Прочие доходы от оказания платных услуг получателями средств бюджетов муниципальных районов и компенсации затрат бюджетов муниципальных районов"]
[907,"1 17 01050 05 0000 180","Невыясненные поступления, зачисляемые в бюджеты муниципальных районов"]
[907,"1 17 05050 05 0000 180","Прочие неналоговые доходы бюджетов муниципальных районов"]
[907,"2 02 01999 05 0000 151","Прочие дотации бюджетам муниципальных районов"]
[907,"2 02 02022 05 0000 151","Субсидии бюджетам муниципальных образований на внедрение инновационных образовательных программ"]
[907,"2 02 02999 05 0000 151","Прочие субсидии бюджетам муниципальных районов"]
[907,"2 02 03021 05 0000 151","Субвенции бюджетам муниципальных районов на ежемесячное денежное вознаграждение за классное руководство"]
[907,"2 02 03024 05 0000 151","Субвенции бюджетам муниципальных районов на выполнение передаваемых полномочий субъектов РФ"]
[907,"2 02 03999 05 0000 151","Прочие субвенции бюджетам муниципальных районов"]
[907,"2 02 04999 05 0000 151","Прочие межбюджетные трансферты, передаваемые бюджетам муниципальных районов"]
[907,"2 07 05000 05 0000 180","Прочие безвозмездные поступления в бюджеты муниципальных районов"]
[910,null,"Финансовое управление Администрации Черемховского районного муниципального образования"]
[910,"1 17 01050 05 0000 180","Невыясненные поступления, зачисляемые в бюджеты муниципальных районов"]
[910,"1 17 05050 05 0000 180","Прочие неналоговые доходы бюджетов муниципальных районов"]
[910,"2 02 01001 05 0000 151","Дотации бюджетам муниципальных районов на выравнивание уровня бюджетной обеспеченности"]
[910,"2 02 01003 05 0000 151","Дотации бюджетам муниципальных районов на поддержку мер по обеспечению сбалансированности бюджетов"]
[910,"2 02 01999 05 0000 151","Прочие дотации бюджетам муниципальных районов"]
[910,"2 02 02008 05 0000 151","Субсидии бюджетам муниципальных районов на обеспечение жильем молодых семей"]
[910,"2 02 02999 05 0000 151","Прочие субсидии бюджетам муниципальных районов"]
[910,"2 02 03999 05 0000 151","Прочие субвенции бюджетам муниципальных районов"]
[910,"2 02 04014 05 0000 151","Межбюджетные трансферты, передаваемые бюджетам муниципальных районов из бюджетов поселений на осуществление части полномочий по решению вопросов местного значения в соответствии с заключенными соглашениями"]
[910,"2 02 04025 05 0000 151","Межбюджетные трансферты, передаваемые бюджетам муниципальных районов на комплектование книжных фондов библиотек муниципальных образований"]
[910,"2 02 04999 05 0000 151","Прочие межбюджетные трансферты, передаваемые бюджетам муниципальных районов"]
[910,"2 07 05000 05 0000 180","Прочие безвозмездные поступления в бюджеты муниципальных районов"]
[910,"2 08 05000 05 0000 180","Перечисления из бюджетов муниципальных районов (в бюджеты муниципальных районов) для осуществления возврата (зачета) излишне уплаченных или излишне взысканных сумм налогов, сборов и иных платежей, а также сумм процентов за несвоевременное осуществление такого возврата и процентов, начисленных на излишне взысканные суммы"]
[910,"2 19 05000 05 0000 151","Возврат остатков субсидий и субвенций из бюджетов муниципальных районов"]
[913,null,"Комитет по управлению муниципальным имуществом администрации Черемховского районного муниципального образования"]
[913,"1 11 05013 10 0000 120","Доходы, получаемые в виде арендной платы за земельные участки, государственная собственность на которые не разграничена и которые расположены в границах поселений, а также средства от продажи права на заключение договоров аренды указанных земельных участков"]
[913,"1 11 05035 05 0000 120","Доходы от сдачи в аренду имущества, находящегося в оперативном управлении органов управления муниципальных районов и созданных ими учреждений (за исключением имущества муниципальных автономных учреждений)"]
[913,"1 14 02052 05 0000 410","Доходы от реализации имущества, находящегося в оперативном управлении учреждений, находящихся в ведении органов управления муниципальных районов (за исключением имущества муниципальных автономных учреждений), в части реализации основных средств по указанному имуществу"]
[913,"1 14 02052 05 0000 440","Доходы от реализации имущества, находящегося в оперативном управлении учреждений, находящихся в ведении органов управления муниципальных районов (за исключением имущества муниципальных автономных учреждений), в части реализации материальных запасов по указанному имуществу"]
[913,"1 14 02053 05 0000 410","Доходы от реализации иного имущества, находящегося в собственности муниципальных районов (за исключением имущества муниципальных автономных учреждений, а также имущества муниципальных унитарных предприятий, в том числе казенных), в части реализации основных средств по указанному имуществу"]
[913,"1 14 02053 05 0000 440","Доходы от реализации иного имущества, находящегося в собственности муниципальных районов (за исключением имущества муниципальных автономных учреждений, а также имущества муниципальных унитарных предприятий, в том числе казенных), в части реализации материальных запасов по указанному имуществу"]
[913,"1 14 06014 10 0000 430","Доходы от продажи земельных участков, государственная собственность на которые не разграничена и которые расположены в границах поселений"]
[913,"1 14 06025 05 0000 430","Доходы от продажи земельных участков, находящихся в собственности муниципальных районов (за исключением земельных участков муниципальных автономных учреждений)"]
[913,"1 17 01050 05 0000 180","Невыясненные поступления, зачисляемые в бюджеты муниципальных районов"]
[913,"1 17 05050 05 0000 180","Прочие неналоговые доходы бюджетов муниципальных районов"]
[913,"2 02 03026 05 0000 151","Субвенции бюджетам муниципальных районов на обеспечение жилыми помещениями детей-сирот, детей, оставшихся без попечения родителей, а также детей, находящихся под опекой (попечительством), не имеющих закрепленного жилого помещения"]
[913,"2 02 04999 05 0000 151","Прочие межбюджетные трансферты, передаваемые бюджетам муниципальных районов"]
[917,null,"Администрация Черемховского районного муниципального образования"]
[917,"1 08 07084 01 1000 110","Государственная пошлина за совершение действий, связанных с лицензированием, с проведением аттестации в случаях, если такая аттестация предусмотрена законодательством Российской Федерации, зачисляемая в бюджеты муниципальных районов"]
[917,"1 16 90050 05 0000 140","Прочие поступления от денежных взысканий (штрафов) и иных сумм в возмещение ущерба, зачисляемые в бюджеты муниципальных районов"]
[917,"1 17 01050 05 0000 180","Невыясненные поступления, зачисляемые в бюджеты муниципальных районов"]
[917,"1 17 05050 05 0000 180","Прочие неналоговые доходы бюджетов муниципальных районов"]
[917,"2 02 01999 05 0000 151","Прочие дотации бюджетам муниципальных районов"]
[917,"2 02 02008 05 0000 151","Субсидии бюджетам муниципальных районов на обеспечение жильем молодых семей"]
[917,"2 02 02105 05 0000 151","Субсидии бюджетам муниципальных районов на проведение противоаварийных мероприятий в зданиях государственных и муниципальных общеобразовательных учреждений"]
[917,"2 02 02999 05 0000 151","Прочие субсидии бюджетам муниципальных районов"]
[917,"2 02 03002 05 0000 151","Субвенции бюджетам муниципальных районов на осуществление полномочий по подготовке проведения статистических переписей"]
["917","2 02 03007 05 0000 151","Субвенции бюджетам  муниципальных районов на составление списков кандидатов в присяжные заседатели федеральных судов общей юрисдикции в Российской Федерации"]
[917,"2 02 03024 05 0000 151","Субвенции бюджетам муниципальных районов на выполнение передаваемых полномочий субъектов РФ"]
[917,"2 02 03999 05 0000 151","Прочие субвенции бюджетам муниципальных районов"]
[917,"2 02 04014 05 0000 151","Межбюджетные трансферты, передаваемые бюджетам муниципальных районов из бюджетов поселений на осуществление части полномочий по решению вопросов местного значения в соответствии с заключенными соглашениями"]
[917,"2 02 04999 05 0000 151","Прочие межбюджетные трансферты, передаваемые бюджетам муниципальных районов"]
[917,"2 07 05000 05 0000 180","Прочие безвозмездные поступления в бюджеты муниципальных районов"]
[918,null,"Управление жилищно-коммунального хозяйства, строительства, транспорта, связи и экологии администрации Черемховского районного муниципального образования"]
[918,"1 16 90050 05 0000 140","Прочие поступления от денежных взысканий (штрафов) и иных сумм в возмещение ущерба, зачисляемые в бюджеты муниципальных районов"]
[918,"1 17 01050 05 0000 180","Невыясненные поступления, зачисляемые в бюджеты муниципальных районов"]
[918,"1 17 05050 05 0000 180","Прочие неналоговые доходы бюджетов муниципальных районов"]
["918","2 02 03022 05 0000 151","Субвенции бюджетам муниципальных образований на предоставление гражданам субсидий на оплату жилого помещения и коммунальных услуг"]
["918","2 02 04014 05 0000 151","Межбюджетные трансферты, передаваемые бюджетам муниципальных районов из бюджетов поселений на осуществление части полномочий по решению вопросов местного значения в соответствии с заключенными соглашениями "]
[918,"2 07 05000 05 0000 180","Прочие безвозмездные поступления в бюджеты муниципальных районов"]
[]
["Начальник финансового управления",null,null,"Ю.Н. Гайдук"]

{"sheet":"прил4 (админ ОГВ)","index":3,"n_rows":49,"n_cols":4,"rows_kept":49,"cut":false,"hidden":false,"merged":[[13,2,13,3],[6,0,7,3],[9,0,9,1],[9,2,10,3],[11,0,11,3],[12,2,12,3],[25,2,25,3],[14,2,14,3],[15,2,15,3],[16,2,16,3],[17,2,17,3],[18,0,18,3],[19,2,19,3],[20,2,20,3],[21,2,21,3],[22,2,22,3],[23,2,23,3],[24,2,24,3],[37,2,37,3],[26,2,26,3],[27,2,27,3],[28,2,28,3],[29,2,29,3],[30,2,30,3],[31,2,31,3],[32,2,32,3],[33,2,33,3],[34,2,34,3],[35,2,35,3],[36,2,36,3],[44,0,44,3],[45,2,45,3],[38,2,38,3],[39,2,39,3],[40,2,40,3],[41,2,41,3],[42,2,42,3],[43,2,43,3]]}
[]
[]
[]
[]
[]
[]
["Перечень главных администраторов доходов бюджета Черемховского районного муниципального образования - территориальных органов (подразделений) федеральных органов государственной власти и органов государственной власти Иркутской области"]
[]
[]
["Код бюджетной классификации РФ",null,"Наименование главного администратора доходов районного бюджета"]
["главного администратора доходов","доходов районного бюджета"]
["Органы государственной власти Иркутской области"]
[809,null,"Министерство сельского хозяйства Иркутской области"]
[809,"1 16 90050 05 0000 140","Прочие поступления от денежных взысканий (штрафов) и иных сумм в возмещение ущерба, зачисляемые в бюджеты муниципальных районов"]
[815,null,"Министерство природных ресурсов и экологии Иркутской области"]
[815,"1 16 25010 01 0000 140","Денежные взыскания (штрафы) за нарушение законодательства о недрах"]
[815,"1 16 25030 01 0000 140","Штрафы за нарушение законодательства о животном мире"]
[815,"1 16 90050 05 0000 140","Прочие поступления от денежных взысканий (штрафов) и иных сумм в возмещение ущерба, зачисляемые в бюджеты муниципальных районов"]
["Территориальные органы (подразделения) федеральных органов государственной власти"]
[141,null,"Управление Федеральной службы по надзору в сфере защиты прав потребителей и благополучия человека по Иркутской области "]
[141,"1 16 28000 01 0000 140","Денежные взыскания (штрафы) за нарушение законодательства в области обеспечения санитарно-эпидемиологического благополучия человека и законодательства в сфере защиты прав потребителей"]
[177,null,"Главное управление Министерства Российской Федерации по делам гражданской обороны, чрезвычайным ситуациям и ликвидации последствий стихийных бедствий по Иркутской области "]
[177,"1 16 90050 05 0000 140","Прочие поступления от денежных взысканий (штрафов) и иных сумм в возмещение ущерба, зачисляемые в бюджеты муниципальных районов"]
[182,null,"Управление Федеральной налоговой службы по Иркутской области "]
[182,"1 01 01000 00 0000 110","Налог на прибыль организаций "]
[182,"1 01 02000 01 0000 110","Налог на доходы физических лиц "]
["182","1 05 01000 00 0000 110","Налог, взимаемый в связи с применением упрощенной системы налогообложения"]
[182,"1 05 03000 01 0000 110","Единый сельскохозяйственный налог"]
[182,"1 08 03010 01 0000 110","Государственная пошлина по делам, рассматриваемым в судах общей юрисдикции, мировыми судьями (за исключением Верховного Суда Российской Федерации)"]
[182,"1 09 00000 00 0000 000","Задолженность и перерасчеты по отмененным налогам, сборам и иным обязательным платежам "]
["182","1 16 03000 01 0000 140","Денежные взыскания (штрафы) за нарушение законодательства о налогах и сборах"]
["182","1 16 08000 01 0000 140","Денежные взыскания (штрафы) за административные правонарушения в области государственного регулирования производства и оборота этилового спирта, алкогольной и спиртосодержащей продукции"]
[188,null,"Главное управление Министерства внутренних дел Российской Федерации по Иркутской области \n\nВосточно-Сибирское линейное управление внутренних дел на транспорте Министерства внутренних дел Российской Федерации "]
[188,"1 16 30014 01 0000 140","Денежные взыскания (штрафы) за административные правонарушения в области дорожного движения"]
[188,"1 16 30030 01 0000 140","Прочие денежные взыскания (штрафы) за административные правонарушения в области дорожного движения"]
[188,"1 16 43000 01 0000 140","Денежные взыскания (штрафы) за нарушение законодательства РФ об административных правонарушениях, предусмотренные статьей 20.25 Кодекса РФ об административных правонарушений"]
[188,"1 16 90050 05 0000 140","Прочие поступления от денежных взысканий (штрафов) и иных сумм в возмещение ущерба, зачисляемые в бюджеты муниципальных районов"]
["192",null,"Управление Федеральной миграционной службы по Иркутской области"]
["192","1 16 90050 05 0000 140","Прочие поступления от денежных взысканий (штрафов) и иных сумм в возмещение ущерба, зачисляемые в бюджеты муниципальных районов"]
["048",null,"Управление Федеральной службы по надзору в сфере  природопользования по Иркутской области "]
["048","1 12 01000 01 0000 120","Плата за негативное воздействие на окружающую среду"]
["048","1 12 01010 01 0000 120","Плата за выбросы загрязняющих веществ в атмосферный воздух стационарными объектами "]
["048","1 12 01020 01 0000 120","Плата за выбросы загрязняющих веществ в атмосферный воздух передвижными объектами"]
["048","1 12 01040 01 0000 120","Плата за размещение отходов производства и потребления"]
["Иные доходы бюджета Черемховского районного муниципального образования, администрирование которых может осуществляться территориальными органами (подразделениями) федеральных органов государственной власти и органами государственной власти Иркутской области"]
[null,"1 16 90050 05 0000 140","Прочие поступления от денежных взысканий (штрафов) и иных сумм в возмещение ущерба, зачисляемые в бюджеты муниципальных районов"]
[]
[]
["Начальник финансового управления",null,null,"Ю.Н. Гайдук"]

{"sheet":"прил 5 адм источн","index":4,"n_rows":18,"n_cols":3,"rows_kept":18,"cut":false,"hidden":false,"merged":[[7,0,7,2],[10,0,10,1],[10,2,11,2]]}
{"$rows_empty":7}
["Перечень главных администраторов источников финансирования дефицита бюджета Черемховского районного муниципального образования"]
[]
[]
["Код бюджетной классификации Российской Федерации",null,"Наименование главного администратора источников финансирования дефицита  бюджета Черемховского районного муниципального образования"]
["главного администратора источников","источников финансирования дефицита бюджета  Черемховского районного муниципального образования"]
[910,null,"Финансовое управление администрации Черемховского районного муниципального образования"]
["910","01 02 00 00 05 0000710","Кредиты кредитных организаций в валюте Российской Федерации"]
["910","01 03 00 0005 0000 000","Бюджетные кредиты от других бюджетов бюджетной системы Российской Федерации в валюте Российской Федерации"]
[910," 01 05 02 00 05 0000 510","Увеличение прочих остатков  средств бюджетов муниципальных районов"]
[]
["Начальник финансового управления",null,"Ю.Н. Гайдук"]

{"sheet":"прил6","index":5,"n_rows":248,"n_cols":6,"rows_kept":248,"cut":false,"hidden":false,"merged":[[245,0,245,4],[6,0,6,5],[247,4,247,5],[9,0,10,0],[9,1,9,4],[9,5,10,5]]}
[]
[]
[]
[]
[]
[]
["Распределение  бюджетных ассигнований   по разделам, подразделам, целевым статьям и видам расходов классификации расходов бюджетов на  2013 год"]
[]
[]
["Наименование показателя","Код",null,null,null,"Сумма, тыс. руб. "]
[null,"раздела","подраздела","целевой статьи","вида расходов"]
[1,2,3,4,5,6]
["ОБЩЕГОСУДАРСТВЕННЫЕ ВОПРОСЫ",1,0,0,0,65588]
["Функционирование высшего должностного лица субъекта Российской Федерации и муниципального образования",1,2,0,0,1751.7]
["Руководство и управление в сфере установленных функций органов государственной власти субъектов Российской Федерации  и органов местного самоуправления",1,2,20000,0,1751.7]
["Глава муниципального образования",1,2,20300,0,1751.7]
["Выполнение функций органами местного самоуправления",1,2,20300,"500",1751.7]
["Функционирование законодательных (представительных) органов государственной власти и представительных органов муниципальных образований",1,3,0,0,1180.4000000000001]
["Руководство и управление в сфере установленных функций органов государственной власти субъектов Российской Федерации  и органов местного самоуправления",1,3,20000,0,1180.4000000000001]
["Центральный аппарат",1,3,20400,0,363.6]
["Выполнение функций органами местного самоуправления",1,3,20400,"500",363.6]
["Председатель представительного органа муниципального образования",1,3,21100,0,816.8]
["Выполнение функций органами местного самоуправления",1,3,21100,"500",816.8]
["Функционирование Правительства Российской Федерации, высших исполнительных органов государственной власти субъектов Российской Федерации, местных администраций",1,4,0,0,25658.3]
["Руководство и управление в сфере установленных функций органов государственной власти субъектов Российской Федерации  и органов местного самоуправления",1,4,20000,0,25658.3]
["Центральный аппарат",1,4,20400,0,25658.3]
["Выполнение функций органами местного самоуправления",1,4,20400,"500",25658.3]
["Обеспечение деятельности финансовых, налоговых и таможенных органов и органов финансового (финансово-бюджетного) надзора",1,6,0,0,9438.4]
["Руководство и управление в сфере установленных функций органов государственной власти субъектов Российской Федерации  и органов местного самоуправления",1,6,20000,0,9238.4]
["Центральный аппарат",1,6,20400,0,8251.4]
["Выполнение функций органами местного самоуправления",1,6,20400,"500",8251.4]
["Руководитель контрольно-счетной палаты муниципального образования и его заместители",1,6,22500,0,987]
["Выполнение функций органами местного самоуправления",1,6,22500,"500",987]
["Целевые программы муниципальных образований",1,6,7950000,0,200]
["Долгосрочная целевая программа Черемховского районного муниципального образования \"Повышение эффективности бюджетных расходов Черемховского районного муниципального образования на 2012-2013 годы\"",1,6,7950200,0,200]
["Выполнение функций органами местного самоуправления",1,6,7950200,"500",200]
["Обеспечение проведения выборов и референдумов",1,7,0,0,0]
["Проведение выборов и референдумов",1,7,200000,0,0]
["Проведение выборов и референдумов",1,7,200000,0,0]
["Проведение выборов в представительные органы муниципального образования",1,7,200002,0,0]
["Выполнение функций органами местного самоуправления",1,7,200002,"500",0]
["Резервные фонды",1,11,0,0,300]
["Резервные фонды",1,11,700000,0,300]
["Резервные фонды местных администраций",1,11,700500,0,300]
["Выполнение функций органами местного самоуправления",1,11,700500,"500",300]
["Другие общегосударственные вопросы",1,13,0,0,27259.200000000001]
["Руководство и управление в сфере установленных функций органов государственной власти субъектов Российской Федерации  и органов местного самоуправления",1,13,20000,0,19933.400000000001]
["Центральный аппарат",1,13,20400,0,2820]
["Выполнение функций органами местного самоуправления",1,13,20400,"500",2820]
["Осуществление областных государственных полномочий по хранению, комплектованию, учету и использованию архивных документов, относящихся к государственной собственности Иркутской области",1,13,24000,0,1086]
["Выполнение функций органами местного самоуправления",1,13,24000,"500",1086]
["Осуществление областных государственных полномочий по определению персонального состава и обеспечению деятельности административных комиссий",1,13,24300,0,563.6]
["Выполнение функций органами местного самоуправления",1,13,24300,"500",563.6]
["Осуществление отдельных государственных полномочий в области производства и оборота этилового спирта, алкогольной и спиртосодержащей продукции",1,13,24400,0,375.7]
["Выполнение функций органами местного самоуправления",1,13,24400,"500",375.7]
["Осуществление отдельных областных государственных полномочий в области охраны труда",1,13,24500,0,563.6]
["Выполнение функций органами местного самоуправления",1,13,24500,"500",563.6]
["Обеспечение деятельности подведомственных учреждений",1,13,29900,0,14524.5]
["Выполнение функций казенными учреждениями",1,13,29900,"001",13624.5]
["Субсидии бюджетным учреждениям на финансовое обеспечение муниципального задания на оказание муниципальных услуг (выполнение работ)",1,13,29900,"611",900]
["Реализация государственных функций, связанных с общегосударственным управлением",1,13,920000,0,170.8]
["Выполнение других обязательств государства",1,13,920300,0,170.8]
["Выполнение функций органами местного самоуправления",1,13,920300,"500",170.8]
["Учреждения по обеспечению хозяйственного обслуживания",1,13,930000,0,6500]
["Субсидии бюджетным учреждениям на финансовое обеспечение муниципального задания на оказание муниципальных услуг (выполнение работ)",1,13,930000,"611",6500]
["Целевые программы муниципальных образований",1,13,7950000,0,655]
["Долгосрочная целевая программа \"Улучшение условий и охраны труда в Черемховском районе на 2011-2013гг.\"",1,13,7951400,0,15]
["Выполнение функций органами местного самоуправления",1,13,7951400,"500",15]
["Долгосрочная целевая программа \"Инвентаризация муниципальных объектов недвижимости Черемховского районного муниципального образования на 2012-2014 годы\"",1,13,7951900,0,500]
["Выполнение функций органами местного самоуправления",1,13,7951900,"500",500]
["Комплексная программа \"Профилактика правонарушений в Черемховском районном муниципальном образовании на 2013-2016 годы\"",1,13,7952600,0,40]
["Выполнение функций органами местного самоуправления",1,13,7952600,"500",40]
["Долгосрочная целевая программа \"Поддержка молодых педагогов на территории Черемховского районного муниципального образования\" на 2012-2013 годы",1,13,7952700,0,100]
["Выполнение функций органами местного самоуправления",1,13,7952700,"500",100]
["НАЦИОНАЛЬНАЯ ЭКОНОМИКА",4,0,0,0,801.6]
["Дорожное хозяйство(дорожные фонды)",4,9,0,0,201.6]
["Целевые программы муниципальных образований",4,9,7950000,0,201.6]
["Долгосрочная целевая программа \"Развитие автомобильных дорог Черемховского районного муниципального образования на 2013-2015 годы\"",4,9,7952300,0,201.6]
["Выполнение функций органами местного самоуправления",4,9,7952300,"500",201.6]
["Другие вопросы в области национальной экономики",4,12,0,0,600]
["Целевые программы муниципальных образований",4,12,7950000,0,600]
["Долгосрочная целевая программа \"Инвентаризация муниципальных объектов недвижимости Черемховского районного муниципального образования на 2012-2014 годы\"",4,12,7951900,0,500]
["Выполнение функций органами местного самоуправления",4,12,7951900,"500",500]
["Долгосрочная целевая программа \"Поддержка и развитие малого и среднего предпринимательства в Черемховском районе\" на 2013-2014 годы",4,12,7952200,0,100]
["Выполнение функций органами местного самоуправления",4,12,7952200,"500",100]
["ЖИЛИЩНО-КОММУНАЛЬНОЕ ХОЗЯЙСТВО",5,0,0,0,5800.9]
["Жилищное хозяйство",5,1,0,0,500]
["Поддержка жилищного хозяйства",5,1,3500000,0,500]
["Мероприятия в области жилищного хозяйства",5,1,3500300,0,500]
["Выполнение функций органами местного самоуправления",5,1,3500300,"500",500]
["Другие вопросы в области жилищно-коммунального хозяйства",5,5,0,0,5300.9]
["Руководство и управление в сфере установленных функций органов государственной власти субъектов Российской Федерации  и органов местного самоуправления",5,5,20000,0,5300.9]
["Центральный аппарат",5,5,20400,0,5300.9]
["Выполнение функций органами местного самоуправления",5,5,20400,"500",5300.9]
["ОБРАЗОВАНИЕ",7,0,0,0,363836.5]
["Дошкольное образование",7,1,0,0,66965.7]
["Детские дошкольные учреждения",7,1,4200000,0,61865.7]
["Обеспечение деятельности подведомственных учреждений",7,1,4209900,0,61865.7]
["Выполнение функций казенными учреждениями",7,1,4209900,"001",61865.7]
["Выплата заработной платы с начислениями на нее педагогическим работникам муниципальных дошкольных образовательных учреждений и муниципальных учреждений дополнительного образования",7,1,5890000,0,1465]
["Выполнение функций казенными учреждениями",7,1,5890000,"001",1465]
["Целевые программы муниципальных образований",7,1,7950000,0,3635]
["Долгосрочная целевая программа Черемховского районного муниципального образования \"Повышение эффективности бюджетных расходов Черемховского районного муниципального образования на 2012-2013 годы\"",7,1,7950200,0,2011]
["Выполнение функций казенными учреждениями",7,1,7950200,"001",2011]
["Долгосрочная целевая программа \"Безопасность образовательных учреждений на 2010-2014 гг.\"",7,1,7951000,0,572]
["Мероприятия по обеспечению пожарной безопасности",7,1,7951000,"450",572]
["Долгосрочная целевая программа энергосбережения и повышения энергетической эффективности Черемховского районного муниципального образования на 2010-2015 годы",7,1,7951100,0,0]
["Мероприятия по повышению энергетической эффективности",7,1,7951100,"451",0]
["Долгосрочная целевая программа \"Развитие дошкольного образования на 2011-2014 гг.\"",7,1,7951700,0,702]
["Мероприятия в сфере образования",7,1,7951700,"022",702]
["Долгосрочная целевая программа \"Совершенствование дошкольного образования Черемховского района на 2011-2014 гг.\"",7,1,7951800,0,350]
["Мероприятия в сфере образования",7,1,7951800,"022",350]
["Общее образование",7,2,0,0,288954.59999999998]
["Руководство и управление в сфере установленных функций органов государственной власти субъектов Российской Федерации  и органов местного самоуправления",7,2,20000,0,238581.5]
["Обеспечение государственных гарантий прав граждан на получение общедоступного и бесплатного дошкольного, начального общего, основного общего, среднего (полного) общего образования, а также дополнительного образования в общеобразовательных учреждениях",7,2,25000,0,238581.5]
["Выполнение функций казенными учреждениями",7,2,25000,"001",238581.5]
["Школы - детские сады, школы начальные, неполные средние и средние",7,2,4210000,0,16326.8]
["Обеспечение деятельности подведомственных учреждений",7,2,4219900,0,16326.8]
["Выполнение функций казенными учреждениями",7,2,4219900,"001",16326.8]
["Учреждения по внешкольной работе с детьми",7,2,4230000,0,25057.4]
["Обеспечение деятельности подведомственных учреждений",7,2,4239900,0,25057.4]
["Выполнение функций казенными учреждениями",7,2,4239900,"001",25057.4]
["Выплата заработной платы с начислениями на нее педагогическим работникам муниципальных дошкольных образовательных учреждений и муниципальных учреждений дополнительного образования",7,2,5890000,0,540.1]
["Выполнение функций казенными учреждениями",7,2,5890000,"001",540.1]
["Целевые программы муниципальных образований",7,2,7950000,0,8448.7999999999993]
["Долгосрочная целевая программа Черемховского районного муниципального образования \"Повышение эффективности бюджетных расходов Черемховского районного муниципального образования на 2012-2013 годы\"",7,2,7950200,0,5178]
["Выполнение функций казенными учреждениями",7,2,7950200,"001",5178]
["Долгосрочная целевая программа \"Безопасность образовательных учреждений на 2010-2014 гг.\"",7,2,7951000,0,1128]
["Мероприятия по обеспечению пожарной безопасности",7,2,7951000,"450",1128]
["Долгосрочная целевая программа энергосбережения и повышения энергетической эффективности Черемховского районного муниципального образования на 2010-2015 годы",7,2,7951100,0,600]
["Мероприятия по повышению энергетической эффективности",7,2,7951100,"451",600]
["Долгосрочная целевая программа \"Ветхие школы Черемховского района\" на 2011-2013 гг.",7,2,7951500,0,450]
["Мероприятия в сфере образования",7,2,7951500,"022",450]
["Долгосрочная целевая программа \"Совершенствование организации питания в образовательных учреждениях Черемховского района на 2011-2013гг.\"",7,2,7951600,0,1000]
["Мероприятия в сфере образования",7,2,7951600,"022",1000]
["Долгосрочная целевая программа \"Развитие культуры в Черемховском районном муниципальном образовании на период 2012-2016 гг.\"",7,2,7952000,0,92.8]
["Мероприятия по поддержке и развитию культуры, искусства, кинематографии",7,2,7952000,"023",92.8]
["Профессиональная подготовка, переподготовка и повышение квалификации",7,5,0,0,134.1]
["Мероприятия по переподготовке и повышению квалификации",7,5,4340000,0,134.1]
["Выполнение функций казенными учреждениями",7,5,4340000,"001",108.1]
["Выполнение функций органами местного самоуправления",7,5,4340000,"500",26]
["Молодежная политика и оздоровление детей",7,7,0,0,222]
["Организационно-воспитательная работа с молодежью",7,7,4310000,0,46]
["Проведение мероприятий для детей и молодежи",7,7,4310100,0,46]
["Проведение мероприятия для детей и молодежи",7,7,4310100,"447",46]
["Мероприятия по проведению оздоровительной кампании детей",7,7,4320000,0,126]
["Оплата стоимости набора продуктов питания для детей в организованных органами местного самоуправления оздоровительных лагерях с дневным пребыванием детей за счет средств областного бюджета",7,7,4320300,0,126]
["Оплата стоимости набора продуктов питания для детей в организованных органами местного самоуправления оздоровительных лагерях с дневным пребыванием детей за счет средств местного бюджета ",7,7,4320302,0,126]
["Выполнение функций казенными учреждениями",7,7,4320302,"001",126]
["Целевые программы муниципальных образований",7,7,7950000,0,50]
["Долгосрочная целевая программа \"Комплексные меры профилактики злоупотребления наркотическими средствами и психотропными веществами в Черемховском районном муниципальном образовании на 2011-2013 гг.\"",7,7,7951300,0,10]
["Выполнение функций органами местного самоуправления",7,7,7951300,"500",10]
["Долгосрочная целевая программа \"Молодежная политика в Черемховском районном муниципальном образовании\" на 2013-2015 гг.",7,7,7952500,0,40]
["Проведение мероприятия для детей и молодежи",7,7,7952500,"447",40]
["Другие вопросы в области образования",7,9,0,0,7560.1]
["Руководство и управление в сфере установленных функций органов государственной власти субъектов Российской Федерации  и органов местного самоуправления",7,9,20000,0,2560.1]
["Центральный аппарат",7,9,20400,0,2560.1]
["Выполнение функций органами местного самоуправления",7,9,20400,"500",2560.1]
["Учебно-методические кабинеты, централизованные бухгалтерии, группы хозяйственного обслуживания, учебные фильмотеки, межшкольные учебно-производственные комбинаты, логопедические пункты",7,9,4520000,0,5000]
["Субсидии бюджетным учреждениям на финансовое обеспечение муниципального задания на оказание муниципальных услуг (выполнение работ)",7,9,4520000,"611",5000]
["КУЛЬТУРА И КИНЕМАТОГРАФИЯ",8,0,0,0,15466.2]
["Культура",8,1,0,0,14302]
["Учреждения культуры и мероприятия в сфере культуры и кинематографии",8,1,4400000,0,5096.3]
["Комплектование книжных фондов библиотек муниципальных образований и государственных библиотек городов Москвы и Санкт-Петербурга",8,1,4400200,0,466.3]
["Комплектование книжных фондов библиотек муниципальных образований и государственных библиотек городов Москвы и Санкт-Петербурга за счет средств федерального бюджета",8,1,4400201,0,303.60000000000002]
["Выполнение функций казенными учреждениями",8,1,4400201,"001",303.60000000000002]
["Комплектование книжных фондов библиотек муниципальных образований и государственных библиотек городов Москвы и Санкт-Петербурга за счет областного бюджета",8,1,4400202,0,162.69999999999999]
["Выполнение функций казенными учреждениями",8,1,4400202,"001",162.69999999999999]
["Обеспечение деятельности подведомственных учреждений",8,1,4409900,0,4630]
["Выполнение функций казенными учреждениями",8,1,4409900,"001",4630]
["Музеи и постоянные выставки",8,1,4410000,0,1081.0999999999999]
["Обеспечение деятельности подведомственных учреждений",8,1,4419900,0,1081.0999999999999]
["Выполнение функций казенными учреждениями",8,1,4419900,"001",1081.0999999999999]
["Библиотеки",8,1,4420000,0,6603.6]
["Обеспечение деятельности подведомственных учреждений",8,1,4429900,0,6603.6]
["Выполнение функций казенными учреждениями",8,1,4429900,"001",6603.6]
["Целевые программы муниципальных образований",8,1,7950000,0,1521]
["Долгосрочная целевая программа Черемховского районного муниципального образования \"Повышение эффективности бюджетных расходов Черемховского районного муниципального образования на 2012-2013 годы\"",8,1,7950200,0,308]
["Выполнение функций казенными учреждениями",8,1,7950200,"001",308]
["Долгосрочная целевая программа энергосбережения и повышения энергетической эффективности Черемховского районного муниципального образования на 2010-2015 годы",8,1,7951100,0,282]
["Мероприятия по повышению энергетической эффективности",8,1,7951100,"451",282]
["Долгосрочная целевая программа \"Развитие культуры в Черемховском районном муниципальном образовании на период 2012-2016 гг.\"",8,1,7952000,0,931]
["Мероприятия по поддержке и развитию культуры, искусства, кинематографии",8,1,7952000,"023",931]
["Другие вопросы в области культуры, кинематографии",8,4,0,0,1164.2]
["Руководство и управление в сфере установленных функций органов государственной власти субъектов Российской Федерации  и органов местного самоуправления",8,4,20000,0,1164.2]
["Центральный аппарат",8,4,20400,0,1164.2]
["Выполнение функций органами местного самоуправления",8,4,20400,"500",1164.2]
["Социальная политика",10,0,0,0,19692.400000000001]
["Пенсионное обеспечение",10,1,0,0,2980]
["Доплаты к пенсиям, дополнительное пенсионное обеспечение ",10,1,4910000,0,2980]
["Доплаты к пенсиям государственных служащих субъектов Российской Федерации и муниципальных служащих ",10,1,4910100,0,2980]
["Социальные выплаты",10,1,4910100,"005",2980]
["Социальное обеспечение населения",10,3,0,0,15006.3]
["Руководство и управление в сфере установленных функций органов государственной власти субъектов Российской Федерации  и органов местного самоуправления",10,3,20000,0,13896]
["Осуществление отдельных областных государственных полномочий по предоставлению мер социальной поддержки многодетным и малоимущим семьям",10,3,24600,0,6361.8]
["Социальные выплаты",10,3,24600,"005",6361.8]
["Осуществление областных государственных полномочий по предоставлению гражданам субсидий на оплату жилых помещений и коммунальных услуг",10,3,24700,0,7534.2]
["Содержание и обеспечение деятельности муниципальных служащих, осуществляющих областные государственные полномочия по предоставлению гражданам субсидий на оплату жилых помещений и коммунальных услуг",10,3,24701,0,771.9]
["Выполнение функций органами местного самоуправления",10,3,24701,"500",771.9]
["Предоставление гражданам субсидий на оплату жилых помещений и коммунальных услуг",10,3,24702,0,6762.3]
["Социальные выплаты",10,3,24702,"005",6762.3]
["Реализация государственных функций в области социальной политики",10,3,5140000,0,854.1]
["Мероприятия в области социальной политики",10,3,5140100,0,854.1]
["Социальные выплаты",10,3,5140100,"005",854.1]
["Целевые программы муниципальных образований",10,3,7950000,0,256.2]
["Районная социальная программа \"Молодым семьям-доступное жилье\" на 2012-2019 гг.",10,3,7952100,0,256.2]
["Социальные выплаты",10,3,7952100,"005",256.2]
["Охрана семьи и детства",10,4,0,0,528]
["Исполнение судебных актов, вступивших в силу до 1 января 2013 года, по обеспечению жилыми помещениями детей-сирот и детей, оставшихся без попечения родителей, лиц из числа детей-сирот и детей, оставшихся без попечения родителей, не имеющих закрепленного жилого помещения",10,4,6040000,0,528]
["Бюджетные инвестиции",10,4,6040000,"003",528]
["Другие вопросы в области социальной политики",10,6,0,0,1178.0999999999999]
["Руководство и управление в сфере установленных функций органов государственной власти субъектов Российской Федерации  и органов местного самоуправления",10,6,20000,0,1078.0999999999999]
["Осуществление областных государственных полномочий по определению персонального состава и обеспечению деятельности районных (городских), районных в городах комиссий по делам несовершеннолетних и защите их прав",10,6,24100,0,1078.0999999999999]
["Выполнение функций органами местного самоуправления",10,6,24100,"500",1078.0999999999999]
["Целевые программы муниципальных образований",10,6,7950000,0,100]
["Муниципальная целевая программа \"Поддержка, проводимых мероприятий, посвященных Дням воинской славы, памятным датам России и работе с ветеранами и инвалидами в черемховском районе на 2013-2015 гг.\"",10,6,7952400,0,100]
["Выполнение функций органами местного самоуправления",10,6,7952400,"500",100]
["ФИЗИЧЕСКАЯ КУЛЬТУРА И СПОРТ",11,0,0,0,182.4]
["Физическая культура",11,1,0,0,182.4]
["Физкультурно-оздоровительная работа и спортивные мероприятия",11,1,5120000,0,82.4]
["Мероприятия в области спорта, физической культуры и туризма",11,1,5129700,0,82.4]
["Выполнение функций органами местного самоуправления",11,1,5129700,"500",82.4]
["Целевые программы муниципальных образований",11,1,7950000,0,100]
["Долгосрочная целевая программа \"Развитие физической культуры, спорта и туризма в Черемховском районном муниципальном образовании на 2011-2013 гг.\"",11,1,7951200,0,100]
["Выполнение функций органами местного самоуправления",11,1,7951200,"500",100]
["СРЕДСТВА МАССОВОЙ ИНФОРМАЦИИ",12,0,0,0,2000]
["Периодическая печать и издательства",12,2,0,0,2000]
["Периодические издания, учрежденные органами законодательной и исполнительной власти",12,2,4570000,0,2000]
["Государственная поддержка в сфере культуры, кинематографии и средств массовой информации",12,2,4578500,0,2000]
["Субсидии юридическим лицам",12,2,4578500,"006",2000]
["ОБСЛУЖИВАНИЕ ГОСУДАРСТВЕННОГО И МУНИЦИПАЛЬНОГО ДОЛГА",13,0,0,0,60]
["Обслуживание внутреннего государственного и муниципального долга",13,1,0,0,60]
["Процентные платежи по долговым обязательствам",13,1,650000,0,60]
["Процентные платежи по муниципальному долгу",13,1,650300,0,60]
["Прочие расходы",13,1,650300,"013",60]
["МЕЖБЮДЖЕТНЫЕ ТРАНСФЕРТЫ ОБЩЕГО ХАРАКТЕРА БЮДЖЕТАМ СУБЪЕКТОВ РОССИЙСКОЙ ФЕДЕРАЦИИ И МУНИЦИПАЛЬНЫХ ОБРАЗОВАНИЙ ",14,0,0,0,5375]
["Дотации на выравнивание бюджетной обеспеченности субъектов Российской Федерации и муниципальных образований",14,1,0,0,3500]
["Выравнивание бюджетной обеспечености",14,1,5160000,0,3500]
["Выравнивание бюджетной обеспеченности",14,1,5160100,0,3500]
["Выравнивание бюджетной обеспеченности поселений из районного фонда финансовой поддержки",14,1,5160130,0,3500]
["Фонд финансовой поддержки",14,1,5160130,"008",3500]
["Прочие межбюджетные трансферты общего характера бюджетам субъектов Российской Федерации и муниципальных образований ",14,3,0,0,1875]
["Целевые программы муниципальных образований",14,3,7950000,0,1875]
["Долгосрочная целевая программа Черемховского районного муниципального образования \"Повышение эффективности бюджетных расходов Черемховского районного муниципального образования на 2012-2013 годы\"",14,3,7950200,0,1875]
["Иные межбюджетные трансферты",14,3,7950200,"017",1875]
["ИТОГО",{"$nulls":4},478803]
[]
["Начальник Финансового управления",null,null,null,"Ю.Н. Гайдук"]

{"sheet":"прил7","index":6,"n_rows":247,"n_cols":7,"rows_kept":247,"cut":false,"hidden":false,"merged":[[8,0,9,0],[8,1,8,4],[8,5,8,6],[6,0,6,6],[246,4,246,6],[244,0,244,4]]}
[]
[]
[]
[]
[]
[]
["Распределение  бюджетных ассигнований   по разделам, подразделам, целевым статьям и видам расходов классификации расходов бюджетов на  плановый период 2014 и 2015 годов"]
[]
["Наименование показателя","Код",null,null,null,"Сумма, тыс.руб."]
[null,"раздела","подраздела","целевой статьи","вида расходов",2014,2015]
[1,2,3,4,5,6,7]
["ОБЩЕГОСУДАРСТВЕННЫЕ ВОПРОСЫ",1,0,0,0,57198.400000000001,56134.3]
["Функционирование высшего должностного лица субъекта Российской Федерации и муниципального образования",1,2,0,0,1403,1472.1]
["Руководство и управление в сфере установленных функций органов государственной власти субъектов Российской Федерации  и органов местного самоуправления",1,2,20000,0,1403,1472.1]
["Глава муниципального образования",1,2,20300,0,1403,1472.1]
["Выполнение функций органами местного самоуправления",1,2,20300,"500",1403,1472.1]
["Функционирование законодательных (представительных) органов государственной власти и представительных органов муниципальных образований",1,3,0,0,940.5,986.3]
["Руководство и управление в сфере установленных функций органов государственной власти субъектов Российской Федерации  и органов местного самоуправления",1,3,20000,0,940.5,986.3]
["Центральный аппарат",1,3,20400,0,289,302]
["Выполнение функций органами местного самоуправления",1,3,20400,"500",289,302]
["Председатель представительного органа муниципального образования",1,3,21100,0,651.5,684.3]
["Выполнение функций органами местного самоуправления",1,3,21100,"500",651.5,684.3]
["Функционирование Правительства Российской Федерации, высших исполнительных органов государственной власти субъектов Российской Федерации, местных администраций",1,4,0,0,20515.599999999999,21389.4]
["Руководство и управление в сфере установленных функций органов государственной власти субъектов Российской Федерации  и органов местного самоуправления",1,4,20000,0,20515.599999999999,21389.4]
["Центральный аппарат",1,4,20400,0,20515.599999999999,21389.4]
["Выполнение функций органами местного самоуправления",1,4,20400,"500",20515.599999999999,21389.4]
["Обеспечение деятельности финансовых, налоговых и таможенных органов и органов финансового (финансово-бюджетного) надзора",1,6,0,0,7459.3,7789.5]
["Руководство и управление в сфере установленных функций органов государственной власти субъектов Российской Федерации  и органов местного самоуправления",1,6,20000,0,7459.3,7789.5]
["Центральный аппарат",1,6,20400,0,6674.1,6964.3]
["Выполнение функций органами местного самоуправления",1,6,20400,"500",6674.1,6964.3]
["Руководитель контрольно-счетной палаты муниципального образования и его заместители",1,6,22500,0,785.2,825.2]
["Выполнение функций органами местного самоуправления",1,6,22500,"500",785.2,825.2]
["Целевые программы муниципальных образований",1,6,7950000,0,0,0]
["Долгосрочная целевая программа Черемховского районного муниципального образования \"Повышение эффективности бюджетных расходов Черемховского районного муниципального образования на 2012-2013 годы\"",1,6,7950200,0,0,0]
["Выполнение функций органами местного самоуправления",1,6,7950200,"500",0,0]
["Обеспечение проведения выборов и референдумов",1,7,0,0,2500,0]
["Проведение выборов и референдумов",1,7,200000,0,2500,0]
["Проведение выборов и референдумов",1,7,200000,0,2500,0]
["Проведение выборов в представительные органы муниципального образования",1,7,200002,0,2500,0]
["Выполнение функций органами местного самоуправления",1,7,200002,"500",2500,0]
["Резервные фонды",1,11,0,0,300,300]
["Резервные фонды",1,11,700000,0,300,300]
["Резервные фонды местных администраций",1,11,700500,0,300,300]
["Выполнение функций органами местного самоуправления",1,11,700500,"500",300,300]
["Другие общегосударственные вопросы",1,13,0,0,24080,24197]
["Руководство и управление в сфере установленных функций органов государственной власти субъектов Российской Федерации  и органов местного самоуправления",1,13,20000,0,16869.2,17486.2]
["Центральный аппарат",1,13,20400,0,2262.4,2351.6999999999998]
["Выполнение функций органами местного самоуправления",1,13,20400,"500",2262.4,2351.6999999999998]
["Осуществление областных государственных полномочий по хранению, комплектованию, учету и использованию архивных документов, относящихся к государственной собственности Иркутской области",1,13,24000,0,1086,1086]
["Выполнение функций органами местного самоуправления",1,13,24000,"500",1086,1086]
["Осуществление областных государственных полномочий по определению персонального состава и обеспечению деятельности административных комиссий",1,13,24300,0,563.6,563.6]
["Выполнение функций органами местного самоуправления",1,13,24300,"500",563.6,563.6]
["Осуществление отдельных государственных полномочий в области производства и оборота этилового спирта, алкогольной и спиртосодержащей продукции",1,13,24400,0,404.3,430.2]
["Выполнение функций органами местного самоуправления",1,13,24400,"500",404.3,430.2]
["Осуществление отдельных областных государственных полномочий в области охраны труда",1,13,24500,0,563.6,563.6]
["Выполнение функций органами местного самоуправления",1,13,24500,"500",563.6,563.6]
["Обеспечение деятельности подведомственных учреждений",1,13,29900,0,11989.3,12491.1]
["Выполнение функций казенными учреждениями",1,13,29900,"001",11089.3,11591.1]
["Субсидии бюджетным учреждениям на финансовое обеспечение муниципального задания на оказание муниципальных услуг (выполнение работ)",1,13,29900,"611",900,900]
["Реализация государственных функций, связанных с общегосударственным управлением",1,13,920000,0,170.8,170.8]
["Выполнение других обязательств государства",1,13,920300,0,170.8,170.8]
["Выполнение функций органами местного самоуправления",1,13,920300,"500",170.8,170.8]
["Учреждения по обеспечению хозяйственного обслуживания",1,13,930000,0,6500,6500]
["Субсидии бюджетным учреждениям на финансовое обеспечение муниципального задания на оказание муниципальных услуг (выполнение работ)",1,13,930000,"611",6500,6500]
["Целевые программы муниципальных образований",1,13,7950000,0,540,40]
["Долгосрочная целевая программа \"Улучшение условий и охраны труда в Черемховском районе на 2011-2013гг.\"",1,13,7951400,0,0,0]
["Выполнение функций органами местного самоуправления",1,13,7951400,"500",0,0]
["Долгосрочная целевая программа \"Инвентаризация муниципальных объектов недвижимости Черемховского районного муниципального образования на 2012-2014 годы\"",1,13,7951900,0,500,0]
["Выполнение функций органами местного самоуправления",1,13,7951900,"500",500,0]
["Комплексная программа \"Профилактика правонарушений в Черемховском районном муниципальном образовании на 2013-2016 годы\"",1,13,7952600,0,40,40]
["Выполнение функций органами местного самоуправления",1,13,7952600,"500",40,40]
["Долгосрочная целевая программа \"Поддержка молодых педагогов на территории Черемховского районного муниципального образования\" на 2012-2013 годы",1,13,7952700,0,0,0]
["Выполнение функций органами местного самоуправления",1,13,7952700,"500",0,0]
["НАЦИОНАЛЬНАЯ ЭКОНОМИКА",4,0,0,0,3698.1,2406.5]
["Дорожное хозяйство(дорожные фонды)",4,9,0,0,3048.1,2406.5]
["Целевые программы муниципальных образований",4,9,7950000,0,3048.1,2406.5]
["Долгосрочная целевая программа \"Развитие автомобильных дорог Черемховского районного муниципального образования на 2013-2015 годы\"",4,9,7952300,0,3048.1,2406.5]
["Выполнение функций органами местного самоуправления",4,9,7952300,"500",3048.1,2406.5]
["Другие вопросы в области национальной экономики",4,12,0,0,650,0]
["Целевые программы муниципальных образований",4,12,7950000,0,650,0]
["Долгосрочная целевая программа \"Инвентаризация муниципальных объектов недвижимости Черемховского районного муниципального образования на 2012-2014 годы\"",4,12,7951900,0,500,0]
["Выполнение функций органами местного самоуправления",4,12,7951900,"500",500,0]
["Долгосрочная целевая программа \"Поддержка и развитие малого и среднего предпринимательства в Черемховском районе\" на 2013-2014 годы",4,12,7952200,0,150,0]
["Выполнение функций органами местного самоуправления",4,12,7952200,"500",150,0]
["ЖИЛИЩНО-КОММУНАЛЬНОЕ ХОЗЯЙСТВО",5,0,0,0,4258,4464.7]
["Жилищное хозяйство",5,1,0,0,0,0]
["Поддержка жилищного хозяйства",5,1,3500000,0,0,0]
["Мероприятия в области жилищного хозяйства",5,1,3500300,0,0,0]
["Выполнение функций органами местного самоуправления",5,1,3500300,"500",0,0]
["Другие вопросы в области жилищно-коммунального хозяйства",5,5,0,0,4258,4464.7]
["Руководство и управление в сфере установленных функций органов государственной власти субъектов Российской Федерации  и органов местного самоуправления",5,5,20000,0,4258,4464.7]
["Центральный аппарат",5,5,20400,0,4258,4464.7]
["Выполнение функций органами местного самоуправления",5,5,20400,"500",4258,4464.7]
["ОБРАЗОВАНИЕ",7,0,0,0,348970.3,346703.1]
["Дошкольное образование",7,1,0,0,64603.4,62906.1]
["Детские дошкольные учреждения",7,1,4200000,0,61308.4,61441.1]
["Обеспечение деятельности подведомственных учреждений",7,1,4209900,0,61308.4,61441.1]
["Выполнение функций казенными учреждениями",7,1,4209900,"001",61308.4,61441.1]
["Выплата заработной платы с начислениями на нее педагогическим работникам муниципальных дошкольных образовательных учреждений и муниципальных учреждений дополнительного образования",7,1,5890000,0,1465,1465]
["Выполнение функций казенными учреждениями",7,1,5890000,"001",1465,1465]
["Целевые программы муниципальных образований",7,1,7950000,0,1830,0]
["Долгосрочная целевая программа Черемховского районного муниципального образования \"Повышение эффективности бюджетных расходов Черемховского районного муниципального образования на 2012-2013 годы\"",7,1,7950200,0,0,0]
["Выполнение функций казенными учреждениями",7,1,7950200,"001",0,0]
["Долгосрочная целевая программа \"Безопасность образовательных учреждений на 2010-2014 гг.\"",7,1,7951000,0,830,0]
["Мероприятия по обеспечению пожарной безопасности",7,1,7951000,"450",830,0]
["Долгосрочная целевая программа энергосбережения и повышения энергетической эффективности Черемховского районного муниципального образования на 2010-2015 годы",7,1,7951100,0,600,0]
["Мероприятия по повышению энергетической эффективности",7,1,7951100,"451",600,0]
["Долгосрочная целевая программа \"Развитие дошкольного образования на 2011-2014 гг.\"",7,1,7951700,0,0,0]
["Мероприятия в сфере образования",7,1,7951700,"022",0,0]
["Долгосрочная целевая программа \"Совершенствование дошкольного образования Черемховского района на 2011-2014 гг.\"",7,1,7951800,0,400,0]
["Мероприятия в сфере образования",7,1,7951800,"022",400,0]
["Общее образование",7,2,0,0,276921.3,276261.59999999998]
["Руководство и управление в сфере установленных функций органов государственной власти субъектов Российской Федерации  и органов местного самоуправления",7,2,20000,0,238581.5,238581.5]
["Обеспечение государственных гарантий прав граждан на получение общедоступного и бесплатного дошкольного, начального общего, основного общего, среднего (полного) общего образования, а также дополнительного образования в общеобразовательных учреждениях",7,2,25000,0,238581.5,238581.5]
["Выполнение функций казенными учреждениями",7,2,25000,"001",238581.5,238581.5]
["Школы - детские сады, школы начальные, неполные средние и средние",7,2,4210000,0,15782.6,15808.4]
["Обеспечение деятельности подведомственных учреждений",7,2,4219900,0,15782.6,15808.4]
["Выполнение функций казенными учреждениями",7,2,4219900,"001",15782.6,15808.4]
["Учреждения по внешкольной работе с детьми",7,2,4230000,0,20340.099999999999,21257.8]
["Обеспечение деятельности подведомственных учреждений",7,2,4239900,0,20340.099999999999,21257.8]
["Выполнение функций казенными учреждениями",7,2,4239900,"001",20340.099999999999,21257.8]
["Выплата заработной платы с начислениями на нее педагогическим работникам муниципальных дошкольных образовательных учреждений и муниципальных учреждений дополнительного образования",7,2,5890000,0,540.1,540.1]
["Выполнение функций казенными учреждениями",7,2,5890000,"001",540.1,540.1]
["Целевые программы муниципальных образований",7,2,7950000,0,1677,73.8]
["Долгосрочная целевая программа Черемховского районного муниципального образования \"Повышение эффективности бюджетных расходов Черемховского районного муниципального образования на 2012-2013 годы\"",7,2,7950200,0,0,0]
["Выполнение функций казенными учреждениями",7,2,7950200,"001",0,0]
["Долгосрочная целевая программа \"Безопасность образовательных учреждений на 2010-2014 гг.\"",7,2,7951000,0,970,0]
["Мероприятия по обеспечению пожарной безопасности",7,2,7951000,"450",970,0]
["Долгосрочная целевая программа энергосбережения и повышения энергетической эффективности Черемховского районного муниципального образования на 2010-2015 годы",7,2,7951100,0,0,0]
["Мероприятия по повышению энергетической эффективности",7,2,7951100,"451",0,0]
["Долгосрочная целевая программа \"Ветхие школы Черемховского района\" на 2011-2013 гг.",7,2,7951500,0,0,0]
["Мероприятия в сфере образования",7,2,7951500,"022",0,0]
["Долгосрочная целевая программа \"Совершенствование организации питания в образовательных учреждениях Черемховского района на 2011-2013гг.\"",7,2,7951600,0,600,0]
["Мероприятия в сфере образования",7,2,7951600,"022",600,0]
["Долгосрочная целевая программа \"Развитие культуры в Черемховском районном муниципальном образовании на период 2012-2016 гг.\"",7,2,7952000,0,107,73.8]
["Мероприятия по поддержке и развитию культуры, искусства, кинематографии",7,2,7952000,"023",107,73.8]
["Профессиональная подготовка, переподготовка и повышение квалификации",7,5,0,0,127,127]
["Мероприятия по переподготовке и повышению квалификации",7,5,4340000,0,127,127]
["Выполнение функций казенными учреждениями",7,5,4340000,"001",127,127]
["Выполнение функций органами местного самоуправления",7,5,4340000,"500",0,0]
["Молодежная политика и оздоровление детей",7,7,0,0,212,212]
["Организационно-воспитательная работа с молодежью",7,7,4310000,0,46,46]
["Проведение мероприятий для детей и молодежи",7,7,4310100,0,46,46]
["Проведение мероприятия для детей и молодежи",7,7,4310100,"447",46,46]
["Мероприятия по проведению оздоровительной кампании детей",7,7,4320000,0,126,126]
["Оплата стоимости набора продуктов питания для детей в организованных органами местного самоуправления оздоровительных лагерях с дневным пребыванием детей за счет средств областного бюджета",7,7,4320300,0,126,126]
["Оплата стоимости набора продуктов питания для детей в организованных органами местного самоуправления оздоровительных лагерях с дневным пребыванием детей за счет средств местного бюджета ",7,7,4320302,0,126,126]
["Выполнение функций казенными учреждениями",7,7,4320302,"001",126,126]
["Целевые программы муниципальных образований",7,7,7950000,0,40,40]
["Долгосрочная целевая программа \"Комплексные меры профилактики злоупотребления наркотическими средствами и психотропными веществами в Черемховском районном муниципальном образовании на 2011-2013 гг.\"",7,7,7951300,0,0,0]
["Выполнение функций органами местного самоуправления",7,7,7951300,"500",0,0]
["Долгосрочная целевая программа \"Молодежная политика в Черемховском районном муниципальном образовании\" на 2013-2015 гг.",7,7,7952500,0,40,40]
["Проведение мероприятия для детей и молодежи",7,7,7952500,"447",40,40]
["Другие вопросы в области образования",7,9,0,0,7106.6,7196.4]
["Руководство и управление в сфере установленных функций органов государственной власти субъектов Российской Федерации  и органов местного самоуправления",7,9,20000,0,2106.6,2196.4]
["Центральный аппарат",7,9,20400,0,2106.6,2196.4]
["Выполнение функций органами местного самоуправления",7,9,20400,"500",2106.6,2196.4]
["Учебно-методические кабинеты, централизованные бухгалтерии, группы хозяйственного обслуживания, учебные фильмотеки, межшкольные учебно-производственные комбинаты, логопедические пункты",7,9,4520000,0,5000,5000]
["Субсидии бюджетным учреждениям на финансовое обеспечение муниципального задания на оказание муниципальных услуг (выполнение работ)",7,9,4520000,"611",5000,5000]
["КУЛЬТУРА И КИНЕМАТОГРАФИЯ",8,0,0,0,12119.4,12743.1]
["Культура",8,1,0,0,11183.5,11762]
["Учреждения культуры и мероприятия в сфере культуры и кинематографии",8,1,4400000,0,3856.1,4010.2]
["Комплектование книжных фондов библиотек муниципальных образований и государственных библиотек городов Москвы и Санкт-Петербурга",8,1,4400200,0,466.3,466.3]
["Комплектование книжных фондов библиотек муниципальных образований и государственных библиотек городов Москвы и Санкт-Петербурга за счет средств федерального бюджета",8,1,4400201,0,303.60000000000002,303.60000000000002]
["Выполнение функций казенными учреждениями",8,1,4400201,"001",303.60000000000002,303.60000000000002]
["Комплектование книжных фондов библиотек муниципальных образований и государственных библиотек городов Москвы и Санкт-Петербурга за счет областного бюджета",8,1,4400202,0,162.69999999999999,162.69999999999999]
["Выполнение функций казенными учреждениями",8,1,4400202,"001",162.69999999999999,162.69999999999999]
["Обеспечение деятельности подведомственных учреждений",8,1,4409900,0,3389.8,3543.9]
["Выполнение функций казенными учреждениями",8,1,4409900,"001",3389.8,3543.9]
["Музеи и постоянные выставки",8,1,4410000,0,899.1,935.8]
["Обеспечение деятельности подведомственных учреждений",8,1,4419900,0,899.1,935.8]
["Выполнение функций казенными учреждениями",8,1,4419900,"001",899.1,935.8]
["Библиотеки",8,1,4420000,0,5424.3,5676.8]
["Обеспечение деятельности подведомственных учреждений",8,1,4429900,0,5424.3,5676.8]
["Выполнение функций казенными учреждениями",8,1,4429900,"001",5424.3,5676.8]
["Целевые программы муниципальных образований",8,1,7950000,0,1004,1139.2]
["Долгосрочная целевая программа Черемховского районного муниципального образования \"Повышение эффективности бюджетных расходов Черемховского районного муниципального образования на 2012-2013 годы\"",8,1,7950200,0,0,0]
["Выполнение функций казенными учреждениями",8,1,7950200,"001",0,0]
["Долгосрочная целевая программа энергосбережения и повышения энергетической эффективности Черемховского районного муниципального образования на 2010-2015 годы",8,1,7951100,0,100,200]
["Мероприятия по повышению энергетической эффективности",8,1,7951100,"451",100,200]
["Долгосрочная целевая программа \"Развитие культуры в Черемховском районном муниципальном образовании на период 2012-2016 гг.\"",8,1,7952000,0,904,939.2]
["Мероприятия по поддержке и развитию культуры, искусства, кинематографии",8,1,7952000,"023",904,939.2]
["Другие вопросы в области культуры, кинематографии",8,4,0,0,935.9,981.1]
["Руководство и управление в сфере установленных функций органов государственной власти субъектов Российской Федерации  и органов местного самоуправления",8,4,20000,0,935.9,981.1]
["Центральный аппарат",8,4,20400,0,935.9,981.1]
["Выполнение функций органами местного самоуправления",8,4,20400,"500",935.9,981.1]
["Социальная политика",10,0,0,0,19563.2,19960.400000000001]
["Пенсионное обеспечение",10,1,0,0,2980,2980]
["Доплаты к пенсиям, дополнительное пенсионное обеспечение ",10,1,4910000,0,2980,2980]
["Доплаты к пенсиям государственных служащих субъектов Российской Федерации и муниципальных служащих ",10,1,4910100,0,2980,2980]
["Социальные выплаты",10,1,4910100,"005",2980,2980]
["Социальное обеспечение населения",10,3,0,0,15405.1,15802.3]
["Руководство и управление в сфере установленных функций органов государственной власти субъектов Российской Федерации  и органов местного самоуправления",10,3,20000,0,14247.6,14596.2]
["Осуществление отдельных областных государственных полномочий по предоставлению мер социальной поддержки многодетным и малоимущим семьям",10,3,24600,0,6361.8,6361.8]
["Социальные выплаты",10,3,24600,"005",6361.8,6361.8]
["Осуществление областных государственных полномочий по предоставлению гражданам субсидий на оплату жилых помещений и коммунальных услуг",10,3,24700,0,7885.8,8234.4]
["Содержание и обеспечение деятельности муниципальных служащих, осуществляющих областные государственные полномочия по предоставлению гражданам субсидий на оплату жилых помещений и коммунальных услуг",10,3,24701,0,771.9,771.9]
["Выполнение функций органами местного самоуправления",10,3,24701,"500",771.9,771.9]
["Предоставление гражданам субсидий на оплату жилых помещений и коммунальных услуг",10,3,24702,0,7113.9,7462.5]
["Социальные выплаты",10,3,24702,"005",7113.9,7462.5]
["Реализация государственных функций в области социальной политики",10,3,5140000,0,882.1,910]
["Мероприятия в области социальной политики",10,3,5140100,0,882.1,910]
["Социальные выплаты",10,3,5140100,"005",882.1,910]
["Целевые программы муниципальных образований",10,3,7950000,0,275.39999999999998,296.10000000000002]
["Районная социальная программа \"Молодым семьям-доступное жилье\" на 2012-2019 гг.",10,3,7952100,0,275.39999999999998,296.10000000000002]
["Социальные выплаты",10,3,7952100,"005",275.39999999999998,296.10000000000002]
["Охрана семьи и детства",10,4,0,0,0,0]
["Исполнение судебных актов, вступивших в силу до 1 января 2013 года, по обеспечению жилыми помещениями детей-сирот и детей, оставшихся без попечения родителей, лиц из числа детей-сирот и детей, оставшихся без попечения родителей, не имеющих закрепленного жилого помещения",10,4,6040000,0,0,0]
["Бюджетные инвестиции",10,4,6040000,"003",0,0]
["Другие вопросы в области социальной политики",10,6,0,0,1178.0999999999999,1178.0999999999999]
["Руководство и управление в сфере установленных функций органов государственной власти субъектов Российской Федерации  и органов местного самоуправления",10,6,20000,0,1078.0999999999999,1078.0999999999999]
["Осуществление областных государственных полномочий по определению персонального состава и обеспечению деятельности районных (городских), районных в городах комиссий по делам несовершеннолетних и защите их прав",10,6,24100,0,1078.0999999999999,1078.0999999999999]
["Выполнение функций органами местного самоуправления",10,6,24100,"500",1078.0999999999999,1078.0999999999999]
["Целевые программы муниципальных образований",10,6,7950000,0,100,100]
["Муниципальная целевая программа \"Поддержка, проводимых мероприятий, посвященных Дням воинской славы, памятным датам России и работе с ветеранами и инвалидами в Черемховском районе на 2013-2015 гг.\"",10,6,7952400,0,100,100]
["Выполнение функций органами местного самоуправления",10,6,7952400,"500",100,100]
["ФИЗИЧЕСКАЯ КУЛЬТУРА И СПОРТ",11,0,0,0,82.4,82.4]
["Физическая культура",11,1,0,0,82.4,82.4]
["Физкультурно-оздоровительная работа и спортивные мероприятия",11,1,5120000,0,82.4,82.4]
["Мероприятия в области спорта, физической культуры и туризма",11,1,5129700,0,82.4,82.4]
["Выполнение функций органами местного самоуправления",11,1,5129700,"500",82.4,82.4]
["Целевые программы муниципальных образований",11,1,7950000,0,0,0]
["Долгосрочная целевая программа \"Развитие физической культуры, спорта и туризма в Черемховском районном муниципальном образовании на 2011-2013 гг.\"",11,1,7951200,0,0,0]
["Выполнение функций органами местного самоуправления",11,1,7951200,"500",0,0]
["СРЕДСТВА МАССОВОЙ ИНФОРМАЦИИ",12,0,0,0,2000,2000]
["Периодическая печать и издательства",12,2,0,0,2000,2000]
["Периодические издания, учрежденные органами законодательной и исполнительной власти",12,2,4570000,0,2000,2000]
["Государственная поддержка в сфере культуры, кинематографии и средств массовой информации",12,2,4578500,0,2000,2000]
["Субсидии юридическим лицам",12,2,4578500,"006",2000,2000]
["ОБСЛУЖИВАНИЕ ГОСУДАРСТВЕННОГО И МУНИЦИПАЛЬНОГО ДОЛГА",13,0,0,0,61.2,63.5]
["Обслуживание внутреннего государственного и муниципального долга",13,1,0,0,61.2,63.5]
["Процентные платежи по долговым обязательствам",13,1,650000,0,61.2,63.5]
["Процентные платежи по муниципальному долгу",13,1,650300,0,61.2,63.5]
["Прочие расходы",13,1,650300,"013",61.2,63.5]
["МЕЖБЮДЖЕТНЫЕ ТРАНСФЕРТЫ ОБЩЕГО ХАРАКТЕРА БЮДЖЕТАМ СУБЪЕКТОВ РОССИЙСКОЙ ФЕДЕРАЦИИ И МУНИЦИПАЛЬНЫХ ОБРАЗОВАНИЙ ",14,0,0,0,3400,3500]
["Дотации на выравнивание бюджетной обеспеченности субъектов Российской Федерации и муниципальных образований",14,1,0,0,3400,3500]
["Выравнивание бюджетной обеспечености",14,1,5160000,0,3400,3500]
["Выравнивание бюджетной обеспеченности",14,1,5160100,0,3400,3500]
["Выравнивание бюджетной обеспеченности поселений из районного фонда финансовой поддержки",14,1,5160130,0,3400,3500]
["Фонд финансовой поддержки",14,1,5160130,"008",3400,3500]
["Прочие межбюджетные трансферты общего характера бюджетам субъектов Российской Федерации и муниципальных образований ",14,3,0,0,0,0]
["Целевые программы муниципальных образований",14,3,7950000,0,0,0]
["Долгосрочная целевая программа Черемховского районного муниципального образования \"Повышение эффективности бюджетных расходов Черемховского районного муниципального образования на 2012-2013 годы\"",14,3,7950200,0,0,0]
["Иные межбюджетные трансферты",14,3,7950200,"017",0,0]
["ИТОГО",{"$nulls":4},451351,448058]
[]
["Начальник Финансового управления",null,null,null,"Ю.Н. Гайдук"]

{"sheet":"прил8","index":7,"n_rows":50,"n_cols":4,"rows_kept":50,"cut":false,"hidden":false,"merged":[[6,0,6,3],[46,0,46,2]]}
[]
[]
[]
[]
[]
[]
["Распределение бюджетных ассигнований  по  разделам и подразделам классификации расходов бюджетов Черемховского районного муниципального образования на 2013 год"]
[]
["Наименование статьи","раздел","подраздел","Сумма, тыс. руб."]
[1,2,3,4]
["ОБЩЕГОСУДАРСТВЕННЫЕ ВОПРОСЫ","01",null,{"$f":"SUM(D12:D17)","v":65588}]
["Функционирование высшего должностного лица субъекта Российской Федерации и органа местного самоуправления","01","02",{"$f":"прил6!F14","v":1751.7}]
["Функционирование законодательных (представительных) органов государственной власти и местного самоуправления","01","03",{"$f":"прил6!F18","v":1180.4000000000001}]
["Функционирование Правительства Российской Федерации, высших органов исполнительной власти субъектов Российской Федерации, местных администраций ","01","04",{"$f":"прил6!F24","v":25658.3}]
["Обеспечение деятельности финансовых, налоговых и таможенных органов и органов надзора","01","06",{"$f":"прил6!F28","v":9438.4}]
["Резервные фонды","01","11",{"$f":"прил6!F42","v":300}]
["Другие общегосударственные вопросы","01","13",{"$f":"прил6!F46","v":27259.200000000001}]
["НАЦИОНАЛЬНАЯ ЭКОНОМИКА","04",null,{"$f":"D20+D19","v":801.6}]
["Дорожное хозяйство(дорожные фонды)","04","09",{"$f":"прил6!F76","v":201.6}]
["Другие вопросы в области национальной экономики","04","12",{"$f":"прил6!F80","v":600}]
["ЖИЛИЩНО-КОММУНАЛЬНОЕ ХОЗЯЙСТВО","05",null,{"$f":"D23+D22","v":5800.9}]
["Жилищное хозяйство","05","01",{"$f":"прил6!F87","v":500}]
["Другие вопросы в области жилищно-коммунального хозяйства","05","05",{"$f":"прил6!F91","v":5300.9}]
["ОБРАЗОВАНИЕ","07",null,{"$f":"D25+D26+D28+D29+D27","v":363836.49999999994}]
["Дошкольное образование","07","01",{"$f":"прил6!F96","v":66965.7}]
["Общее образование","07","02",{"$f":"прил6!F113","v":288954.59999999998}]
["Профессиональная подготовка, переподготовка и повышение квалификации","07","05",{"$f":"прил6!F138","v":134.1}]
["Молодежная политика и оздоровление детей","07","07",{"$f":"прил6!F142","v":222}]
["Другие вопросы в области образования","07","09",{"$f":"прил6!F155","v":7560.1}]
["КУЛЬТУРА И КИНЕМАТОГРАФИЯ ","08",null,{"$f":"D31+D32","v":15466.2}]
["Культура ","08","01",{"$f":"прил6!F162","v":14302}]
["Другие вопросы в области культуры, кинематографии","08","04",{"$f":"прил6!F184","v":1164.2}]
["СОЦИАЛЬНАЯ ПОЛИТИКА",10,null,{"$f":"D34+D35+D37+D36","v":19692.399999999998}]
["Пенсионное обеспечение","10","01",{"$f":"прил6!F189","v":2980}]
["Социальное обеспечение населения","10","03",{"$f":"прил6!F193","v":15006.3}]
["Охрана семьи и детства","10","04",{"$f":"прил6!F208","v":528}]
["Другие вопросы в области социальной политики","10","06",{"$f":"прил6!F211","v":1178.0999999999999}]
["ФИЗИЧЕСКАЯ КУЛЬТУРА И СПОРТ","11",null,{"$f":"D39","v":182.4}]
["Физическая культура","11","01",{"$f":"прил6!F219","v":182.4}]
["СРЕДСТВА МАССОВОЙ ИНФОРМАЦИИ","12",null,{"$f":"D41","v":2000}]
["Периодическая печать и издательства","12","02",{"$f":"прил6!F227","v":2000}]
["ОБСЛУЖИВАНИЕ ГОСУДАРСТВЕННОГО И МУНИЦИПАЛЬНОГО ДОЛГА","13",null,{"$f":"D43","v":60}]
["Обслуживание внутреннего государственного и муниципального долга","13","01",{"$f":"прил6!F232","v":60}]
["МЕЖБЮДЖЕТНЫЕ ТРАНСФЕРТЫ ОБЩЕГО ХАРАКТЕРА БЮДЖЕТАМ СУБЪЕКТОВ РОССИЙСКОЙ ФЕДЕРАЦИИ И МУНИЦИПАЛЬНЫХ ОБРАЗОВАНИЙ ","14",null,{"$f":"D45+D46","v":5375}]
["Дотации на выравнивание бюджетной обеспеченности субъектов Российской Федерации и муниципальных образований","14","01",{"$f":"прил6!F237","v":3500}]
["Прочие межбюджетные трансферты общего характера бюджетам субъектов Российской Федерации и муниципальных образований ","14","03",{"$f":"прил6!F242","v":1875}]
["ИТОГО",null,null,{"$f":"D11+D18+D21+D24+D30+D33+D38+D40+D42+D44","v":478803}]
[]
[]
["Начальник Финансового управления",null,null,"Ю.Н. Гайдук"]

{"sheet":"прил9","index":8,"n_rows":49,"n_cols":5,"rows_kept":49,"cut":false,"hidden":false,"merged":[[48,3,48,4],[6,0,6,4],[8,0,9,0],[8,1,9,1],[8,2,9,2],[8,3,8,4],[45,0,45,2]]}
[]
[]
[]
[]
[]
[]
["Распределение бюджетных ассигнований  по  разделам и подразделам классификации расходов бюджетов Черемховского районного муниципального образования на плановый период 2014 и 2015 годов"]
[]
["Наименование статьи","раздел","подраздел","Сумма, тыс. руб."]
[null,null,null,2014,2015]
[1,2,3,4,5]
["ОБЩЕГОСУДАРСТВЕННЫЕ ВОПРОСЫ","01",null,{"$f":"SUM(D13:D19)","v":57198.399999999994},{"$f":"SUM(E13:E19)","v":56134.3}]
["Функционирование высшего должностного лица субъекта Российской Федерации и органа местного самоуправления","01","02",{"$f":"прил7!F13","v":1403},{"$f":"прил7!G13","v":1472.1}]
["Функционирование законодательных (представительных) органов государственной власти и местного самоуправления","01","03",{"$f":"прил7!F17","v":940.5},{"$f":"прил7!G17","v":986.3}]
["Функционирование Правительства Российской Федерации, высших органов исполнительной власти субъектов Российской Федерации, местных администраций ","01","04",{"$f":"прил7!F23","v":20515.599999999999},{"$f":"прил7!G23","v":21389.4}]
["Обеспечение деятельности финансовых, налоговых и таможенных органов и органов надзора","01","06",{"$f":"прил7!F27","v":7459.3},{"$f":"прил7!G27","v":7789.5}]
["Обеспечение проведения выборов и референдумов","01","07",{"$f":"прил7!F36","v":2500},{"$f":"прил7!G36","v":0}]
["Резервные фонды","01","11",{"$f":"прил7!F41","v":300},{"$f":"прил7!G41","v":300}]
["Другие общегосударственные вопросы","01","13",{"$f":"прил7!F45","v":24080},{"$f":"прил7!G45","v":24197}]
["НАЦИОНАЛЬНАЯ ЭКОНОМИКА","04",null,{"$f":"D22+D21","v":3698.1},{"$f":"E22+E21","v":2406.5}]
["Дорожное хозяйство(дорожные фонды)","04","09",{"$f":"прил7!F75","v":3048.1},{"$f":"прил7!G75","v":2406.5}]
["Другие вопросы в области национальной экономики","04","12",{"$f":"прил7!F79","v":650},{"$f":"прил7!G79","v":0}]
["ЖИЛИЩНО-КОММУНАЛЬНОЕ ХОЗЯЙСТВО","05",null,{"$f":"D24","v":4258},{"$f":"E24","v":4464.7}]
["Другие вопросы в области жилищно-коммунального хозяйства","05","05",{"$f":"прил7!F90","v":4258},{"$f":"прил7!G90","v":4464.7}]
["ОБРАЗОВАНИЕ","07",null,{"$f":"D26+D27+D29+D30+D28","v":348970.3},{"$f":"E26+E27+E29+E30+E28","v":346703.1}]
["Дошкольное образование","07","01",{"$f":"прил7!F95","v":64603.4},{"$f":"прил7!G95","v":62906.1}]
["Общее образование","07","02",{"$f":"прил7!F112","v":276921.3},{"$f":"прил7!G112","v":276261.59999999998}]
["Профессиональная подготовка, переподготовка и повышение квалификации","07","05",{"$f":"прил7!F137","v":127},{"$f":"прил7!G137","v":127}]
["Молодежная политика и оздоровление детей","07","07",{"$f":"прил7!F141","v":212},{"$f":"прил7!G141","v":212}]
["Другие вопросы в области образования","07","09",{"$f":"прил7!F154","v":7106.6},{"$f":"прил7!G154","v":7196.4}]
["КУЛЬТУРА И КИНЕМАТОГРАФИЯ ","08",null,{"$f":"D32+D33","v":12119.4},{"$f":"E32+E33","v":12743.1}]
["Культура ","08","01",{"$f":"прил7!F161","v":11183.5},{"$f":"прил7!G161","v":11762}]
["Другие вопросы в области культуры, кинематографии","08","04",{"$f":"прил7!F183","v":935.9},{"$f":"прил7!G183","v":981.1}]
["СОЦИАЛЬНАЯ ПОЛИТИКА",10,null,{"$f":"D35+D36+D37","v":19563.199999999997},{"$f":"E35+E36+E37","v":19960.399999999998}]
["Пенсионное обеспечение","10","01",{"$f":"прил7!F188","v":2980},{"$f":"прил7!G188","v":2980}]
["Социальное обеспечение населения","10","03",{"$f":"прил7!F192","v":15405.1},{"$f":"прил7!G192","v":15802.3}]
["Другие вопросы в области социальной политики","10","06",{"$f":"прил7!F210","v":1178.0999999999999},{"$f":"прил7!G210","v":1178.0999999999999}]
["ФИЗИЧЕСКАЯ КУЛЬТУРА И СПОРТ","11",null,{"$f":"D39","v":82.4},{"$f":"E39","v":82.4}]
["Физическая культура","11","01",{"$f":"прил7!F218","v":82.4},{"$f":"прил7!G218","v":82.4}]
["СРЕДСТВА МАССОВОЙ ИНФОРМАЦИИ","12",null,{"$f":"D41","v":2000},{"$f":"E41","v":2000}]
["Периодическая печать и издательства","12","02",{"$f":"прил7!F226","v":2000},{"$f":"прил7!G226","v":2000}]
["ОБСЛУЖИВАНИЕ ГОСУДАРСТВЕННОГО И МУНИЦИПАЛЬНОГО ДОЛГА","13",null,{"$f":"D43","v":61.2},{"$f":"E43","v":63.5}]
["Обслуживание внутреннего государственного и муниципального долга","13","01",{"$f":"прил7!F231","v":61.2},{"$f":"прил7!G231","v":63.5}]
["МЕЖБЮДЖЕТНЫЕ ТРАНСФЕРТЫ ОБЩЕГО ХАРАКТЕРА БЮДЖЕТАМ СУБЪЕКТОВ РОССИЙСКОЙ ФЕДЕРАЦИИ И МУНИЦИПАЛЬНЫХ ОБРАЗОВАНИЙ ","14",null,{"$f":"D45","v":3400},{"$f":"E45","v":3500}]
["Дотации на выравнивание бюджетной обеспеченности субъектов Российской Федерации и муниципальных образований","14","01",{"$f":"прил7!F236","v":3400},{"$f":"прил7!G236","v":3500}]
["ИТОГО",null,null,{"$f":"D12+D20+D23+D25+D31+D34+D38+D40+D42+D44","v":451351.00000000006},{"$f":"E12+E20+E23+E25+E31+E34+E38+E40+E42+E44","v":448058}]
[]
[]
["Начальник Финансового управления",null,null,"Ю.Н. Гайдук"]

{"sheet":"прил10","index":9,"n_rows":313,"n_cols":7,"rows_kept":313,"cut":false,"hidden":false,"merged":[[9,0,10,0],[9,1,9,5],[9,6,10,6],[310,0,310,5],[7,0,7,6]]}
{"$rows_empty":7}
["Распределение  бюджетных ассигнований по разделам, подразделам, целевым статьям и видам расходов классификации расходов бюджетов в ведомственной структуре расходов бюджета Черемховского районного муниципального образования на 2013 год"]
[]
["Наименование показателя","Код",{"$nulls":4},"Сумма, тыс. руб. "]
[null,"ГРБС","раздела","подраздела","целевой статьи","вида расходов"]
[1,2,3,4,5,6,7]
["Отдел по культуре и библиотечному обслуживанию АЧРМО",904,0,0,0,0,19887.099999999999]
["ОБРАЗОВАНИЕ",904,7,0,0,0,4920.8999999999996]
["Общее образование",904,7,2,0,0,4912.8]
["Учреждения по внешкольной работе с детьми",904,7,2,4230000,0,4645]
["Обеспечение деятельности подведомственных учреждений",904,7,2,4239900,0,4645]
["Выполнение функций казенными учреждениями",904,7,2,4239900,"001",4645]
["Целевые программы муниципальных образований",904,7,2,7950000,0,267.8]
["Долгосрочная целевая программа Черемховского районного муниципального образования \"Повышение эффективности бюджетных расходов Черемховского районного муниципального образования на 2012-2013 годы\"",904,7,2,7950200,0,175]
["Выполнение функций казенными учреждениями",904,7,2,7950200,"001",175]
["Долгосрочная целевая программа \"Развитие культуры в Черемховском районном муниципальном образовании на период 2012-2016 гг.\"",904,7,2,7952000,0,92.8]
["Мероприятия по поддержке и развитию культуры, искусства, кинематографии",904,7,2,7952000,"023",92.8]
["Профессиональная подготовка, переподготовка и повышение квалификации",904,7,5,0,0,8.1]
["Мероприятия по переподготовке и повышению квалификации",904,7,5,4340000,0,8.1]
["Выполнение функций казенными учреждениями",904,7,5,4340000,"001",8.1]
["КУЛЬТУРА И КИНЕМАТОГРАФИЯ",904,8,0,0,0,14966.2]
["Культура",904,8,1,0,0,13802]
["Учреждения культуры и мероприятия в сфере культуры и кинематографии",904,8,1,4400000,0,4596.3]
["Комплектование книжных фондов библиотек муниципальных образований и государственных библиотек городов Москвы и Санкт-Петербурга",904,8,1,4400200,0,466.3]
["Комплектование книжных фондов библиотек муниципальных образований и государственных библиотек городов Москвы и Санкт-Петербурга за счет средств федерального бюджета",904,8,1,4400201,0,303.60000000000002]
["Выполнение функций казенными учреждениями",904,8,1,4400201,"001",303.60000000000002]
["Комплектование книжных фондов библиотек муниципальных образований и государственных библиотек городов Москвы и Санкт-Петербурга за счет областного бюджета",904,8,1,4400202,0,162.69999999999999]
["Выполнение функций казенными учреждениями",904,8,1,4400202,"001",162.69999999999999]
["Обеспечение деятельности подведомственных учреждений",904,8,1,4409900,0,4130]
["Выполнение функций казенными учреждениями",904,8,1,4409900,"001",4130]
["Музеи и постоянные выставки",904,8,1,4410000,0,1081.0999999999999]
["Обеспечение деятельности подведомственных учреждений",904,8,1,4419900,0,1081.0999999999999]
["Выполнение функций казенными учреждениями",904,8,1,4419900,"001",1081.0999999999999]
["Библиотеки",904,8,1,4420000,0,6603.6]
["Обеспечение деятельности подведомственных учреждений",904,8,1,4429900,0,6603.6]
["Выполнение функций казенными учреждениями",904,8,1,4429900,"001",6603.6]
["Целевые программы муниципальных образований",904,8,1,7950000,0,1521]
["Долгосрочная целевая программа Черемховского районного муниципального образования \"Повышение эффективности бюджетных расходов Черемховского районного муниципального образования на 2012-2013 годы\"",904,8,1,7950200,0,308]
["Выполнение функций казенными учреждениями",904,8,1,7950200,"001",308]
["Долгосрочная целевая программа энергосбережения и повышения энергетической эффективности Черемховского районного муниципального образования на 2010-2015 годы",904,8,1,7951100,0,282]
["Мероприятия по повышению энергетической эффективности",904,8,1,7951100,"451",282]
["Долгосрочная целевая программа \"Развитие культуры в Черемховском районном муниципальном образовании на период 2012-2016 гг.\"",904,8,1,7952000,0,931]
["Мероприятия по поддержке и развитию культуры, искусства, кинематографии",904,8,1,7952000,"023",931]
["Другие вопросы в области культуры, кинематографии",904,8,4,0,0,1164.2]
["Руководство и управление в сфере установленных функций органов государственной власти субъектов Российской Федерации  и органов местного самоуправления",904,8,4,20000,0,1164.2]
["Центральный аппарат",904,8,4,20400,0,1164.2]
["Выполнение функций органами местного самоуправления",904,8,4,20400,"500",1164.2]
["Отдел образования АЧРМО",907,0,0,0,0,365155.5]
["ОБРАЗОВАНИЕ",907,7,0,0,0,358793.7]
["Дошкольное образование",907,7,1,0,0,66965.8]
["Детские дошкольные учреждения",907,7,1,4200000,0,61865.8]
["Обеспечение деятельности подведомственных учреждений",907,7,1,4209900,0,61865.8]
["Выполнение функций казенными учреждениями",907,7,1,4209900,"001",61865.8]
["Выплата заработной платы с начислениями на нее педагогическим работникам муниципальных дошкольных образовательных учреждений и муниципальных учреждений дополнительного образования",907,7,1,5890000,0,1465]
["Выполнение функций казенными учреждениями",907,7,1,5890000,"001",1465]
["Целевые программы муниципальных образований",907,7,1,7950000,0,3635]
["Долгосрочная целевая программа Черемховского районного муниципального образования \"Повышение эффективности бюджетных расходов Черемховского районного муниципального образования на 2012-2013 годы\"",907,7,1,7950200,0,2011]
["Выполнение функций казенными учреждениями",907,7,1,7950200,"001",2011]
["Долгосрочная целевая программа \"Безопасность образовательных учреждений на 2010-2014 гг.\"",907,7,1,7951000,0,572]
["Мероприятия по обеспечению пожарной безопасности",907,7,1,7951000,"450",572]
["Долгосрочная целевая программа энергосбережения и повышения энергетической эффективности Черемховского районного муниципального образования на 2010-2015 годы",907,7,1,7951100,0,0]
["Мероприятия по повышению энергетической эффективности",907,7,1,7951100,"451",0]
["Долгосрочная целевая программа \"Развитие дошкольного образования на 2011-2014 гг.\"",907,7,1,7951700,0,702]
["Мероприятия в сфере образования",907,7,1,7951700,"022",702]
["Долгосрочная целевая программа \"Совершенствование дошкольного образования Черемховского района на 2011-2014 гг.\"",907,7,1,7951800,0,350]
["Мероприятия в сфере образования",907,7,1,7951800,"022",350]
["Общее образование",907,7,2,0,0,284041.8]
["Руководство и управление в сфере установленных функций органов государственной власти субъектов Российской Федерации  и органов местного самоуправления",907,7,2,20000,0,238581.5]
["Обеспечение государственных гарантий прав граждан на получение общедоступного и бесплатного дошкольного, начального общего, основного общего, среднего (полного) общего образования, а также дополнительного образования в общеобразовательных учреждениях",907,7,2,25000,0,238581.5]
["Выполнение функций казенными учреждениями",907,7,2,25000,"001",238581.5]
["Школы - детские сады, школы начальные, неполные средние и средние",907,7,2,4210000,0,16326.8]
["Обеспечение деятельности подведомственных учреждений",907,7,2,4219900,0,16326.8]
["Выполнение функций казенными учреждениями",907,7,2,4219900,"001",16326.8]
["Учреждения по внешкольной работе с детьми",907,7,2,4230000,0,20412.400000000001]
["Обеспечение деятельности подведомственных учреждений",907,7,2,4239900,0,20412.400000000001]
["Выполнение функций казенными учреждениями",907,7,2,4239900,"001",20412.400000000001]
["Выплата заработной платы с начислениями на нее педагогическим работникам муниципальных дошкольных образовательных учреждений и муниципальных учреждений дополнительного образования",907,7,2,5890000,0,540.1]
["Выполнение функций казенными учреждениями",907,7,2,5890000,"001",540.1]
["Целевые программы муниципальных образований",907,7,2,7950000,0,8181]
["Долгосрочная целевая программа Черемховского районного муниципального образования \"Повышение эффективности бюджетных расходов Черемховского районного муниципального образования на 2012-2013 годы\"",907,7,2,7950200,0,5003]
["Выполнение функций казенными учреждениями",907,7,2,7950200,"001",5003]
["Долгосрочная целевая программа \"Безопасность образовательных учреждений на 2010-2014 гг.\"",907,7,2,7951000,0,1128]
["Мероприятия по обеспечению пожарной безопасности",907,7,2,7951000,"450",1128]
["Долгосрочная целевая программа энергосбережения и повышения энергетической эффективности Черемховского районного муниципального образования на 2010-2015 годы",907,7,2,7951100,0,600]
["Мероприятия по повышению энергетической эффективности",907,7,2,7951100,"451",600]
["Долгосрочная целевая программа \"Ветхие школы Черемховского района\" на 2011-2013 гг.",907,7,2,7951500,0,450]
["Мероприятия в сфере образования",907,7,2,7951500,"022",450]
["Долгосрочная целевая программа \"Совершенствование организации питания в образовательных учреждениях Черемховского района на 2011-2013гг.\"",907,7,2,7951600,0,1000]
["Мероприятия в сфере образования",907,7,2,7951600,"022",1000]
["Профессиональная подготовка, переподготовка и повышение квалификации",907,7,5,0,0,100]
["Мероприятия по переподготовке и повышению квалификации",907,7,5,4340000,0,100]
["Выполнение функций казенными учреждениями",907,7,5,4340000,"001",100]
["Молодежная политика и оздоровление детей",907,7,7,0,0,126]
["Мероприятия по проведению оздоровительной кампании детей",907,7,7,4320000,0,126]
["Оплата стоимости набора продуктов питания для детей в организованных органами местного самоуправления оздоровительных лагерях с дневным пребыванием детей за счет средств областного бюджета",907,7,7,4320300,0,126]
["Оплата стоимости набора продуктов питания для детей в организованных органами местного самоуправления оздоровительных лагерях с дневным пребыванием детей за счет средств местного бюджета ",907,7,7,4320302,0,126]
["Выполнение функций казенными учреждениями",907,7,7,4320302,"001",126]
["Другие вопросы в области образования",907,7,9,0,0,7560.1]
["Руководство и управление в сфере установленных функций органов государственной власти субъектов Российской Федерации  и органов местного самоуправления",907,7,9,20000,0,2560.1]
["Центральный аппарат",907,7,9,20400,0,2560.1]
["Выполнение функций органами местного самоуправления",907,7,9,20400,"500",2560.1]
["Учебно-методические кабинеты, централизованные бухгалтерии, группы хозяйственного обслуживания, учебные фильмотеки, межшкольные учебно-производственные комбинаты, логопедические пункты",907,7,9,4520000,0,5000]
["Субсидии бюджетным учреждениям на финансовое обеспечение муниципального задания на оказание муниципальных услуг (выполнение работ)",907,7,9,4520000,"611",5000]
["Социальная политика",907,10,0,0,0,6361.8]
["Социальное обеспечение населения",907,10,3,0,0,6361.8]
["Руководство и управление в сфере установленных функций органов государственной власти субъектов Российской Федерации  и органов местного самоуправления",907,10,3,20000,0,6361.8]
["Осуществление отдельных областных государственных полномочий по предоставлению мер социальной поддержки многодетным и малоимущим семьям",907,10,3,24600,0,6361.8]
["Социальные выплаты",907,10,3,24600,"005",6361.8]
["Финансовое управление администрации ЧРМО",910,0,0,0,0,26195]
["ОБЩЕГОСУДАРСТВЕННЫЕ ВОПРОСЫ",910,1,0,0,0,20760]
["Обеспечение деятельности финансовых, налоговых и таможенных органов и органов финансового (финансово-бюджетного) надзора",910,1,6,0,0,7135.5]
["Руководство и управление в сфере установленных функций органов государственной власти субъектов Российской Федерации  и органов местного самоуправления",910,1,6,20000,0,6935.5]
["Центральный аппарат",910,1,6,20400,0,6935.5]
["Выполнение функций органами местного самоуправления",910,1,6,20400,"500",6935.5]
["Целевые программы муниципальных образований",910,1,6,7950000,0,200]
["Долгосрочная целевая программа Черемховского районного муниципального образования \"Повышение эффективности бюджетных расходов Черемховского районного муниципального образования на 2012-2013 годы\"",910,1,6,7950200,0,200]
["Выполнение функций органами местного самоуправления",910,1,6,7950200,"500",200]
["Другие общегосударственные вопросы",910,1,13,0,0,13624.5]
["Руководство и управление в сфере установленных функций органов государственной власти субъектов Российской Федерации  и органов местного самоуправления",910,1,13,20000,0,13624.5]
["Обеспечение деятельности подведомственных учреждений",910,1,13,29900,0,13624.5]
["Выполнение функций казенными учреждениями",910,1,13,29900,"001",13624.5]
["ОБСЛУЖИВАНИЕ ГОСУДАРСТВЕННОГО И МУНИЦИПАЛЬНОГО ДОЛГА",910,13,0,0,0,60]
["Обслуживание внутреннего государственного и муниципального долга",910,13,1,0,0,60]
["Процентные платежи по долговым обязательствам",910,13,1,650000,0,60]
["Процентные платежи по муниципальному долгу",910,13,1,650300,0,60]
["Прочие расходы",910,13,1,650300,"013",60]
["МЕЖБЮДЖЕТНЫЕ ТРАНСФЕРТЫ ОБЩЕГО ХАРАКТЕРА БЮДЖЕТАМ СУБЪЕКТОВ РОССИЙСКОЙ ФЕДЕРАЦИИ И МУНИЦИПАЛЬНЫХ ОБРАЗОВАНИЙ ",910,14,0,0,0,5375]
["Дотации на выравнивание бюджетной обеспеченности субъектов Российской Федерации и муниципальных образований",910,14,1,0,0,3500]
["Выравнивание бюджетной обеспечености",910,14,1,5160000,0,3500]
["Выравнивание бюджетной обеспеченности",910,14,1,5160100,0,3500]
["Выравнивание бюджетной обеспеченности поселений из районного фонда финансовой поддержки",910,14,1,5160130,0,3500]
["Фонд финансовой поддержки",910,14,1,5160130,"008",3500]
["Прочие межбюджетные трансферты общего характера бюджетам субъектов Российской Федерации и муниципальных образований ",910,14,3,0,0,1875]
["Целевые программы муниципальных образований",910,14,3,7950000,0,1875]
["Долгосрочная целевая программа Черемховского районного муниципального образования \"Повышение эффективности бюджетных расходов Черемховского районного муниципального образования на 2012-2013 годы\"",910,14,3,7950200,0,1875]
["Иные межбюджетные трансферты",910,14,3,7950200,"017",1875]
["Комитет по управлению муниципальным имуществом ЧРМО",913,0,0,0,0,13755.3]
["ОБЩЕГОСУДАРСТВЕННЫЕ ВОПРОСЫ",913,1,0,0,0,10727.3]
["Другие общегосударственные вопросы",913,1,13,0,0,10727.3]
["Руководство и управление в сфере установленных функций органов государственной власти субъектов Российской Федерации  и органов местного самоуправления",913,1,13,20000,0,3720]
["Центральный аппарат",913,1,13,20400,0,2820]
["Выполнение функций органами местного самоуправления",913,1,13,20400,"500",2820]
["Обеспечение деятельности подведомственных учреждений",913,1,13,29900,0,900]
["Субсидии бюджетным учреждениям на финансовое обеспечение муниципального задания на оказание муниципальных услуг (выполнение работ)",913,1,13,29900,"611",900]
["Реализация государственных функций, связанных с общегосударственным управлением",913,1,13,920000,0,7.3]
["Выполнение других обязательств государства",913,1,13,920300,0,7.3]
["Выполнение функций органами местного самоуправления",913,1,13,920300,"500",7.3]
["Учреждения по обеспечению хозяйственного обслуживания",913,1,13,930000,0,6500]
["Субсидии бюджетным учреждениям на финансовое обеспечение муниципального задания на оказание муниципальных услуг (выполнение работ)",913,1,13,930000,"611",6500]
["Целевые программы муниципальных образований",913,1,13,7950000,0,500]
["Долгосрочная целевая программа \"Инвентаризация муниципальных объектов недвижимости Черемховского районного муниципального образования на 2012-2014 годы\"",913,1,13,7951900,0,500]
["Выполнение функций органами местного самоуправления",913,1,13,7951900,"500",500]
["НАЦИОНАЛЬНАЯ ЭКОНОМИКА",913,4,0,0,0,500]
["Другие вопросы в области национальной экономики",913,4,12,0,0,500]
["Целевые программы муниципальных образований",913,4,12,7950000,0,500]
["Долгосрочная целевая программа \"Инвентаризация муниципальных объектов недвижимости Черемховского районного муниципального образования на 2012-2014 годы\"",913,4,12,7951900,0,500]
["Выполнение функций органами местного самоуправления",913,4,12,7951900,"500",500]
["Социальная политика",913,10,0,0,0,528]
["Охрана семьи и детства",913,10,4,0,0,528]
["Исполнение судебных актов, вступивших в силу до 1 января 2013 года, по обеспечению жилыми помещениями детей-сирот и детей, оставшихся без попечения родителей, лиц из числа детей-сирот и детей, оставшихся без попечения родителей, не имеющих закрепленного жилого помещения",913,10,4,6040000,0,528]
["Бюджетные инвестиции",913,10,4,6040000,"003",528]
["СРЕДСТВА МАССОВОЙ ИНФОРМАЦИИ",913,12,0,0,0,2000]
["Периодическая печать и издательства",913,12,2,0,0,2000]
["Периодические издания, учрежденные органами законодательной и исполнительной власти",913,12,2,4570000,0,2000]
["Государственная поддержка в сфере культуры, кинематографии и средств массовой информации",913,12,2,4578500,0,2000]
["Субсидии юридическим лицам",913,12,2,4578500,"006",2000]
["Дума ЧРМО",916,0,0,0,0,1180.4000000000001]
["ОБЩЕГОСУДАРСТВЕННЫЕ ВОПРОСЫ",916,1,0,0,0,1180.4000000000001]
["Функционирование законодательных (представительных) органов государственной власти и представительных органов муниципальных образований",916,1,3,0,0,1180.4000000000001]
["Руководство и управление в сфере установленных функций органов государственной власти субъектов Российской Федерации  и органов местного самоуправления",916,1,3,20000,0,1180.4000000000001]
["Центральный аппарат",916,1,3,20400,0,363.6]
["Выполнение функций органами местного самоуправления",916,1,3,20400,"500",363.6]
["Председатель представительного органа муниципального образования",916,1,3,21100,0,816.8]
["Выполнение функций органами местного самоуправления",916,1,3,21100,"500",816.8]
["Администрация ЧРМО",917,0,0,0,0,36957.199999999997]
["ОБЩЕГОСУДАРСТВЕННЫЕ ВОПРОСЫ",917,1,0,0,0,30584.9]
["Функционирование высшего должностного лица субъекта Российской Федерации и муниципального образования",917,1,2,0,0,1751.7]
["Руководство и управление в сфере установленных функций органов государственной власти субъектов Российской Федерации  и органов местного самоуправления",917,1,2,20000,0,1751.7]
["Глава муниципального образования",917,1,2,20300,0,1751.7]
["Выполнение функций органами местного самоуправления",917,1,2,20300,"500",1751.7]
["Функционирование Правительства Российской Федерации, высших исполнительных органов государственной власти субъектов Российской Федерации, местных администраций",917,1,4,0,0,25658.3]
["Руководство и управление в сфере установленных функций органов государственной власти субъектов Российской Федерации  и органов местного самоуправления",917,1,4,20000,0,25658.3]
["Центральный аппарат",917,1,4,20400,0,25658.3]
["Выполнение функций органами местного самоуправления",917,1,4,20400,"500",25658.3]
["Обеспечение проведения выборов и референдумов",917,1,7,0,0,0]
["Проведение выборов и референдумов",917,1,7,200000,0,0]
["Проведение выборов и референдумов",917,1,7,200000,0,0]
["Проведение выборов в представительные органы муниципального образования",917,1,7,200002,0,0]
["Выполнение функций органами местного самоуправления",917,1,7,200002,"500",0]
["Резервные фонды",917,1,11,0,0,300]
["Резервные фонды",917,1,11,700000,0,300]
["Резервные фонды местных администраций",917,1,11,700500,0,300]
["Выполнение функций органами местного самоуправления",917,1,11,700500,"500",300]
["Другие общегосударственные вопросы",917,1,13,0,0,2874.9]
["Руководство и управление в сфере установленных функций органов государственной власти субъектов Российской Федерации  и органов местного самоуправления",917,1,13,20000,0,2588.9]
["Осуществление областных государственных полномочий по хранению, комплектованию, учету и использованию архивных документов, относящихся к государственной собственности Иркутской области",917,1,13,24000,0,1086]
["Выполнение функций органами местного самоуправления",917,1,13,24000,"500",1086]
["Осуществление областных государственных полномочий по определению персонального состава и обеспечению деятельности административных комиссий",917,1,13,24300,0,563.6]
["Выполнение функций органами местного самоуправления",917,1,13,24300,"500",563.6]
["Осуществление отдельных государственных полномочий в области производства и оборота этилового спирта, алкогольной и спиртосодержащей продукции",917,1,13,24400,0,375.7]
["Выполнение функций органами местного самоуправления",917,1,13,24400,"500",375.7]
["Осуществление отдельных областных государственных полномочий в области охраны труда",917,1,13,24500,0,563.6]
["Выполнение функций органами местного самоуправления",917,1,13,24500,"500",563.6]
["Реализация государственных функций, связанных с общегосударственным управлением",917,1,13,920000,0,131]
["Выполнение других обязательств государства",917,1,13,920300,0,131]
["Выполнение функций органами местного самоуправления",917,1,13,920300,"500",131]
["Целевые программы муниципальных образований",917,1,13,7950000,0,155]
["Долгосрочная целевая программа \"Улучшение условий и охраны труда в Черемховском районе на 2011-2013гг.\"",917,1,13,7951400,0,15]
["Выполнение функций органами местного самоуправления",917,1,13,7951400,"500",15]
["Комплексная программа \"Профилактика правонарушений в Черемховском районном муниципальном образовании на 2013-2016 годы\"",917,1,13,7952600,0,40]
["Выполнение функций органами местного самоуправления",917,1,13,7952600,"500",40]
["Долгосрочная целевая программа \"Поддержка молодых педагогов на территории Черемховского районного муниципального образования\" на 2012-2013 годы",917,1,13,7952700,0,100]
["Выполнение функций органами местного самоуправления",917,1,13,7952700,"500",100]
["НАЦИОНАЛЬНАЯ ЭКОНОМИКА",917,4,0,0,0,301.60000000000002]
["Дорожное хозяйство(дорожные фонды)",917,4,9,0,0,201.6]
["Целевые программы муниципальных образований",917,4,9,7950000,0,201.6]
["Долгосрочная целевая программа \"Развитие автомобильных дорог Черемховского районного муниципального образования на 2013-2015 годы\"",917,4,9,7952300,0,201.6]
["Выполнение функций органами местного самоуправления",917,4,9,7952300,"500",201.6]
["Другие вопросы в области национальной экономики",917,4,12,0,0,100]
["Целевые программы муниципальных образований",917,4,12,7950000,0,100]
["Долгосрочная целевая программа \"Поддержка и развитие малого и среднего предпринимательства в Черемховском районе\" на 2013-2014 годы",917,4,12,7952200,0,100]
["Выполнение функций органами местного самоуправления",917,4,12,7952200,"500",100]
["ЖИЛИЩНО-КОММУНАЛЬНОЕ ХОЗЯЙСТВО",917,5,0,0,0,500]
["Жилищное хозяйство",917,5,1,0,0,500]
["Поддержка жилищного хозяйства",917,5,1,3500000,0,500]
["Мероприятия в области жилищного хозяйства",917,5,1,3500300,0,500]
["Выполнение функций органами местного самоуправления",917,5,1,3500300,"500",500]
["ОБРАЗОВАНИЕ",917,7,0,0,0,120]
["Профессиональная подготовка, переподготовка и повышение квалификации",917,7,5,0,0,24]
["Мероприятия по переподготовке и повышению квалификации",917,7,5,4340000,0,24]
["Выполнение функций органами местного самоуправления",917,7,5,4340000,"500",24]
["Молодежная политика и оздоровление детей",917,7,7,0,0,96]
["Организационно-воспитательная работа с молодежью",917,7,7,4310000,0,46]
["Проведение мероприятий для детей и молодежи",917,7,7,4310100,0,46]
["Проведение мероприятия для детей и молодежи",917,7,7,4310100,"447",46]
["Целевые программы муниципальных образований",917,7,7,7950000,0,50]
["Долгосрочная целевая программа \"Комплексные меры профилактики злоупотребления наркотическими средствами и психотропными веществами в Черемховском районном муниципальном образовании на 2011-2013 гг.\"",917,7,7,7951300,0,10]
["Выполнение функций органами местного самоуправления",917,7,7,7951300,"500",10]
["Долгосрочная целевая программа \"Молодежная политика в Черемховском районном муниципальном образовании\" на 2013-2015 гг.",917,7,7,7952500,0,40]
["Проведение мероприятия для детей и молодежи",917,7,7,7952500,"447",40]
["Социальная политика",917,10,0,0,0,5268.3]
["Пенсионное обеспечение",917,10,1,0,0,2980]
["Доплаты к пенсиям, дополнительное пенсионное обеспечение ",917,10,1,4910000,0,2980]
["Доплаты к пенсиям государственных служащих субъектов Российской Федерации и муниципальных служащих ",917,10,1,4910100,0,2980]
["Социальные выплаты",917,10,1,4910100,"005",2980]
["Социальное обеспечение населения",917,10,3,0,0,1110.2]
["Реализация государственных функций в области социальной политики",917,10,3,5140000,0,854]
["Мероприятия в области социальной политики",917,10,3,5140100,0,854]
["Социальные выплаты",917,10,3,5140100,"005",854]
["Целевые программы муниципальных образований",917,10,3,7950000,0,256.2]
["Районная социальная программа \"Молодым семьям-доступное жилье\" на 2012-2019 гг.",917,10,3,7952100,0,256.2]
["Социальные выплаты",917,10,3,7952100,"005",256.2]
["Другие вопросы в области социальной политики",917,10,6,0,0,1178.0999999999999]
["Руководство и управление в сфере установленных функций органов государственной власти субъектов Российской Федерации  и органов местного самоуправления",917,10,6,20000,0,1078.0999999999999]
["Осуществление областных государственных полномочий по определению персонального состава и обеспечению деятельности районных (городских), районных в городах комиссий по делам несовершеннолетних и защите их прав",917,10,6,24100,0,1078.0999999999999]
["Выполнение функций органами местного самоуправления",917,10,6,24100,"500",1078.0999999999999]
["Целевые программы муниципальных образований",917,10,6,7950000,0,100]
["Муниципальная целевая программа \"Поддержка, проводимых мероприятий, посвященных Дням воинской славы, памятным датам России и работе с ветеранами и инвалидами в черемховском районе на 2013-2015 гг.\"",917,10,6,7952400,0,100]
["Выполнение функций органами местного самоуправления",917,10,6,7952400,"500",100]
["ФИЗИЧЕСКАЯ КУЛЬТУРА И СПОРТ",917,11,0,0,0,182.4]
["Физическая культура",917,11,1,0,0,182.4]
["Физкультурно-оздоровительная работа и спортивные мероприятия",917,11,1,5120000,0,82.4]
["Мероприятия в области спорта, физической культуры и туризма",917,11,1,5129700,0,82.4]
["Выполнение функций органами местного самоуправления",917,11,1,5129700,"500",82.4]
["Целевые программы муниципальных образований",917,11,1,7950000,0,100]
["Долгосрочная целевая программа \"Развитие физической культуры, спорта и туризма в Черемховском районном муниципальном образовании на 2011-2013 гг.\"",917,11,1,7951200,0,100]
["Выполнение функций органами местного самоуправления",917,11,1,7951200,"500",100]
["Управление жилищно-коммунального хозяйства, строительства, транспорта, связи и экологии АЧРМО",918,0,0,0,0,12867.6]
["ОБЩЕГОСУДАРСТВЕННЫЕ ВОПРОСЫ",918,1,0,0,0,32.4]
["Другие общегосударственные вопросы",918,1,13,0,0,32.4]
["Реализация государственных функций, связанных с общегосударственным управлением",918,1,13,920000,0,32.4]
["Выполнение других обязательств государства",918,1,13,920300,0,32.4]
["Выполнение функций органами местного самоуправления",918,1,13,920300,"500",32.4]
["ЖИЛИЩНО-КОММУНАЛЬНОЕ ХОЗЯЙСТВО",918,5,0,0,0,5301]
["Другие вопросы в области жилищно-коммунального хозяйства",918,5,5,0,0,5301]
["Руководство и управление в сфере установленных функций органов государственной власти субъектов Российской Федерации  и органов местного самоуправления",918,5,5,20000,0,5301]
["Центральный аппарат",918,5,5,20400,0,5301]
["Выполнение функций органами местного самоуправления",918,5,5,20400,"500",5301]
["Социальная политика",918,10,0,0,0,7534.2]
["Социальное обеспечение населения",918,10,3,0,0,7534.2]
["Руководство и управление в сфере установленных функций органов государственной власти субъектов Российской Федерации  и органов местного самоуправления",918,10,3,20000,0,7534.2]
["Осуществление областных государственных полномочий по предоставлению гражданам субсидий на оплату жилых помещений и коммунальных услуг",918,10,3,24700,0,7534.2]
["Содержание и обеспечение деятельности муниципальных служащих, осуществляющих областные государственные полномочия по предоставлению гражданам субсидий на оплату жилых помещений и коммунальных услуг",918,10,3,24701,0,771.9]
["Выполнение функций органами местного самоуправления",918,10,3,24701,"500",771.9]
["Предоставление гражданам субсидий на оплату жилых помещений и коммунальных услуг",918,10,3,24702,0,6762.3]
["Социальные выплаты",918,10,3,24702,"005",6762.3]
["МКУК \"Межпоселенческий культурный центр АЧРМО\"",919,0,0,0,0,500]
["КУЛЬТУРА И КИНЕМАТОГРАФИЯ",919,8,0,0,0,500]
["Культура",919,8,1,0,0,500]
["Учреждения культуры и мероприятия в сфере культуры и кинематографии",919,8,1,4400000,0,500]
["Обеспечение деятельности подведомственных учреждений",919,8,1,4409900,0,500]
["Выполнение функций казенными учреждениями",919,8,1,4409900,"001",500]
["Контрольно-счетная палата ЧРМО",923,0,0,0,0,2304.9]
["ОБЩЕГОСУДАРСТВЕННЫЕ ВОПРОСЫ",923,1,0,0,0,2302.9]
["Обеспечение деятельности финансовых, налоговых и таможенных органов и органов финансового (финансово-бюджетного) надзора",923,1,6,0,0,2302.9]
["Руководство и управление в сфере установленных функций органов государственной власти субъектов Российской Федерации  и органов местного самоуправления",923,1,6,20000,0,2302.9]
["Центральный аппарат",923,1,6,20400,0,1315.9]
["Выполнение функций органами местного самоуправления",923,1,6,20400,"500",1315.9]
["Руководитель контрольно-счетной палаты муниципального образования и его заместители",923,1,6,22500,0,987]
["Выполнение функций органами местного самоуправления",923,1,6,22500,"500",987]
["ОБРАЗОВАНИЕ",923,7,0,0,0,2]
["Профессиональная подготовка, переподготовка и повышение квалификации",923,7,5,0,0,2]
["Мероприятия по переподготовке и повышению квалификации",923,7,5,4340000,0,2]
["Выполнение функций органами местного самоуправления",923,7,5,4340000,"500",2]
["ИТОГО",{"$nulls":5},478803]
[]
["Начальник Финансового управления",{"$nulls":4},"Ю.Н. Гайдук"]

{"sheet":"прил11","index":10,"n_rows":312,"n_cols":8,"rows_kept":312,"cut":false,"hidden":false,"merged":[[8,0,9,0],[8,1,8,5],[8,6,8,7],[309,0,309,5],[6,0,6,7]]}
[]
[]
[]
[]
[]
[]
["Распределение  бюджетных ассигнований по разделам, подразделам, целевым статьям и видам расходов классификации расходов бюджетов в ведомственной структуре расходов бюджета Черемховского районного муниципального образования на плановый период 2014 и 2015 годов"]
[]
["Наименование показателя","Код",{"$nulls":4},"Сумма, тыс. руб."]
[null,"ГРБС","раздела","подраздела","целевой статьи","вида расходов",2014,2015]
[1,2,3,4,5,6,7,8]
["Отдел по культуре и библиотечному обслуживанию АЧРМО",904,0,0,0,0,16104.7,16855.8]
["ОБРАЗОВАНИЕ",904,7,0,0,0,3985.3,4112.7]
["Общее образование",904,7,2,0,0,3958.3,4085.7]
["Учреждения по внешкольной работе с детьми",904,7,2,4230000,0,3851.3,4011.9]
["Обеспечение деятельности подведомственных учреждений",904,7,2,4239900,0,3851.3,4011.9]
["Выполнение функций казенными учреждениями",904,7,2,4239900,"001",3851.3,4011.9]
["Целевые программы муниципальных образований",904,7,2,7950000,0,107,73.8]
["Долгосрочная целевая программа Черемховского районного муниципального образования \"Повышение эффективности бюджетных расходов Черемховского районного муниципального образования на 2012-2013 годы\"",904,7,2,7950200,0,0,0]
["Выполнение функций казенными учреждениями",904,7,2,7950200,"001",0,0]
["Долгосрочная целевая программа \"Развитие культуры в Черемховском районном муниципальном образовании на период 2012-2016 гг.\"",904,7,2,7952000,0,107,73.8]
["Мероприятия по поддержке и развитию культуры, искусства, кинематографии",904,7,2,7952000,"023",107,73.8]
["Профессиональная подготовка, переподготовка и повышение квалификации",904,7,5,0,0,27,27]
["Мероприятия по переподготовке и повышению квалификации",904,7,5,4340000,0,27,27]
["Выполнение функций казенными учреждениями",904,7,5,4340000,"001",27,27]
["КУЛЬТУРА И КИНЕМАТОГРАФИЯ",904,8,0,0,0,12119.4,12743.1]
["Культура",904,8,1,0,0,11183.5,11762]
["Учреждения культуры и мероприятия в сфере культуры и кинематографии",904,8,1,4400000,0,3856.1,4010.2]
["Комплектование книжных фондов библиотек муниципальных образований и государственных библиотек городов Москвы и Санкт-Петербурга",904,8,1,4400200,0,466.3,466.3]
["Комплектование книжных фондов библиотек муниципальных образований и государственных библиотек городов Москвы и Санкт-Петербурга за счет средств федерального бюджета",904,8,1,4400201,0,303.60000000000002,303.60000000000002]
["Выполнение функций казенными учреждениями",904,8,1,4400201,"001",303.60000000000002,303.60000000000002]
["Комплектование книжных фондов библиотек муниципальных образований и государственных библиотек городов Москвы и Санкт-Петербурга за счет областного бюджета",904,8,1,4400202,0,162.69999999999999,162.69999999999999]
["Выполнение функций казенными учреждениями",904,8,1,4400202,"001",162.69999999999999,162.69999999999999]
["Обеспечение деятельности подведомственных учреждений",904,8,1,4409900,0,3389.8,3543.9]
["Выполнение функций казенными учреждениями",904,8,1,4409900,"001",3389.8,3543.9]
["Музеи и постоянные выставки",904,8,1,4410000,0,899.1,935.8]
["Обеспечение деятельности подведомственных учреждений",904,8,1,4419900,0,899.1,935.8]
["Выполнение функций казенными учреждениями",904,8,1,4419900,"001",899.1,935.8]
["Библиотеки",904,8,1,4420000,0,5424.3,5676.8]
["Обеспечение деятельности подведомственных учреждений",904,8,1,4429900,0,5424.3,5676.8]
["Выполнение функций казенными учреждениями",904,8,1,4429900,"001",5424.3,5676.8]
["Целевые программы муниципальных образований",904,8,1,7950000,0,1004,1139.2]
["Долгосрочная целевая программа Черемховского районного муниципального образования \"Повышение эффективности бюджетных расходов Черемховского районного муниципального образования на 2012-2013 годы\"",904,8,1,7950200,0,0,0]
["Выполнение функций казенными учреждениями",904,8,1,7950200,"001",0,0]
["Долгосрочная целевая программа энергосбережения и повышения энергетической эффективности Черемховского районного муниципального образования на 2010-2015 годы",904,8,1,7951100,0,100,200]
["Мероприятия по повышению энергетической эффективности",904,8,1,7951100,"451",100,200]
["Долгосрочная целевая программа \"Развитие культуры в Черемховском районном муниципальном образовании на период 2012-2016 гг.\"",904,8,1,7952000,0,904,939.2]
["Мероприятия по поддержке и развитию культуры, искусства, кинематографии",904,8,1,7952000,"023",904,939.2]
["Другие вопросы в области культуры, кинематографии",904,8,4,0,0,935.9,981.1]
["Руководство и управление в сфере установленных функций органов государственной власти субъектов Российской Федерации  и органов местного самоуправления",904,8,4,20000,0,935.9,981.1]
["Центральный аппарат",904,8,4,20400,0,935.9,981.1]
["Выполнение функций органами местного самоуправления",904,8,4,20400,"500",935.9,981.1]
["Отдел образования АЧРМО",907,0,0,0,0,351260.8,348866.2]
["ОБРАЗОВАНИЕ",907,7,0,0,0,344899,342504.4]
["Дошкольное образование",907,7,1,0,0,64603.4,62906.1]
["Детские дошкольные учреждения",907,7,1,4200000,0,61308.4,61441.1]
["Обеспечение деятельности подведомственных учреждений",907,7,1,4209900,0,61308.4,61441.1]
["Выполнение функций казенными учреждениями",907,7,1,4209900,"001",61308.4,61441.1]
["Выплата заработной платы с начислениями на нее педагогическим работникам муниципальных дошкольных образовательных учреждений и муниципальных учреждений дополнительного образования",907,7,1,5890000,0,1465,1465]
["Выполнение функций казенными учреждениями",907,7,1,5890000,"001",1465,1465]
["Целевые программы муниципальных образований",907,7,1,7950000,0,1830,0]
["Долгосрочная целевая программа Черемховского районного муниципального образования \"Повышение эффективности бюджетных расходов Черемховского районного муниципального образования на 2012-2013 годы\"",907,7,1,7950200,0,0,0]
["Выполнение функций казенными учреждениями",907,7,1,7950200,"001",0,0]
["Долгосрочная целевая программа \"Безопасность образовательных учреждений на 2010-2014 гг.\"",907,7,1,7951000,0,830,0]
["Мероприятия по обеспечению пожарной безопасности",907,7,1,7951000,"450",830,0]
["Долгосрочная целевая программа энергосбережения и повышения энергетической эффективности Черемховского районного муниципального образования на 2010-2015 годы",907,7,1,7951100,0,600,0]
["Мероприятия по повышению энергетической эффективности",907,7,1,7951100,"451",600,0]
["Долгосрочная целевая программа \"Развитие дошкольного образования на 2011-2014 гг.\"",907,7,1,7951700,0,0,0]
["Мероприятия в сфере образования",907,7,1,7951700,"022",0,0]
["Долгосрочная целевая программа \"Совершенствование дошкольного образования Черемховского района на 2011-2014 гг.\"",907,7,1,7951800,0,400,0]
["Мероприятия в сфере образования",907,7,1,7951800,"022",400,0]
["Общее образование",907,7,2,0,0,272963,272175.90000000002]
["Руководство и управление в сфере установленных функций органов государственной власти субъектов Российской Федерации  и органов местного самоуправления",907,7,2,20000,0,238581.5,238581.5]
["Обеспечение государственных гарантий прав граждан на получение общедоступного и бесплатного дошкольного, начального общего, основного общего, среднего (полного) общего образования, а также дополнительного образования в общеобразовательных учреждениях",907,7,2,25000,0,238581.5,238581.5]
["Выполнение функций казенными учреждениями",907,7,2,25000,"001",238581.5,238581.5]
["Школы - детские сады, школы начальные, неполные средние и средние",907,7,2,4210000,0,15782.6,15808.4]
["Обеспечение деятельности подведомственных учреждений",907,7,2,4219900,0,15782.6,15808.4]
["Выполнение функций казенными учреждениями",907,7,2,4219900,"001",15782.6,15808.4]
["Учреждения по внешкольной работе с детьми",907,7,2,4230000,0,16488.8,17245.900000000001]
["Обеспечение деятельности подведомственных учреждений",907,7,2,4239900,0,16488.8,17245.900000000001]
["Выполнение функций казенными учреждениями",907,7,2,4239900,"001",16488.8,17245.900000000001]
["Выплата заработной платы с начислениями на нее педагогическим работникам муниципальных дошкольных образовательных учреждений и муниципальных учреждений дополнительного образования",907,7,2,5890000,0,540.1,540.1]
["Выполнение функций казенными учреждениями",907,7,2,5890000,"001",540.1,540.1]
["Целевые программы муниципальных образований",907,7,2,7950000,0,1570,0]
["Долгосрочная целевая программа Черемховского районного муниципального образования \"Повышение эффективности бюджетных расходов Черемховского районного муниципального образования на 2012-2013 годы\"",907,7,2,7950200,0,0,0]
["Выполнение функций казенными учреждениями",907,7,2,7950200,"001",0,0]
["Долгосрочная целевая программа \"Безопасность образовательных учреждений на 2010-2014 гг.\"",907,7,2,7951000,0,970,0]
["Мероприятия по обеспечению пожарной безопасности",907,7,2,7951000,"450",970,0]
["Долгосрочная целевая программа энергосбережения и повышения энергетической эффективности Черемховского районного муниципального образования на 2010-2015 годы",907,7,2,7951100,0,0,0]
["Мероприятия по повышению энергетической эффективности",907,7,2,7951100,"451",0,0]
["Долгосрочная целевая программа \"Ветхие школы Черемховского района\" на 2011-2013 гг.",907,7,2,7951500,0,0,0]
["Мероприятия в сфере образования",907,7,2,7951500,"022",0,0]
["Долгосрочная целевая программа \"Совершенствование организации питания в образовательных учреждениях Черемховского района на 2011-2013гг.\"",907,7,2,7951600,0,600,0]
["Мероприятия в сфере образования",907,7,2,7951600,"022",600,0]
["Профессиональная подготовка, переподготовка и повышение квалификации",907,7,5,0,0,100,100]
["Мероприятия по переподготовке и повышению квалификации",907,7,5,4340000,0,100,100]
["Выполнение функций казенными учреждениями",907,7,5,4340000,"001",100,100]
["Молодежная политика и оздоровление детей",907,7,7,0,0,126,126]
["Мероприятия по проведению оздоровительной кампании детей",907,7,7,4320000,0,126,126]
["Оплата стоимости набора продуктов питания для детей в организованных органами местного самоуправления оздоровительных лагерях с дневным пребыванием детей за счет средств областного бюджета",907,7,7,4320300,0,126,126]
["Оплата стоимости набора продуктов питания для детей в организованных органами местного самоуправления оздоровительных лагерях с дневным пребыванием детей за счет средств местного бюджета ",907,7,7,4320302,0,126,126]
["Выполнение функций казенными учреждениями",907,7,7,4320302,"001",126,126]
["Другие вопросы в области образования",907,7,9,0,0,7106.6,7196.4]
["Руководство и управление в сфере установленных функций органов государственной власти субъектов Российской Федерации  и органов местного самоуправления",907,7,9,20000,0,2106.6,2196.4]
["Центральный аппарат",907,7,9,20400,0,2106.6,2196.4]
["Выполнение функций органами местного самоуправления",907,7,9,20400,"500",2106.6,2196.4]
["Учебно-методические кабинеты, централизованные бухгалтерии, группы хозяйственного обслуживания, учебные фильмотеки, межшкольные учебно-производственные комбинаты, логопедические пункты",907,7,9,4520000,0,5000,5000]
["Субсидии бюджетным учреждениям на финансовое обеспечение муниципального задания на оказание муниципальных услуг (выполнение работ)",907,7,9,4520000,"611",5000,5000]
["Социальная политика",907,10,0,0,0,6361.8,6361.8]
["Социальное обеспечение населения",907,10,3,0,0,6361.8,6361.8]
["Руководство и управление в сфере установленных функций органов государственной власти субъектов Российской Федерации  и органов местного самоуправления",907,10,3,20000,0,6361.8,6361.8]
["Осуществление отдельных областных государственных полномочий по предоставлению мер социальной поддержки многодетным и малоимущим семьям",907,10,3,24600,0,6361.8,6361.8]
["Социальные выплаты",907,10,3,24600,"005",6361.8,6361.8]
["Финансовое управление администрации ЧРМО",910,0,0,0,0,20193.3,21036.799999999999]
["ОБЩЕГОСУДАРСТВЕННЫЕ ВОПРОСЫ",910,1,0,0,0,16732.099999999999,17473.3]
["Обеспечение деятельности финансовых, налоговых и таможенных органов и органов финансового (финансово-бюджетного) надзора",910,1,6,0,0,5642.7,5882.2]
["Руководство и управление в сфере установленных функций органов государственной власти субъектов Российской Федерации  и органов местного самоуправления",910,1,6,20000,0,5642.7,5882.2]
["Центральный аппарат",910,1,6,20400,0,5642.7,5882.2]
["Выполнение функций органами местного самоуправления",910,1,6,20400,"500",5642.7,5882.2]
["Целевые программы муниципальных образований",910,1,6,7950000,0,0,0]
["Долгосрочная целевая программа Черемховского районного муниципального образования \"Повышение эффективности бюджетных расходов Черемховского районного муниципального образования на 2012-2013 годы\"",910,1,6,7950200,0,0,0]
["Выполнение функций органами местного самоуправления",910,1,6,7950200,"500",0,0]
["Другие общегосударственные вопросы",910,1,13,0,0,11089.4,11591.1]
["Руководство и управление в сфере установленных функций органов государственной власти субъектов Российской Федерации  и органов местного самоуправления",910,1,13,20000,0,11089.4,11591.1]
["Обеспечение деятельности подведомственных учреждений",910,1,13,29900,0,11089.4,11591.1]
["Выполнение функций казенными учреждениями",910,1,13,29900,"001",11089.4,11591.1]
["ОБСЛУЖИВАНИЕ ГОСУДАРСТВЕННОГО И МУНИЦИПАЛЬНОГО ДОЛГА",910,13,0,0,0,61.2,63.5]
["Обслуживание внутреннего государственного и муниципального долга",910,13,1,0,0,61.2,63.5]
["Процентные платежи по долговым обязательствам",910,13,1,650000,0,61.2,63.5]
["Процентные платежи по муниципальному долгу",910,13,1,650300,0,61.2,63.5]
["Прочие расходы",910,13,1,650300,"013",61.2,63.5]
["МЕЖБЮДЖЕТНЫЕ ТРАНСФЕРТЫ ОБЩЕГО ХАРАКТЕРА БЮДЖЕТАМ СУБЪЕКТОВ РОССИЙСКОЙ ФЕДЕРАЦИИ И МУНИЦИПАЛЬНЫХ ОБРАЗОВАНИЙ ",910,14,0,0,0,3400,3500]
["Дотации на выравнивание бюджетной обеспеченности субъектов Российской Федерации и муниципальных образований",910,14,1,0,0,3400,3500]
["Выравнивание бюджетной обеспечености",910,14,1,5160000,0,3400,3500]
["Выравнивание бюджетной обеспеченности",910,14,1,5160100,0,3400,3500]
["Выравнивание бюджетной обеспеченности поселений из районного фонда финансовой поддержки",910,14,1,5160130,0,3400,3500]
["Фонд финансовой поддержки",910,14,1,5160130,"008",3400,3500]
["Прочие межбюджетные трансферты общего характера бюджетам субъектов Российской Федерации и муниципальных образований ",910,14,3,0,0,0,0]
["Целевые программы муниципальных образований",910,14,3,7950000,0,0,0]
["Долгосрочная целевая программа Черемховского районного муниципального образования \"Повышение эффективности бюджетных расходов Черемховского районного муниципального образования на 2012-2013 годы\"",910,14,3,7950200,0,0,0]
["Иные межбюджетные трансферты",910,14,3,7950200,"017",0,0]
["Комитет по управлению муниципальным имуществом ЧРМО",913,0,0,0,0,12669.7,11759]
["ОБЩЕГОСУДАРСТВЕННЫЕ ВОПРОСЫ",913,1,0,0,0,10169.700000000001,9759]
["Другие общегосударственные вопросы",913,1,13,0,0,10169.700000000001,9759]
["Руководство и управление в сфере установленных функций органов государственной власти субъектов Российской Федерации  и органов местного самоуправления",913,1,13,20000,0,3162.4,3251.7]
["Центральный аппарат",913,1,13,20400,0,2262.4,2351.6999999999998]
["Выполнение функций органами местного самоуправления",913,1,13,20400,"500",2262.4,2351.6999999999998]
["Обеспечение деятельности подведомственных учреждений",913,1,13,29900,0,900,900]
["Субсидии бюджетным учреждениям на финансовое обеспечение муниципального задания на оказание муниципальных услуг (выполнение работ)",913,1,13,29900,"611",900,900]
["Реализация государственных функций, связанных с общегосударственным управлением",913,1,13,920000,0,7.3,7.3]
["Выполнение других обязательств государства",913,1,13,920300,0,7.3,7.3]
["Выполнение функций органами местного самоуправления",913,1,13,920300,"500",7.3,7.3]
["Учреждения по обеспечению хозяйственного обслуживания",913,1,13,930000,0,6500,6500]
["Субсидии бюджетным учреждениям на финансовое обеспечение муниципального задания на оказание муниципальных услуг (выполнение работ)",913,1,13,930000,"611",6500,6500]
["Целевые программы муниципальных образований",913,1,13,7950000,0,500,0]
["Долгосрочная целевая программа \"Инвентаризация муниципальных объектов недвижимости Черемховского районного муниципального образования на 2012-2014 годы\"",913,1,13,7951900,0,500,0]
["Выполнение функций органами местного самоуправления",913,1,13,7951900,"500",500,0]
["НАЦИОНАЛЬНАЯ ЭКОНОМИКА",913,4,0,0,0,500,0]
["Другие вопросы в области национальной экономики",913,4,12,0,0,500,0]
["Целевые программы муниципальных образований",913,4,12,7950000,0,500,0]
["Долгосрочная целевая программа \"Инвентаризация муниципальных объектов недвижимости Черемховского районного муниципального образования на 2012-2014 годы\"",913,4,12,7951900,0,500,0]
["Выполнение функций органами местного самоуправления",913,4,12,7951900,"500",500,0]
["Социальная политика",913,10,0,0,0,0,0]
["Охрана семьи и детства",913,10,4,0,0,0,0]
["Исполнение судебных актов, вступивших в силу до 1 января 2013 года, по обеспечению жилыми помещениями детей-сирот и детей, оставшихся без попечения родителей, лиц из числа детей-сирот и детей, оставшихся без попечения родителей, не имеющих закрепленного жилого помещения",913,10,4,6040000,0,0,0]
["Бюджетные инвестиции",913,10,4,6040000,"003",0,0]
["СРЕДСТВА МАССОВОЙ ИНФОРМАЦИИ",913,12,0,0,0,2000,2000]
["Периодическая печать и издательства",913,12,2,0,0,2000,2000]
["Периодические издания, учрежденные органами законодательной и исполнительной власти",913,12,2,4570000,0,2000,2000]
["Государственная поддержка в сфере культуры, кинематографии и средств массовой информации",913,12,2,4578500,0,2000,2000]
["Субсидии юридическим лицам",913,12,2,4578500,"006",2000,2000]
["Дума ЧРМО",916,0,0,0,0,940.5,986.3]
["ОБЩЕГОСУДАРСТВЕННЫЕ ВОПРОСЫ",916,1,0,0,0,940.5,986.3]
["Функционирование законодательных (представительных) органов государственной власти и представительных органов муниципальных образований",916,1,3,0,0,940.5,986.3]
["Руководство и управление в сфере установленных функций органов государственной власти субъектов Российской Федерации  и органов местного самоуправления",916,1,3,20000,0,940.5,986.3]
["Центральный аппарат",916,1,3,20400,0,289,302]
["Выполнение функций органами местного самоуправления",916,1,3,20400,"500",289,302]
["Председатель представительного органа муниципального образования",916,1,3,21100,0,651.5,684.3]
["Выполнение функций органами местного самоуправления",916,1,3,21100,"500",651.5,684.3]
["Администрация ЧРМО",917,0,0,0,0,36189.1,33915]
["ОБЩЕГОСУДАРСТВЕННЫЕ ВОПРОСЫ",917,1,0,0,0,27507,25975.9]
["Функционирование высшего должностного лица субъекта Российской Федерации и муниципального образования",917,1,2,0,0,1403,1472.1]
["Руководство и управление в сфере установленных функций органов государственной власти субъектов Российской Федерации  и органов местного самоуправления",917,1,2,20000,0,1403,1472.1]
["Глава муниципального образования",917,1,2,20300,0,1403,1472.1]
["Выполнение функций органами местного самоуправления",917,1,2,20300,"500",1403,1472.1]
["Функционирование Правительства Российской Федерации, высших исполнительных органов государственной власти субъектов Российской Федерации, местных администраций",917,1,4,0,0,20515.5,21389.4]
["Руководство и управление в сфере установленных функций органов государственной власти субъектов Российской Федерации  и органов местного самоуправления",917,1,4,20000,0,20515.5,21389.4]
["Центральный аппарат",917,1,4,20400,0,20515.5,21389.4]
["Выполнение функций органами местного самоуправления",917,1,4,20400,"500",20515.5,21389.4]
["Обеспечение проведения выборов и референдумов",917,1,7,0,0,2500,0]
["Проведение выборов и референдумов",917,1,7,200000,0,2500,0]
["Проведение выборов и референдумов",917,1,7,200000,0,2500,0]
["Проведение выборов в представительные органы муниципального образования",917,1,7,200002,0,2500,0]
["Выполнение функций органами местного самоуправления",917,1,7,200002,"500",2500,0]
["Резервные фонды",917,1,11,0,0,300,300]
["Резервные фонды",917,1,11,700000,0,300,300]
["Резервные фонды местных администраций",917,1,11,700500,0,300,300]
["Выполнение функций органами местного самоуправления",917,1,11,700500,"500",300,300]
["Другие общегосударственные вопросы",917,1,13,0,0,2788.5,2814.4]
["Руководство и управление в сфере установленных функций органов государственной власти субъектов Российской Федерации  и органов местного самоуправления",917,1,13,20000,0,2617.5,2643.4]
["Осуществление областных государственных полномочий по хранению, комплектованию, учету и использованию архивных документов, относящихся к государственной собственности Иркутской области",917,1,13,24000,0,1086,1086]
["Выполнение функций органами местного самоуправления",917,1,13,24000,"500",1086,1086]
["Осуществление областных государственных полномочий по определению персонального состава и обеспечению деятельности административных комиссий",917,1,13,24300,0,563.6,563.6]
["Выполнение функций органами местного самоуправления",917,1,13,24300,"500",563.6,563.6]
["Осуществление отдельных государственных полномочий в области производства и оборота этилового спирта, алкогольной и спиртосодержащей продукции",917,1,13,24400,0,404.3,430.2]
["Выполнение функций органами местного самоуправления",917,1,13,24400,"500",404.3,430.2]
["Осуществление отдельных областных государственных полномочий в области охраны труда",917,1,13,24500,0,563.6,563.6]
["Выполнение функций органами местного самоуправления",917,1,13,24500,"500",563.6,563.6]
["Реализация государственных функций, связанных с общегосударственным управлением",917,1,13,920000,0,131,131]
["Выполнение других обязательств государства",917,1,13,920300,0,131,131]
["Выполнение функций органами местного самоуправления",917,1,13,920300,"500",131,131]
["Целевые программы муниципальных образований",917,1,13,7950000,0,40,40]
["Долгосрочная целевая программа \"Улучшение условий и охраны труда в Черемховском районе на 2011-2013гг.\"",917,1,13,7951400,0,0,0]
["Выполнение функций органами местного самоуправления",917,1,13,7951400,"500",0,0]
["Комплексная программа \"Профилактика правонарушений в Черемховском районном муниципальном образовании на 2013-2016 годы\"",917,1,13,7952600,0,40,40]
["Выполнение функций органами местного самоуправления",917,1,13,7952600,"500",40,40]
["Долгосрочная целевая программа \"Поддержка молодых педагогов на территории Черемховского районного муниципального образования\" на 2012-2013 годы",917,1,13,7952700,0,0,0]
["Выполнение функций органами местного самоуправления",917,1,13,7952700,"500",0,0]
["НАЦИОНАЛЬНАЯ ЭКОНОМИКА",917,4,0,0,0,3198.1,2406.5]
["Дорожное хозяйство(дорожные фонды)",917,4,9,0,0,3048.1,2406.5]
["Целевые программы муниципальных образований",917,4,9,7950000,0,3048.1,2406.5]
["Долгосрочная целевая программа \"Развитие автомобильных дорог Черемховского районного муниципального образования на 2013-2015 годы\"",917,4,9,7952300,0,3048.1,2406.5]
["Выполнение функций органами местного самоуправления",917,4,9,7952300,"500",3048.1,2406.5]
["Другие вопросы в области национальной экономики",917,4,12,0,0,150,0]
["Целевые программы муниципальных образований",917,4,12,7950000,0,150,0]
["Долгосрочная целевая программа \"Поддержка и развитие малого и среднего предпринимательства в Черемховском районе\" на 2013-2014 годы",917,4,12,7952200,0,150,0]
["Выполнение функций органами местного самоуправления",917,4,12,7952200,"500",150,0]
["ЖИЛИЩНО-КОММУНАЛЬНОЕ ХОЗЯЙСТВО",917,5,0,0,0,0,0]
["Жилищное хозяйство",917,5,1,0,0,0,0]
["Поддержка жилищного хозяйства",917,5,1,3500000,0,0,0]
["Мероприятия в области жилищного хозяйства",917,5,1,3500300,0,0,0]
["Выполнение функций органами местного самоуправления",917,5,1,3500300,"500",0,0]
["ОБРАЗОВАНИЕ",917,7,0,0,0,86,86]
["Профессиональная подготовка, переподготовка и повышение квалификации",917,7,5,0,0,0,0]
["Мероприятия по переподготовке и повышению квалификации",917,7,5,4340000,0,0,0]
["Выполнение функций органами местного самоуправления",917,7,5,4340000,"500",0,0]
["Молодежная политика и оздоровление детей",917,7,7,0,0,86,86]
["Организационно-воспитательная работа с молодежью",917,7,7,4310000,0,46,46]
["Проведение мероприятий для детей и молодежи",917,7,7,4310100,0,46,46]
["Проведение мероприятия для детей и молодежи",917,7,7,4310100,"447",46,46]
["Целевые программы муниципальных образований",917,7,7,7950000,0,40,40]
["Долгосрочная целевая программа \"Комплексные меры профилактики злоупотребления наркотическими средствами и психотропными веществами в Черемховском районном муниципальном образовании на 2011-2013 гг.\"",917,7,7,7951300,0,0,0]
["Выполнение функций органами местного самоуправления",917,7,7,7951300,"500",0,0]
["Долгосрочная целевая программа \"Молодежная политика в Черемховском районном муниципальном образовании\" на 2013-2015 гг.",917,7,7,7952500,0,40,40]
["Проведение мероприятия для детей и молодежи",917,7,7,7952500,"447",40,40]
["Социальная политика",917,10,0,0,0,5315.6,5364.2]
["Пенсионное обеспечение",917,10,1,0,0,2980,2980]
["Доплаты к пенсиям, дополнительное пенсионное обеспечение ",917,10,1,4910000,0,2980,2980]
["Доплаты к пенсиям государственных служащих субъектов Российской Федерации и муниципальных служащих ",917,10,1,4910100,0,2980,2980]
["Социальные выплаты",917,10,1,4910100,"005",2980,2980]
["Социальное обеспечение населения",917,10,3,0,0,1157.5,1206.0999999999999]
["Реализация государственных функций в области социальной политики",917,10,3,5140000,0,882.1,910]
["Мероприятия в области социальной политики",917,10,3,5140100,0,882.1,910]
["Социальные выплаты",917,10,3,5140100,"005",882.1,910]
["Целевые программы муниципальных образований",917,10,3,7950000,0,275.39999999999998,296.10000000000002]
["Районная социальная программа \"Молодым семьям-доступное жилье\" на 2012-2019 гг.",917,10,3,7952100,0,275.39999999999998,296.10000000000002]
["Социальные выплаты",917,10,3,7952100,"005",275.39999999999998,296.10000000000002]
["Другие вопросы в области социальной политики",917,10,6,0,0,1178.0999999999999,1178.0999999999999]
["Руководство и управление в сфере установленных функций органов государственной власти субъектов Российской Федерации  и органов местного самоуправления",917,10,6,20000,0,1078.0999999999999,1078.0999999999999]
["Осуществление областных государственных полномочий по определению персонального состава и обеспечению деятельности районных (городских), районных в городах комиссий по делам несовершеннолетних и защите их прав",917,10,6,24100,0,1078.0999999999999,1078.0999999999999]
["Выполнение функций органами местного самоуправления",917,10,6,24100,"500",1078.0999999999999,1078.0999999999999]
["Целевые программы муниципальных образований",917,10,6,7950000,0,100,100]
["Муниципальная целевая программа \"Поддержка, проводимых мероприятий, посвященных Дням воинской славы, памятным датам России и работе с ветеранами и инвалидами в черемховском районе на 2013-2015 гг.\"",917,10,6,7952400,0,100,100]
["Выполнение функций органами местного самоуправления",917,10,6,7952400,"500",100,100]
["ФИЗИЧЕСКАЯ КУЛЬТУРА И СПОРТ",917,11,0,0,0,82.4,82.4]
["Физическая культура",917,11,1,0,0,82.4,82.4]
["Физкультурно-оздоровительная работа и спортивные мероприятия",917,11,1,5120000,0,82.4,82.4]
["Мероприятия в области спорта, физической культуры и туризма",917,11,1,5129700,0,82.4,82.4]
["Выполнение функций органами местного самоуправления",917,11,1,5129700,"500",82.4,82.4]
["Целевые программы муниципальных образований",917,11,1,7950000,0,0,0]
["Долгосрочная целевая программа \"Развитие физической культуры, спорта и туризма в Черемховском районном муниципальном образовании на 2011-2013 гг.\"",917,11,1,7951200,0,0,0]
["Выполнение функций органами местного самоуправления",917,11,1,7951200,"500",0,0]
["Управление жилищно-коммунального хозяйства, строительства, транспорта, связи и экологии АЧРМО",918,0,0,0,0,12176.3,12731.6]
["ОБЩЕГОСУДАРСТВЕННЫЕ ВОПРОСЫ",918,1,0,0,0,32.5,32.5]
["Другие общегосударственные вопросы",918,1,13,0,0,32.5,32.5]
["Реализация государственных функций, связанных с общегосударственным управлением",918,1,13,920000,0,32.5,32.5]
["Выполнение других обязательств государства",918,1,13,920300,0,32.5,32.5]
["Выполнение функций органами местного самоуправления",918,1,13,920300,"500",32.5,32.5]
["ЖИЛИЩНО-КОММУНАЛЬНОЕ ХОЗЯЙСТВО",918,5,0,0,0,4258,4464.7]
["Другие вопросы в области жилищно-коммунального хозяйства",918,5,5,0,0,4258,4464.7]
["Руководство и управление в сфере установленных функций органов государственной власти субъектов Российской Федерации  и органов местного самоуправления",918,5,5,20000,0,4258,4464.7]
["Центральный аппарат",918,5,5,20400,0,4258,4464.7]
["Выполнение функций органами местного самоуправления",918,5,5,20400,"500",4258,4464.7]
["Социальная политика",918,10,0,0,0,7885.8,8234.4]
["Социальное обеспечение населения",918,10,3,0,0,7885.8,8234.4]
["Руководство и управление в сфере установленных функций органов государственной власти субъектов Российской Федерации  и органов местного самоуправления",918,10,3,20000,0,7885.8,8234.4]
["Осуществление областных государственных полномочий по предоставлению гражданам субсидий на оплату жилых помещений и коммунальных услуг",918,10,3,24700,0,7885.8,8234.4]
["Содержание и обеспечение деятельности муниципальных служащих, осуществляющих областные государственные полномочия по предоставлению гражданам субсидий на оплату жилых помещений и коммунальных услуг",918,10,3,24701,0,771.9,771.9]
["Выполнение функций органами местного самоуправления",918,10,3,24701,"500",771.9,771.9]
["Предоставление гражданам субсидий на оплату жилых помещений и коммунальных услуг",918,10,3,24702,0,7113.9,7462.5]
["Социальные выплаты",918,10,3,24702,"005",7113.9,7462.5]
["МКУК \"Межпоселенческий культурный центр АЧРМО\"",919,0,0,0,0,0,0]
["КУЛЬТУРА И КИНЕМАТОГРАФИЯ",919,8,0,0,0,0,0]
["Культура",919,8,1,0,0,0,0]
["Учреждения культуры и мероприятия в сфере культуры и кинематографии",919,8,1,4400000,0,0,0]
["Обеспечение деятельности подведомственных учреждений",919,8,1,4409900,0,0,0]
["Выполнение функций казенными учреждениями",919,8,1,4409900,"001",0,0]
["Контрольно-счетная палата ЧРМО",923,0,0,0,0,1816.6,1907.3]
["ОБЩЕГОСУДАРСТВЕННЫЕ ВОПРОСЫ",923,1,0,0,0,1816.6,1907.3]
["Обеспечение деятельности финансовых, налоговых и таможенных органов и органов финансового (финансово-бюджетного) надзора",923,1,6,0,0,1816.6,1907.3]
["Руководство и управление в сфере установленных функций органов государственной власти субъектов Российской Федерации  и органов местного самоуправления",923,1,6,20000,0,1816.6,1907.3]
["Центральный аппарат",923,1,6,20400,0,1031.4000000000001,1082.0999999999999]
["Выполнение функций органами местного самоуправления",923,1,6,20400,"500",1031.4000000000001,1082.0999999999999]
["Руководитель контрольно-счетной палаты муниципального образования и его заместители",923,1,6,22500,0,785.2,825.2]
["Выполнение функций органами местного самоуправления",923,1,6,22500,"500",785.2,825.2]
["ОБРАЗОВАНИЕ",923,7,0,0,0,0,0]
["Профессиональная подготовка, переподготовка и повышение квалификации",923,7,5,0,0,0,0]
["Мероприятия по переподготовке и повышению квалификации",923,7,5,4340000,0,0,0]
["Выполнение функций органами местного самоуправления",923,7,5,4340000,"500",0,0]
["ИТОГО",{"$nulls":5},451351,448058]
[]
["Начальник Финансового управления",{"$nulls":4},"Ю.Н. Гайдук"]

{"sheet":"прил12","index":11,"n_rows":56,"n_cols":10,"rows_kept":56,"cut":false,"hidden":false,"merged":[[52,0,52,1],[52,2,52,6],[12,2,16,2],[18,2,27,2],[28,0,29,0],[28,1,29,1],[30,1,51,1],[30,0,51,0],[6,0,6,7],[7,6,7,7],[8,0,9,0],[8,1,9,1],[8,2,9,2],[8,3,8,6],[8,7,9,7]]}
[]
[]
[]
[]
[]
[]
["Распределение бюджетных ассигнований на реализацию долгосрочных районных целевых программ Черемховского районного муниципального образования на 2013 год"]
[{"$nulls":6},"(тыс. рублей)"]
["№ п/п","Наименование программы","Исполнители","Бюджетная классификация",null,null,null,"сумма "]
[null,null,null,"ГРБС","РзПр","ЦСР","ВР"]
[1,2,3,4,5,6,7,8]
[1,"Развитие культуры в Черемховском районном муниципальном образовании на период 2012-2016 гг.","Отдел по культуре и библиотечному обслуживанию АЧРМО",904,"0801, 0702",7952000,"023",1023.8]
[2,"Ветхие школы Черемховского района на 2011-2013 гг.","Отдел образования АЧРМО",907,"0702",7951500,"022",450]
[3,"Совершенствование дошкольного образования Черемховского района на 2011-2014 гг.",null,907,"0701",7951800,"022",350]
[4,"Совершенствование организации питания в образовательных учреждениях Черемховского района на 2011-2013 гг.",null,907,"0702",7951600,"022",1000]
[5,"Развитие дошкольного образования на 2011-2014 гг.",null,907,"0701",7951700,"022",702]
[6,"\"Безопасность образовательных учреждений\" 2010-2014гг.",null,907,"0701, 0702",7951000,"450",1700,null," "]
[7,"Инвентаризация муниципальных объектов недвижимости Черемховского районного муниципального образования на 2012-2014 годы","КУМИ",913,"0113, 0412",7951900,"500",1000]
[8,"Молодым семьям доступное жилье на 2012-2019гг.","Администрация ЧРМО ",917,1003,7952100,"005",256.2]
[9,"Комплексные меры профилактики злоупотребления наркотическими средствами, психотропними веществами в Черемховском районном муниципальном образовании на 2011-2013 гг.",null,917,"0707",7951300,500,10]
[10,"Молодежная политика в Черемховском районном муниципальном образовании на 2013-2015 ",null,917,"0707",7952500,447,40]
[11,"Развитие физической культуры, спорта и туризма в Черемховском районном муниципальном образовании на 2011-2013гг.",null,917,"1101",7951200,500,100]
[12,"Поддержка и развитие малого и среднего предпринимательства в Черемховском районе на 2013-2014 гг.",null,917,"0412",7952200,500,100]
[13,"Поддержка, проводимых мероприятий, посвященных Дням воинской славы, памятным датам России и работе с ветеранами и инвалидами в Черемховском районе на 2013-2015 гг.",null,917,"1006",7952400,500,100]
[14,"Улучшение условий и охраны труда в Черемховском районе на 2011-2013 гг",null,917,"0113",7951400,500,15]
[15,"Развитие автомобильных дорог Черемховского районного муниципального образования на 2013-2015 гг.",null,917,"0409",7952300,500,201.6]
[16,"Поддержка молодых педагогов на территории Черемховского районного муниципального образования на 2012-2013 гг.",null,917,"0113",7952700,500,100]
[17,"Профилактика правонарушений в Черемховском районном муниципальном образовании на 2013-2016 гг.",null,917,"0113",7952600,500,40]
[18,"Программа повышения энергетической эффективности Черемховского районного муниципального образования на 2010-2015 гг","Отдел образования АЧРМО",907,"0702",7951100,"451",600]
[null,null,"Отдел по культуре и библиотечному обслуживанию АЧРМО",904,"0801",7951100,"451",282]
[19,"Повышение эффективности бюджетных расходов Черемховского районного муниципального образования на 2012-2013 годы","Финансовое управление АЧРМО",910,"0106",7950200,"500",200]
[null,null,"Отдел образования АЧРМО",907,"0701, 0702",7950200,"001",7014]
[null,null,"Отдел по культуре и библиотечному обслуживанию АЧРМО",904,"0702, 0801",7950200,"001",483]
[null,null,"Муниципальные образования района, Всего, в том числе",{"$nulls":4},{"$f":"SUM(H35:H52)","v":1875}]
[null,null,"Алехинское сельское поселение",910,"1403",7950200,"017",187]
[null,null,"Бельское сельское поселение",910,"1403",7950200,"017",91]
[null,null,"Булайское сельское поселение",910,"1403",7950200,"017",143]
[null,null,"Голуметское сельское поселение",910,"1403",7950200,"017",97]
[null,null,"Зерновское сельское поселение",910,"1403",7950200,"017",116]
[null,null,"Каменно-Ангарское сельское поселение",910,"1403",7950200,"017",99]
[null,null,"Лоховское сельское поселение",910,"1403",7950200,"017",65]
[null,null,"Михайловское городское поселение",910,"1403",7950200,"017",142]
[null,null,"Нижнеиретское сельское поселение",910,"1403",7950200,"017",84]
[null,null,"Новогромовское сельское поселение",910,"1403",7950200,"017",78]
[null,null,"Новостроевское сельское поселение",910,"1403",7950200,"017",84]
[null,null,"Онотское сельское поселение",910,"1403",7950200,"017",104]
[null,null,"Парфеновское сельское поселение",910,"1403",7950200,"017",97]
[null,null,"Саянское сельское поселение",910,"1403",7950200,"017",107]
[null,null,"Тальниковское сельское поселение",910,"1403",7950200,"017",87]
[null,null,"Тунгусское сельское поселение",910,"1403",7950200,"017",102]
[null,null,"Узколугское сельское поселение",910,"1403",7950200,"017",93]
[null,null,"Черемховское сельское поселение",910,"1403",7950200,"017",99]
["Всего",{"$nulls":6},{"$f":"SUM(H12:H34)","v":17642.599999999999}]
[]
[]
["Начальник финансового управления",{"$nulls":6},"Ю.Н. Гайдук"]

{"sheet":"прил13","index":12,"n_rows":28,"n_cols":10,"rows_kept":28,"cut":false,"hidden":false,"merged":[[27,6,27,8],[6,0,6,8],[7,6,7,8],[8,0,9,0],[8,1,9,1],[8,2,9,2],[8,3,8,6],[8,7,8,8],[12,2,14,2],[16,2,21,2],[22,0,23,0],[22,1,23,1],[24,2,24,6]]}
[]
[]
[]
[]
[]
[]
["Распределение бюджетных ассигнований на реализацию долгосрочных районных целевых программ Черемховского районного муниципального образования на  плановый период 2014 и 2015 годов"]
[{"$nulls":6},"(тыс. рублей)"]
["№ п/п","Наименование программы","Исполнители","Бюджетная классификация",null,null,null,"сумма "]
[null,null,null,"ГРБС","РзПр","ЦСР","ВР",2014,2015]
[1,2,3,4,5,6,7,8,9]
[1,"Развитие культуры в Черемховском районном муниципальном образовании на период 2012-2016 гг.","Отдел по культуре и библиотечному обслуживанию АЧРМО",904,"0801, 0702",7952000,"023",1011,1013.1]
[2,"Совершенствование дошкольного образования Черемховского района на 2011-2014 гг.","Отдел образования АЧРМО",907,"0701",7951800,"022",400,0]
[3,"Совершенствование организации питания в образовательных учреждениях Черемховского района на 2011-2013 гг.",null,907,"0702",7951600,"022",600,0]
[4,"\"Безопасность образовательных учреждений\" 2010-2014гг.",null,907,"0701, 0702",7951000,"450",1800,null," "]
[5,"Инвентаризация муниципальных объектов недвижимости Черемховского районного муниципального образования на 2012-2014 годы","КУМИ",913,"0113, 0412",7951900,"500",1000]
[6,"Молодым семьям доступное жилье на 2012-2019гг.","Администрация ЧРМО ",917,1003,7952100,"005",275.39999999999998,296.10000000000002]
[7,"Молодежная политика в Черемховском районном муниципальном образовании на 2013-2015 ",null,917,"0707",7952500,447,40,40]
[8,"Поддержка и развитие малого и среднего предпринимательства в Черемховском районе на 2013-2014 гг.",null,917,"0412",7952200,500,150,0]
[9,"Поддержка, проводимых мероприятий, посвященных Дням воинской славы, памятным датам России и работе с ветеранами и инвалидами в Черемховском районе на 2013-2015 гг.",null,917,"1006",7952400,500,100,100]
[10,"Развитие автомобильных дорог Черемховского районного муниципального образования на 2013-2015 гг.",null,917,"0409",7952300,500,3048.1,2406.4]
[11,"Профилактика правонарушений в Черемховском районном муниципальном образовании на 2013-2016 гг.",null,917,"0113",7952600,500,40,40]
[12,"Программа повышения энергетической эффективности Черемховского районного муниципального образования на 2010-2015 гг","Отдел образования АЧРМО",907,"0702",7951100,"451",600]
[null,null,"Отдел по культуре и библиотечному обслуживанию АЧРМО",904,"0801",7951100,"451",100,200]
[null,"Всего:",{"$nulls":5},{"$f":"SUM(H12:H24)","v":9164.5},{"$f":"SUM(I12:I24)","v":4095.6000000000004}]
[]
[]
["Начальник финансового управления",{"$nulls":5},"Ю.Н. Гайдук"]

{"sheet":"прил14","index":13,"n_rows":26,"n_cols":5,"rows_kept":26,"cut":false,"hidden":false,"merged":[[6,0,6,4],[9,0,10,0],[9,1,10,1],[9,2,9,4]]}
[]
[]
[]
[]
[]
[]
["Распределение  фонда  финансовой поддержки поселений Черемховского района "]
[]
[{"$nulls":4},"(тыс. рублей)"]
["№п/п","Наименование городских и сельских поселений","Дотация на выравнивание бюджетной обеспеченности "]
[null,null,2013,2014,2015]
[1,"Булайское",686,660,669]
[2,"Голуметское",301,413,475]
[3,"Каменноангарское",89,32,0]
[4,"Нижнеиретское",160,100,103]
[5,"Новостроевское",461,468,457]
[6,"Онотское",57,46,25]
[7,"Парфеновское",0,0,97]
[8,"Саянское",654,647,635]
[9,"Тальниковское",634,618,628]
[10,"Тунгусское",458,416,411]
[" ","Итого:",{"$f":"SUM(C12:C21)","v":3500},{"$f":"SUM(D12:D21)","v":3400},{"$f":"SUM(E12:E21)","v":3500}]
[]
[]
[]
["Начальник финансового управления",null,null,null,"Ю.Н. Гайдук"]

{"sheet":"прил 15весов коэф","index":14,"n_rows":0,"n_cols":0,"rows_kept":0,"cut":false,"hidden":false,"merged":[]}

{"sheet":"прил 16заим 2013","index":15,"n_rows":16,"n_cols":5,"rows_kept":16,"cut":false,"hidden":false,"merged":[[6,0,6,4]]}
[]
[]
[]
[]
[]
[]
["Программа муниципальных внутренних заимствований Черемховского районного муниципального образования на 2013 год"]
[{"$nulls":4},"(тыс.рублей)"]
["Виды долговых обязательств (привлечение/погашение)","Объем муниципального долга на 1 января 2013 года","Объем привлечения в 2013 году","Объем погашения в 2013 году","Верхний предел муниципального долга на 1 января 2014 года "]
["Объем заимствований, всего",0,{"$f":"C12+C13","v":4061.2},0,{"$f":"E12+E13","v":4061.2}]
["в том числе:"]
["2. Кредиты кредитных организаций в валюте Российской Федерации сроком до 3-х лет",0,4061.2,0,{"$f":"B12+C12-D12","v":4061.2}]
["3. Бюджетные кредиты от других бюджетов бюджетной системы Российской Федерации ",0,0,0,0]
[]
[]
["Начальник финансового управления",null,null,null,"Ю.Н. Гайдук"]

{"sheet":"прил17заим2014-2015","index":16,"n_rows":17,"n_cols":8,"rows_kept":17,"cut":false,"hidden":false,"merged":[[7,0,7,7]]}
{"$rows_empty":7}
["Программа муниципальных внутренних заимствований Черемховского районного муниципального образования на  плановый период 2014 и 2015 годов"]
[{"$nulls":7},"(тыс.рублей)"]
["Виды долговых обязательств (привлечение/погашение)","Объем муниципального долга на 1 января 2014 года","Объем привлечения в 2014 году","Объем погашения в 2014 году","Верхний предел муниципального долга на 1 января 2015 года ","Объем привлечения в 2015 году","Объем погашения в 2015 году","Верхний предел муниципального долга на 1 января 2016 года "]
["Объем заимствований, всего",{"$f":"B13+B14","v":4061.2},{"$f":"C13+C14","v":4153.8999999999996},0,8215.0999999999985,4315.2,0,12530.3]
["в том числе:"]
["2. Кредиты кредитных организаций в валюте Российской Федерации сроком до 3-х лет",4061.2,4153.8999999999996,0,{"$f":"B13+C13","v":8215.0999999999985},4315.2,0,{"$f":"E13+F13-G13","v":12530.3}]
["3. Бюджетные кредиты от других бюджетов бюджетной системы Российской Федерации ",0,0,0,0,0,0,0]
[]
[]
["Начальник финансового управления",{"$nulls":6},"Ю.Н. Гайдук"]

{"sheet":"прил18источн2013","index":17,"n_rows":25,"n_cols":3,"rows_kept":25,"cut":false,"hidden":false,"merged":[[7,0,7,2]]}
{"$rows_empty":7}
["Источники внутреннего финансирования дефицита бюджета Черемховского районного муниципального образования на 2013 год"]
[]
[null,null,"(тыс.рублей)"]
["Наименование","Код","Сумма"]
["Источники внутреннего финансирования дефицита бюджета","000 01 00 00 00 00 0000 000",4061.2]
["Кредиты кредитных организаций в валюте Российской Федерации","810 01 02 00 00 00 0000 000",4061.2]
["Получение кредитов от кредитных организаций в валюте Российской Федерации","810 01 02 00 00 00 0000 700",4061.2]
["Кредиты, полученные в валюте Российской Федерации от кредитных организаций бюджетами муниципальных районнов","810 01 02 00 00 05 0000 710",4061.2]
["Бюджетные кредиты от других бюджетов бюджетной системы Российской Федерации ","810 01 03 00 00 00 0000 000",0]
["Погашение бюджетных кредитов, полученных от других бюджетов бюджетной системы Российской Федерации в валюте Российской Федерации","810 01 03 00 00 00 0000 800",0]
["Погашение бюджетами муниципальных районнов кредитов от других бюджетов бюджетной системы Российской Федерации в валюте Российской Федерации","810 01 03 00 00 05 0000 810",0]
["Изменение остатков средств на счетах по учету средств бюджетов","000 01 05 00 00 00 0000 000",1.5999987721443176E-2]
["Увеличение остатков средств бюджетов","000 01 05 00 00 00 0000 500",-478803]
["Увеличение прочих остатков  средств бюджетов","000 01 05 02 00 00 0000 500",-478803]
["Уменьшение остатков средств бюджетов","000 01 05 00 00 00 0000 600",478803]
["Уменьшение прочих остатков средств бюджетов","000 01 05 02 00 00 0000 600",478803]
[]
["Начальник финансового управления",null,"Ю.Н. Гайдук"]

{"sheet":"прил19источ 2014-2015)","index":18,"n_rows":28,"n_cols":4,"rows_kept":28,"cut":false,"hidden":false,"merged":[[7,0,7,3]]}
{"$rows_empty":7}
["Источники внутреннего финансирования дефицита бюджета Черемховского районного муниципального образования на плановый период 2014 и 2015 годов"]
[]
[null,null,null,"(тыс.рублей)"]
["Наименование","Код"," 2014 год"," 2015 год"]
["Источники внутреннего финансирования дефицита бюджета","000 01 00 00 00 00 0000 000",{"$f":"C13+C21","v":4153.8999999999996},{"$f":"D13+D21","v":4315.2}]
["Кредиты кредитных организаций в валюте Российской Федерации","810 01 02 00 00 00 0000 000",{"$f":"C14+C16","v":4153.8999999999996},{"$f":"D14+D16","v":4315.2}]
["Получение кредитов от кредитных организаций в валюте Российской Федерации","810 01 02 00 00 00 0000 700",4153.8999999999996,4315.2]
["Кредиты, полученные в валюте Российской Федерации от кредитных организаций бюджетами муниципальных районов","810 01 02 00 00 050000 710",4153.8999999999996,4315.2]
["Погашение кредитов, предоставленных кредитными организациями в валюте Российской Федерации","810 01 02 00 00 00 0000 800",{"$f":"C17","v":0},{"$f":"D17","v":0}]
["Погашение бюджетами муниципальных районов кредитов от кредитных организаций в валюте Российской Федерации","810 01 02 00 00 05 0000 810",0,0]
["Бюджетные кредиты от других бюджетов бюджетной системы Российской Федерации ","810 01 03 00 00 00 0000 000",0,0]
["Погашение бюджетных кредитов, полученных от других бюджетов бюджетной системы Российской Федерации в валюте Российской Федерации","810 01 03 00 00 00 0000 800",0,0]
["Погашение бюджетами муниципальных районов кредитов от других бюджетов бюджетной системы Российской Федерации в валюте Российской Федерации","810 01 03 00 00 05 0000 810",0,0]
["Изменение остатков средств на счетах по учету средств бюджетов","000 01 05 00 00 00 0000 000",{"$f":"C22+C24","v":0},{"$f":"D22+D24","v":0}]
["Увеличение остатков средств бюджетов","000 01 05 00 00 00 0000 500",{"$f":"C23","v":-462925},{"$f":"D23","v":-471640}]
["Увеличение прочих остатков  средств бюджетов","000 01 05 02 00 00 0000 500",-462925,-471640]
["Уменьшение остатков средств бюджетов","000 01 05 00 00 00 0000 600",{"$f":"C25","v":462925},471640]
["Уменьшение прочих остатков средств бюджетов","000 01 05 02 00 00 0000 600",462925,471640]
[]
[]
["Начальник финансового управления",null,null,"Ю.Н. Гайдук"]